Workbook

Sheet Title Page
D2: Mobile TeleSystems
B5: Contents
B7: 1. MTS Group statement of profit or loss
B8: 2. MTS Group statement of financial position
B9: 3. MTS Group statement of cash flows
B10: 4. MTS Russia highlights
B11: 5. MTS Ukraine highlights
B12: 6. MTS Armenia highlights
B13: 7. MTS Turkmenistan highlights
B14: 8. MTS Belarus highlights
B15: 9. Group reconciliations
B16: 10. Debt repayment schedule
B17: 11. Average Forex rates
B18: Glossary of terms
B21: Disclaimer

Sheet Statement of profit or loss
B2: MOBILE TELESYSTEMS (NYSE: MBT)
B3: CONDENSED UNAUDITED CONSOLIDATED STATEMENTS OF PROFIT OR LOSS
C4: 2014 | H4: 2015 | M4: 2016 | R4: 2017 | W4: 2018 | AG4: 2019
B5: (Amounts in millions of RUB, except share and per share amounts) | C5: Q1 | D5: Q2 | E5: Q3* | F5: Q4* | G5: Full year* | H5: Q1* | I5: Q2* | J5: Q3* | K5: Q4* | L5: Full year* | M5: Q1* | N5: Q2* | O5: Q3 | P5: Q4 | Q5: Full year | R5: Q1 | S5: Q2 | T5: Q3 | U5: Q4 | V5: Full year | W5: Q1" | X5: Q1 | Y5: Q2" | Z5: Q2 | AA5: Q3" | AB5: Q3 | AC5: Q4" | AD5: Q4 | AE5: Full year" | AF5: Full year | AG5: Q1 | AH5: Q2
B8: Service revenue | C8: 91329 | D8: 92845 | E8: 99158 | F8: 97811 | G8: 381143 | H8: 93325 | I8: 94244 | J8: 101015 | K8: 97575 | L8: 386159 | M8: 95109 | N8: 95600 | O8: 98728 | P8: 97050 | Q8: 386486 | R8: 93442 | S8: 96725 | T8: 101236 | U8: 99358 | V8: 390761 | W8: 95412 | X8: 94826 | Y8: 100807 | Z8: 100236 | AA8: 108035 | AB8: 107519 | AC8: 108813 | AD8: 108309 | AE8: 413067 | AF8: 410890 | AG8: 103772 | AH8: 109161
B9: Sales of goods | C9: 6217 | D9: 6034 | E9: 7994 | F9: 9290 | G9: 29535 | H9: 6372 | I9: 7669 | J9: 12694 | K9: 13745 | L9: 40480 | M9: 10756 | N9: 10455 | O9: 13454 | P9: 14542 | Q9: 49206 | R9: 11241 | S9: 10112 | T9: 13331 | U9: 17466 | V9: 52150 | W9: 13099 | X9: 13099 | Y9: 14110 | Z9: 14110 | AA9: 20439 | AB9: 20439 | AC9: 21755 | AD9: 21755 | AE9: 69403 | AF9: 69403 | AG9: 14253 | AH9: 15988
B10: Total revenue | C10: 97546 | D10: 98879 | E10: 107152 | F10: 107101 | G10: 410678 | H10: 99697 | I10: 101913 | J10: 113709 | K10: 111320 | L10: 426639 | M10: 105865 | N10: 106055 | O10: 112182 | P10: 111592 | Q10: 435692 | R10: 104683 | S10: 106837 | T10: 114567 | U10: 116824 | V10: 442911 | W10: 108511 | X10: 107925 | Y10: 114917 | Z10: 114346 | AA10: 128474 | AB10: 127958 | AC10: 130568 | AD10: 130064 | AE10: 482470 | AF10: 480293 | AG10: 118025 | AH10: 125149
B12: Cost of services | C12: -28396 | D12: -28665 | E12: -30001 | F12: -31991 | G12: -119053 | H12: -31469 | I12: -30217 | J12: -32489 | K12: -32630 | L12: -126805 | M12: -33337 | N12: -32628 | O12: -32377 | P12: -31817 | Q12: -130158 | R12: -30013 | S12: -30948 | T12: -31592 | U12: -31226 | V12: -123779 | W12: -29900 | X12: -24930 | Y12: -31818 | Z12: -26985 | AA12: -34709 | AB12: -30265 | AC12: -35076 | AD12: -30221 | AE12: -131503 | AF12: -112401 | AG12: -29538 | AH12: -31337
B13: Cost of goods | C13: -5439 | D13: -5381 | E13: -6952 | F13: -7673 | G13: -25445 | H13: -4682 | I13: -7039 | J13: -11716 | K13: -13118 | L13: -36555 | M13: -9737 | N13: -10300 | O13: -12173 | P13: -13364 | Q13: -45574 | R13: -9561 | S13: -9293 | T13: -11535 | U13: -15234 | V13: -45623 | W13: -11490 | X13: -11439 | Y13: -13438 | Z13: -13360 | AA13: -19217 | AB13: -19146 | AC13: -20024 | AD13: -19924 | AE13: -64169 | AF13: -63869 | AG13: -13041 | AH13: -15276
B14: Selling, general and administrative expenses | C14: -21311 | D14: -21391 | E14: -21571 | F14: -23822 | G14: -88095 | H14: -21798 | I14: -22044 | J14: -21107 | K14: -22391 | L14: -87340 | M14: -22942 | N14: -23314 | O14: -22846 | P14: -24942 | Q14: -94046 | R14: -23263 | S14: -23421 | T14: -23192 | U14: -25310 | V14: -95186 | W14: -22764 | X14: -19622 | Y14: -25221 | Z14: -21927 | AA14: -24697 | AB14: -21666 | AC14: -28070 | AD14: -24731 | AE14: -100752 | AF14: -87946 | AG14: -22264 | AH14: -23770
B15: Depreciation and amortization | C15: -18103 | D15: -18326 | E15: -19107 | F15: -19198 | G15: -74734 | H15: -19239 | I15: -19303 | J15: -19425 | K15: -19876 | L15: -77843 | M15: -19488 | N15: -20165 | O15: -21539 | P15: -20390 | Q15: -81582 | R15: -20130 | S15: -20115 | T15: -20049 | U15: -19618 | V15: -79912 | W15: -19537 | X15: -25322 | Y15: -20336 | Z15: -26286 | AA15: -20843 | AB15: -26455 | AC15: -21262 | AD15: -26525 | AE15: -81978 | AF15: -104588 | AG15: -26418 | AH15: -26975
B16: Other operating income / (expenses) | C16: -867 | D16: -175 | E16: -394 | F16: -378 | G16: -1814 | H16: -501 | I16: -79 | J16: -1141 | K16: -694 | L16: -2415 | M16: 567 | N16: 82 | O16: 110 | P16: -537 | Q16: 222 | R16: -782 | S16: 87 | T16: -370 | U16: -681 | V16: -1746 | W16: -558 | X16: -558 | Y16: 677 | Z16: 728 | AA16: 1420 | AB16: 1443 | AC16: -662 | AD16: -567 | AE16: 877 | AF16: 1046 | AG16: 1042 | AH16: 154
B17: Operating share of the profit of associates | C17: 621 | D17: 393 | E17: 733 | F17: 1712 | G17: 3459 | H17: 996 | I17: 646 | J17: 883 | K17: 931 | L17: 3456 | M17: 701 | N17: 761 | O17: 795 | P17: 857 | Q17: 3115 | R17: 781 | S17: 714 | T17: 891 | U17: 824 | V17: 3210 | W17: 767 | X17: 750 | Y17: 1080 | Z17: 1085 | AA17: 1035 | AB17: 974 | AC17: 1078 | AD17: 990 | AE17: 3960 | AF17: 3799 | AG17: 1033 | AH17: 1169
B18: Impairment of non-current assets | K18: -3516 | L18: -3516 | T18: -1146 | U18: -2629 | V18: -3775 | AC18: -149 | AD18: -149 | AE18: -149 | AF18: -149 | AG18: 0 | AH18: 0
B19: Provision for investments in distressed Ukrainian banks | F19: -5138 | G19: -5138 | H19: -1698 | L19: -1698
B21: Operating profit | C21: 24051 | D21: 25334 | E21: 29860 | F21: 20613 | G21: 99858 | H21: 21306 | I21: 23877 | J21: 28714 | K21: 20026 | L21: 93923 | M21: 21629 | N21: 20491 | O21: 24152 | P21: 21399 | Q21: 87669 | R21: 21715 | S21: 23861 | T21: 27574 | U21: 22950 | V21: 96100 | W21: 25029 | X21: 26804 | Y21: 25861 | Z21: 27601 | AA21: 31463 | AB21: 32843 | AC21: 26403 | AD21: 28937 | AE21: 108756 | AF21: 116185 | AG21: 28839 | AH21: 29114
B23: Finance income | C23: 958 | D23: 1358 | E23: 1097 | F23: 1106 | G23: 4519 | H23: 2326 | I23: 2437 | J23: 1935 | K23: 1670 | L23: 8368 | M23: 1696 | N23: 1309 | O23: 1180 | P23: 1087 | Q23: 5273 | R23: 973 | S23: 1377 | T23: 1696 | U23: 1502 | V23: 5548 | W23: 1171 | X23: 1171 | Y23: 1251 | Z23: 1251 | AA23: 1379 | AB23: 1415 | AC23: 2180 | AD23: 2144 | AE23: 5981 | AF23: 5981 | AG23: 1757 | AH23: 1166
B24: Finance costs | C24: -4437 | D24: -4043 | E24: -4359 | F24: -4413 | G24: -17252 | H24: -6018 | I24: -6531 | J24: -6709 | K24: -7164 | L24: -26422 | M24: -6606 | N24: -9204 | O24: -5864 | P24: -5462 | Q24: -27136 | R24: -6445 | S24: -7124 | T24: -6094 | U24: -6401 | V24: -26064 | W24: -6405 | X24: -9570 | Y24: -6428 | Z24: -9110 | AA24: -7117 | AB24: -7394 | AC24: -8135 | AD24: -12091 | AE24: -28085 | AF24: -38165 | AG24: -11281 | AH24: -12455
B25: Currency exchange gain or loss | C25: -3766 | D25: 4201 | E25: -9523 | F25: -8838 | G25: -17926 | H25: -3539 | I25: 3699 | J25: -3306 | K25: -3008 | L25: -6154 | M25: 2272 | N25: 1000 | O25: -205 | P25: 174 | Q25: 3241 | R25: 911 | S25: 270 | T25: 83 | U25: 37 | V25: 1301 | W25: 406 | X25: 404 | Y25: -1507 | Z25: -1501 | AA25: -2082 | AB25: -1849 | AC25: -129 | AD25: -648 | AE25: -3312 | AF25: -3594 | AG25: 1104 | AH25: 799
B26: Other income / (expenses) | C26: -199 | D26: 734 | E26: -1325 | F26: -6779 | G26: -7569 | H26: -6 | I26: -594 | J26: -1047 | K26: -1065 | L26: -2712 | M26: -679 | N26: -608 | O26: 500 | P26: -651 | Q26: -1438 | R26: -880 | S26: 263 | T26: 369 | U26: -1070 | V26: -1318 | W26: 1470 | X26: 1470 | Y26: 30 | Z26: 30 | AA26: 607 | AB26: 607 | AC26: 1337 | AD26: 1337 | AE26: 3444 | AF26: 3444 | AG26: -1905 | AH26: -2273
B28: Profit before tax | C28: 16607 | D28: 27584 | E28: 15750 | F28: 1689 | G28: 61630 | H28: 14069 | I28: 22888 | J28: 19587 | K28: 10459 | L28: 67003 | M28: 18312 | N28: 12988 | O28: 19763 | P28: 16547 | Q28: 67609 | R28: 16274 | S28: 18647 | T28: 23628 | U28: 17018 | V28: 75567 | W28: 21671 | X28: 20279 | Y28: 19207 | Z28: 18271 | AA28: 24250 | AB28: 25622 | AC28: 21656 | AD28: 19679 | AE28: 86784 | AF28: 83851 | AG28: 18514 | AH28: 16351
B30: Income tax expense | C30: -3748 | D30: -5615 | E30: -3792 | F30: -2754 | G30: -15909 | H30: -2002 | I30: -5041 | J30: -4279 | K30: -2609 | L30: -13931 | M30: -3346 | N30: -3534 | O30: -4230 | P30: -4028 | Q30: -15138 | R30: -3678 | S30: -3778 | T30: -5534 | U30: -5987 | V30: -18977 | W30: -5052 | X30: -4750 | Y30: -4011 | Z30: -3847 | AA30: -5945 | AB30: -6220 | AC30: -2548 | AD30: -2152 | AE30: -17556 | AF30: -16969 | AG30: -4136 | AH30: -3479
B32: Profit for the period from continuing operations | C32: 12859 | D32: 21969 | E32: 11958 | F32: -1065 | G32: 45721 | H32: 12067 | I32: 17847 | J32: 15308 | K32: 7850 | L32: 53072 | M32: 14966 | N32: 9454 | O32: 15533 | P32: 12519 | Q32: 52471 | R32: 12596 | S32: 14869 | T32: 18094 | U32: 11031 | V32: 56590 | W32: 16619 | X32: 15529 | Y32: 15196 | Z32: 14424 | AA32: 18305 | AB32: 19402 | AC32: 19108 | AD32: 17527 | AE32: 69228 | AF32: 66882 | AG32: 14378 | AH32: 12872
B34: Profit / (loss) after tax for the period from discontinued operation | E34: 3604 | F34: 2171 | G34: 5775 | H34: -2078 | I34: -1159 | J34: -1354 | K34: -1077 | L34: -5668 | M34: -649 | N34: -483 | O34: -2889 | P34: 0 | Q34: -4021 | R34: 0 | S34: 0 | T34: 0 | U34: 0 | V34: 0 | W34: 0 | X34: 0 | Y34: 0 | Z34: 0 | AA34: -55752 | AB34: -55752 | AC34: -3298 | AD34: -3298 | AE34: -59050 | AF34: -59050 | AG34: 3443 | AH34: 0
B36: Profit/(loss) for the period | C36: 12859 | D36: 21969 | E36: 15562 | F36: 1106 | G36: 51496 | H36: 9989 | I36: 16688 | J36: 13954 | K36: 6773 | L36: 47404 | M36: 14317 | N36: 8971 | O36: 12644 | P36: 12519 | Q36: 48450 | R36: 12596 | S36: 14869 | T36: 18094 | U36: 11031 | V36: 56590 | W36: 16619 | X36: 15529 | Y36: 15196 | Z36: 14424 | AA36: -37447 | AB36: -36350 | AC36: 15810 | AD36: 14229 | AE36: 10178 | AF36: 7832 | AG36: 17821 | AH36: 12872
B38: Attributable to:
B39: Owners of the Company
B40: Profit / (loss) for the period from continuing operations | C40: 12708 | D40: 21810 | E40: 11803 | F40: -1235 | G40: 45087 | H40: 11931 | I40: 17655 | J40: 15081 | K40: 7656 | L40: 52323 | M40: 14826 | N40: 9293 | O40: 15361 | P40: 12361 | Q40: 51841 | R40: 12481 | S40: 14729 | T40: 17953 | U40: 10879 | V40: 56042 | W40: 16510 | X40: 15422 | Y40: 15043 | Z40: 14282 | AA40: 17641 | AB40: 18732 | AC40: 19038 | AD40: 17462 | AE40: 68232 | AF40: 65898 | AG40: 14151 | AH40: 12707
B41: Profit / (loss) for the period from discontinued operation | E41: 3604 | F41: 2616 | G41: 6220 | H41: -1044 | I41: -581 | J41: -688 | K41: -521 | L41: -2834 | M41: -319 | N41: -237 | O41: -2810 | P41: 0 | Q41: -3367 | R41: 0 | S41: 0 | T41: 0 | U41: 0 | V41: 0 | W41: 0 | X41: 0 | Y41: 0 | Z41: 0 | AA41: -55752 | AB41: -55752 | AC41: -3298 | AD41: -3298 | AE41: -59050 | AF41: -59050 | AG41: 3443 | AH41: 0
B42: Profit/(loss) for the period attributable to owners of the Company | C42: 12708.379 | D42: 21810 | E42: 15407 | F42: 1381 | G42: 51307 | H42: 10887 | I42: 17074 | J42: 14393 | K42: 7135 | L42: 49489 | M42: 14507 | N42: 9056 | O42: 12551 | P42: 12361 | Q42: 48474 | R42: 12481 | S42: 14729 | T42: 17953 | U42: 10879 | V42: 56042 | W42: 16510 | X42: 15422 | Y42: 15043 | Z42: 14282 | AA42: -38111 | AB42: -37020 | AC42: 15740 | AD42: 14164 | AE42: 9182 | AF42: 6848 | AG42: 17594 | AH42: 12707
B43: Non-controlling interests
B44: Profit for the period from continuing operations | C44: 151.361 | D44: 159 | E44: 155 | F44: 170 | G44: 635 | H44: 136 | I44: 192 | J44: 228 | K44: 194 | L44: 750 | M44: 140 | N44: 160 | O44: 172 | P44: 158 | Q44: 630 | R44: 115 | S44: 140 | T44: 141 | U44: 152 | V44: 548 | W44: 109 | X44: 107 | Y44: 153 | Z44: 142 | AA44: 664 | AB44: 670 | AC44: 70 | AD44: 65 | AE44: 996 | AF44: 984 | AG44: 227 | AH44: 165
B45: Profit / (loss) for the period from discontinued operation | F45: -445 | G45: -445 | H45: -1034 | I45: -578 | J45: -667 | K45: -556 | L45: -2835 | M45: -330 | N45: -245 | O45: -79 | P45: 0 | Q45: -654 | R45: 0 | S45: 0 | T45: 0 | U45: 0 | V45: 0 | W45: 0 | X45: 0 | Y45: 0 | Z45: 0 | AA45: 0 | AB45: 0 | AC45: 0 | AD45: 0 | AE45: 0 | AF45: 0 | AG45: 0 | AH45: 0
B46: Profit for the period attributable to non-controlling interests | C46: 151.361 | D46: 159 | E46: 155 | F46: -275 | G46: 189 | H46: -898 | I46: -386 | J46: -439 | K46: -362 | L46: -2085 | M46: -190 | N46: -85 | O46: 93 | P46: 158 | Q46: -24 | R46: 115 | S46: 140 | T46: 141 | U46: 152 | V46: 548 | W46: 109 | X46: 107 | Y46: 153 | Z46: 142 | AA46: 664 | AB46: 670 | AC46: 70 | AD46: 65 | AE46: 996 | AF46: 984 | AG46: 227 | AH46: 165
B48: Weighted average number of common shares outstanding, in thousands - basic | C48: 1988824 | D48: 1988782 | E48: 1988766 | F48: 1988730 | G48: 1988757 | H48: 1988730 | I48: 1988730 | J48: 1988734 | K48: 1988717 | L48: 1988728 | M48: 1988711 | N48: 1989424 | O48: 1989728 | P48: 1989261 | Q48: 1989282 | R48: 1978525 | S48: 1955245 | T48: 1954830 | U48: 1927070 | V48: 1953779 | W48: 1894606 | X48: 1894606 | Y48: 1886217 | Z48: 1886217 | AA48: 1876421 | AB48: 1876421 | AC48: 1837425 | AD48: 1837425 | AE48: 1873563 | AF48: 1873563 | AG48: 1803301 | AH48: 1775144
B49: Earnings per share attributable to the Group - basic
B50: EPS from continuing operations | C50: 6.39 | D50: 10.97 | E50: 5.93 | F50: -0.62 | G50: 22.67 | H50: 6 | I50: 8.88 | J50: 7.58 | K50: 3.85 | L50: 26.31 | M50: 7.46 | N50: 4.67 | O50: 7.72 | P50: 6.22 | Q50: 26.06 | R50: 6.31 | S50: 7.52 | T50: 9.18 | U50: 5.65 | V50: 28.68 | W50: 8.71 | X50: 8.14 | Y50: 7.98 | Z50: 7.57 | AA50: 9.4 | AB50: 9.98 | AC50: 10.36 | AD50: 9.5 | AE50: 36.42 | AF50: 35.17 | AG50: 7.85 | AH50: 7.16
B51: EPS from discontinued operation | E51: 1.81 | F51: 1.32 | G51: 3.13 | H51: -0.52 | I51: -0.29 | J51: -0.35 | K51: -0.26 | L51: -1.43 | M51: -0.16 | N51: -0.12 | O51: -1.41 | P51: 0 | Q51: -1.69 | R51: 0 | S51: 0 | T51: 0 | U51: 0 | V51: 0 | W51: 0 | X51: 0 | Y51: 0 | Z51: 0 | AA51: -29.71 | AB51: -29.71 | AC51: -1.79 | AD51: -1.79 | AE51: -31.52 | AF51: -31.52 | AG51: 1.91 | AH51: 0
B52: Total EPS | C52: 6.39 | D52: 10.97 | E52: 7.74 | F52: 0.7 | G52: 25.8 | H52: 5.48 | I52: 8.59 | J52: 7.23 | K52: 3.59 | L52: 24.88 | M52: 7.29 | N52: 4.55 | O52: 6.31 | P52: 6.22 | Q52: 24.37 | R52: 6.31 | S52: 7.52 | T52: 9.18 | U52: 5.65 | V52: 28.68 | W52: 8.71 | X52: 8.14 | Y52: 7.98 | Z52: 7.57 | AA52: -20.31 | AB52: -19.73 | AC52: 8.57 | AD52: 7.71 | AE52: 4.9 | AF52: 3.65 | AG52: 9.76 | AH52: 7.16
B54: Weighted average number of common shares outstanding, in thousands - diluted | C54: 1989775 | D54: 1989733 | E54: 1989717 | F54: 1989950.949 | G54: 1989978 | H54: 1989951 | I54: 1989951 | J54: 1989955 | K54: 1990185 | L54: 1990196 | M54: 1990178 | N54: 1990174 | O54: 1990171 | P54: 1989656 | Q54: 1990694 | R54: 1980880 | S54: 1957012 | T54: 1956334 | U54: 1928574 | V54: 1955558 | W54: 1896110 | X54: 1896110 | Y54: 1888336 | Z54: 1888336 | AA54: 1878142 | AB54: 1878142 | AC54: 1839147 | AD54: 1839147 | AE54: 1875721 | AF54: 1875721 | AG54: 1806020 | AH54: 1777557
B55: Earnings per share attributable to the Group - diluted
B56: EPS from continuing operations | C56: 6.39 | D56: 10.96 | E56: 5.93 | F56: -0.62 | G56: 22.66 | H56: 6 | I56: 8.87 | J56: 7.58 | K56: 3.85 | L56: 26.29 | M56: 7.45 | N56: 4.67 | O56: 7.72 | P56: 6.21 | Q56: 26.04 | R56: 6.3 | S56: 7.52 | T56: 9.18 | U56: 5.64 | V56: 28.66 | W56: 8.71 | X56: 8.13 | Y56: 7.97 | Z56: 7.56 | AA56: 9.39 | AB56: 9.97 | AC56: 10.35 | AD56: 9.49 | AE56: 36.38 | AF56: 35.13 | AG56: 7.84 | AH56: 7.15
B57: EPS from discontinued operation | E57: 1.81 | F57: 1.31 | G57: 3.12 | H57: -0.52 | I57: -0.29 | J57: -0.35 | K57: -0.26 | L57: -1.42 | M57: -0.16 | N57: -0.12 | O57: -1.41 | P57: 0 | Q57: -1.69 | R57: 0 | S57: 0 | T57: 0 | U57: 0 | V57: 0 | W57: 0 | X57: 0 | Y57: 0 | Z57: 0 | AA57: -29.68 | AB57: -29.68 | AC57: -1.79 | AD57: -1.79 | AE57: -31.48 | AF57: -31.48 | AG57: 1.91 | AH57: 0
B58: Total EPS | C58: 6.39 | D58: 10.96 | E58: 7.74 | F58: 0.69 | G58: 25.78 | H58: 5.48 | I58: 8.58 | J58: 7.23 | K58: 3.59 | L58: 24.87 | M58: 7.29 | N58: 4.55 | O58: 6.31 | P58: 6.21 | Q58: 24.35 | R58: 6.3 | S58: 7.52 | T58: 9.18 | U58: 5.64 | V58: 28.66 | W58: 8.71 | X58: 8.13 | Y58: 7.97 | Z58: 7.56 | AA58: -20.29 | AB58: -19.71 | AC58: 8.56 | AD58: 7.7 | AE58: 4.9 | AF58: 3.65 | AG58: 9.75 | AH58: 7.15
B60: Adjusted OIBDA** | C60: 42154 | D60: 43661 | E60: 48967 | F60: 44949 | G60: 179730 | H60: 42243 | I60: 43180 | J60: 48139 | K60: 43418 | L60: 176980 | M60: 41117 | N60: 40656 | O60: 45691 | P60: 41788 | Q60: 169252 | R60: 41845 | S60: 43976 | T60: 48769 | U60: 45197 | V60: 179787 | W60: 44566 | X60: 52126 | Y60: 46197 | Z60: 53887 | AA60: 52306 | AB60: 59298 | AC60: 47814 | AD60: 55611 | AE60: 190883 | AF60: 220922 | AG60: 55257 | AH60: 56089
B61: Adjusted OIBDA margin | C61: 0.432 | D61: 0.442 | E61: 0.457 | F61: 0.41 | G61: 0.438 | H61: 0.424 | I61: 0.424 | J61: 0.423 | K61: 0.39 | L61: 0.415 | M61: 0.388 | N61: 0.383 | O61: 0.407 | P61: 0.374 | Q61: 0.388 | R61: 0.4 | S61: 0.412 | T61: 0.426 | U61: 0.387 | V61: 0.406 | W61: 0.411 | X61: 0.483 | Y61: 0.402 | Z61: 0.471 | AA61: 0.407 | AB61: 0.463 | AC61: 0.366 | AD61: 0.428 | AE61: 0.396 | AF61: 0.46 | AG61: 0.468 | AH61: 0.448
B63: " - Financial data for the period, excluding effects of new standards
B64: * Data were retrospectively adjusted on discontinued operation in Uzbekistan
B65: ** Adjusted OIBDA for Q4 2014 and 2014 doesn't include a provision for cash balances deposited in distressed Ukrainian banks of RUB 5,138 mln. Adjusted OIBDA for 1Q 2015 and 2015 doesn't include a provision for cash balances deposited in distressed Ukrainian banks of RUB 1,698 mln. Adjusted OIBDA for 4Q 2015 and 2015 doesn't include a loss from impairment of goodwill in Armenia of RUB 3,516 mln. Adjusted OIBDA for 3Q 2017, 4Q 2017 and 2017 doesn't include a loss from impairment of non-current assets of RUB 1,146 mln, RUB 2,629 mln and RUB 3,775 mln, respectively. Adjusted OIBDA for 4Q 2018 and 2018 doesn't nclude a loss from impairment of non-current assets of RUB 149 mln.

Sheet Statement of financial position
B2: MOBILE TELESYSTEMS (NYSE: MBT)
B3: CONDENSED UNAUDITED CONSOLIDATED STATEMENTS OF FINANCIAL POSITION
C4: 2014 | G4: 2015 | K4: 2016 | O4: 2017 | S4: 2018 | AA4: 2019
B5: (Amounts in millions of RUB, except share amounts) | C5: Mar 31 | D5: Jun 30 | E5: Sep 30 | F5: Dec 31 | G5: Mar 31 | H5: Jun 30 | I5: Sep 30 | J5: Dec 31 | K5: Mar 31 | L5: Jun 30 | M5: Sep 30 | N5: Dec 31 | O5: Mar 31 | P5: Jun 30 | Q5: Sep 30 | R5: Dec 31 | S5: Mar 31" | T5: Mar 31 | U5: Jun 30" | V5: Jun 30 | W5: Sep 30" | X5: Sep 30 | Y5: Dec 31" | Z5: Dec 31 | AA5: Mar 31 | AB5: Jun 30
B6: NON-CURRENT ASSETS:
B7: Property, plant and equipment | C7: 259606 | D7: 263490 | E7: 271885 | F7: 299023 | G7: 293770 | H7: 291118 | I7: 295220 | J7: 302662 | K7: 292949 | L7: 288402 | M7: 275670 | N7: 272841 | O7: 262296 | P7: 263991 | Q7: 262257 | R7: 263063 | S7: 261136 | T7: 251944 | U7: 267543 | V7: 256472 | W7: 279966 | X7: 268493 | Y7: 289057 | Z7: 276443 | AA7: 273276 | AB7: 276530
B8: Investment property | C8: 2250 | D8: 2252 | E8: 2004 | F8: 290 | G8: 290 | H8: 314 | I8: 313 | J8: 364 | K8: 363 | L8: 359 | M8: 367 | N8: 336 | O8: 369 | P8: 408 | Q8: 402 | R8: 407 | S8: 420 | T8: 420 | U8: 732 | V8: 732 | W8: 5392 | X8: 5392 | Y8: 2177 | Z8: 2177 | AA8: 2056 | AB8: 2798
B9: Right-of-use assets | T9: 146011 | V9: 150211 | X9: 148588 | Y9: 0 | Z9: 149007 | AA9: 149458 | AB9: 149530
B10: Intangible assets | C10: 73798 | D10: 73554 | E10: 81484 | F10: 98520 | G10: 105575 | H10: 105374 | I10: 109023 | J10: 109064 | K10: 107925 | L10: 110609 | M10: 106728 | N10: 108813 | O10: 106663 | P10: 106249 | Q10: 106201 | R10: 113678 | S10: 119860 | T10: 126298 | U10: 121145 | V10: 129582 | W10: 120596 | X10: 129002 | Y10: 128052 | Z10: 135069 | AA10: 132289 | AB10: 133947
B11: Investments in associates | C11: 10968 | D11: 13156 | E11: 14415 | F11: 15217 | G11: 14995 | H11: 12383 | I11: 12198 | J11: 9299 | K11: 8938 | L11: 8545 | M11: 9064 | N11: 10551 | O11: 9988 | P11: 9476 | Q11: 9863 | R11: 9452 | S11: 10128 | T11: 9466 | U11: 11896 | V11: 11432 | W11: 10585 | X11: 10475 | Y11: 10933 | Z11: 10735 | AA11: 5503 | AB11: 5629
B12: Deferred tax assets | C12: 1971 | D12: 1780 | E12: 2211 | F12: 6186 | G12: 6165 | H12: 5633 | I12: 7277 | J12: 9287 | K12: 8668 | L12: 8816 | M12: 6594 | N12: 6150 | O12: 6686 | P12: 7019 | Q12: 7077 | R12: 5545 | S12: 6569 | T12: 6569 | U12: 6509 | V12: 6509 | W12: 9767 | X12: 9767 | Y12: 11190 | Z12: 11190 | AA12: 11552 | AB12: 12404
B13: Income tax assets | C13: 640 | D13: 657 | E13: 895 | H13: 836 | I13: 699 | N13: 0 | O13: 0 | P13: 0 | Q13: 0 | R13: 0 | S13: 0 | T13: 0 | U13: 0 | V13: 0 | W13: 0 | X13: 0 | Y13: 0 | Z13: 0 | AA13: 0 | AB13: 0
B14: Other non-financial assets | G14: 6 | H14: 10 | I14: 112 | J14: 480 | K14: 503 | L14: 682 | M14: 577 | N14: 896 | O14: 1666 | P14: 1929 | Q14: 2015 | R14: 2048 | S14: 1579 | T14: 1748 | U14: 1440 | V14: 1583 | W14: 1436 | X14: 1660 | Y14: 4527 | Z14: 5038 | AA14: 5173 | AB14: 4910
B15: Other investments | C15: 5888 | D15: 19974 | E15: 6819 | F15: 17065 | G15: 41346 | H15: 40089 | I15: 31386 | J15: 34667 | K15: 32884 | L15: 34386 | M15: 34215 | N15: 36319 | O15: 6423 | P15: 6609 | Q15: 6589 | R15: 1953 | S15: 1948 | T15: 1948 | U15: 2073 | V15: 2073 | W15: 19258 | X15: 19200 | Y15: 16931 | Z15: 16873 | AA15: 16924 | AB15: 15576
B16: Accounts receivable, related parties | G16: 3850 | H16: 3154 | I16: 3244 | J16: 3335 | K16: 3424 | L16: 3513 | M16: 3603 | N16: 3693 | O16: 3782 | P16: 3900 | Q16: 3984 | R16: 2 | S16: 2 | T16: 2 | U16: 1127 | V16: 1127 | W16: 2 | X16: 2 | Y16: 2545 | Z16: 2545 | AA16: 14154 | AB16: 14226
B17: Bank loans to customers and interbank loans due from banks | W17: 28404 | X17: 27347 | Y17: 31710 | Z17: 30653 | AA17: 32889 | AB17: 39954
B18: Other financial assets | C18: 4712 | D18: 3293 | E18: 7192 | F18: 21950 | G18: 20341 | H18: 17348 | I18: 22440 | J18: 25203 | K18: 20228 | L18: 17773 | M18: 15712 | N18: 13877 | O18: 10849 | P18: 11438 | Q18: 9559 | R18: 8890 | S18: 5057 | T18: 5057 | U18: 4623 | V18: 4623 | W18: 2503 | X18: 3072 | Y18: 6607 | Z18: 7329 | AA18: 6532 | AB18: 5266
B19: Total non-current assets | C19: 359833 | D19: 378156 | E19: 386905 | F19: 458251 | G19: 486338 | H19: 476259 | I19: 481912 | J19: 494361 | K19: 475882 | L19: 473085 | M19: 452530 | N19: 453476 | O19: 408722 | P19: 411019 | Q19: 407947 | R19: 405038 | S19: 406699 | T19: 549463 | U19: 417088 | V19: 564344 | W19: 477909 | X19: 622998 | Y19: 503729 | Z19: 647059 | AA19: 649806 | AB19: 660770
B21: CURRENT ASSETS:
B22: Inventories | C22: 7476 | D22: 7281 | E22: 7779 | F22: 7509 | G22: 7696 | H22: 9984 | I22: 15813 | J22: 14510 | K22: 12583 | L22: 12813 | M22: 13017 | N22: 14330 | O22: 12228 | P22: 11269 | Q22: 11789 | R22: 9995 | S22: 13318 | T22: 13318 | U22: 17307 | V22: 17307 | W22: 19832 | X22: 19832 | Y22: 18654 | Z22: 18654 | AA22: 16678 | AB22: 14622
B23: Trade and other receivables | C23: 31589 | D23: 31289 | E23: 33819 | F23: 34463 | G23: 35098 | H23: 35504 | I23: 41554 | J23: 34542 | K23: 36060 | L23: 37252 | M23: 32461 | N23: 29805 | O23: 28358 | P23: 31411 | Q23: 33416 | R23: 28017 | S23: 27914 | T23: 27914 | U23: 30234 | V23: 30001 | W23: 27484 | X23: 27251 | Y23: 34759 | Z23: 34543 | AA23: 35513 | AB23: 37015
B24: Accounts receivable, related parties | C24: 1183 | D24: 4211 | E24: 4241 | F24: 4525 | G24: 4847 | H24: 5394 | I24: 5936 | J24: 6326 | K24: 5975 | L24: 2447 | M24: 3037 | N24: 4401 | O24: 4754 | P24: 4344 | Q24: 6126 | R24: 11358 | S24: 12704 | T24: 12704 | U24: 12469 | V24: 12469 | W24: 11312 | X24: 11312 | Y24: 6385 | Z24: 6385 | AA24: 7686 | AB24: 5486
B25: Bank loans to customers and interbank loans due from banks | W25: 38209 | X25: 37083 | Y25: 33511 | Z25: 32385 | AA25: 32715 | AB25: 35933
B26: Short-term investments | C26: 39073 | D26: 20778 | E26: 23999 | F26: 9942 | G26: 42993 | H26: 46319 | I26: 56627 | J26: 49840 | K26: 30961 | L26: 27978 | M26: 11689 | N26: 8657 | O26: 44524 | P26: 67459 | Q26: 60596 | R26: 50757 | S26: 26354 | T26: 26354 | U26: 52970 | V26: 52970 | W26: 46367 | X26: 46354 | Y26: 48354 | Z26: 47863 | AA26: 26588 | AB26: 15165
B27: VAT receivable | C27: 6310 | D27: 6312 | E27: 7556 | F27: 8071 | G27: 8385 | H27: 9653 | I27: 11793 | J27: 9815 | K27: 9792 | L27: 7041 | M27: 7018 | N27: 7098 | O27: 6873 | P27: 7465 | Q27: 7582 | R27: 7165 | S27: 6859 | T27: 6859 | U27: 9060 | V27: 9060 | W27: 9233 | X27: 9233 | Y27: 7415 | Z27: 7415 | AA27: 8525 | AB27: 9335
B28: Income tax assets | C28: 7784 | D28: 5385 | E28: 4230 | F28: 8656 | G28: 6882 | H28: 3858 | I28: 5315 | J28: 5190 | K28: 4468 | L28: 3655 | M28: 1233 | N28: 1601 | O28: 1533 | P28: 2718 | Q28: 1137 | R28: 2838 | S28: 3504 | T28: 3504 | U28: 2594 | V28: 2594 | W28: 2417 | X28: 2417 | Y28: 3887 | Z28: 3887 | AA28: 1847 | AB28: 5949
B29: Assets held for sale | C29: 461 | D29: 43 | E29: 888 | F29: 2136 | G29: 443 | H29: 659 | I29: 585 | J29: 549 | K29: 826 | L29: 461 | M29: 632 | N29: 808 | O29: 1277 | P29: 1339 | Q29: 1276 | R29: 1276 | S29: 1416 | T29: 1416 | U29: 1461 | V29: 1461 | W29: 1262 | X29: 1262 | Y29: 2694 | Z29: 2694 | AA29: 1085 | AB29: 663
B30: Advances paid and prepaid expenses, contract and other non-financial current assets | C30: 2954 | D30: 3182 | E30: 3448 | F30: 4341 | G30: 4338 | H30: 3533 | I30: 4436 | J30: 4781 | K30: 4080 | L30: 5665 | M30: 5299 | N30: 5824 | O30: 3822 | P30: 3709 | Q30: 3391 | R30: 4040 | S30: 3585 | T30: 3616 | U30: 4725 | V30: 4694 | W30: 4548 | X30: 4551 | Y30: 5517 | Z30: 5546 | AA30: 4625 | AB30: 4679
B31: Other financial current assets | W31: 24059 | X31: 24059 | Y31: 25487 | Z31: 25487 | AA31: 18957 | AB31: 22757
B32: Cash and cash equivalents | C32: 37207 | D32: 53449 | E32: 45937 | F32: 61410 | G32: 43776 | H32: 44120 | I32: 25149 | J32: 33464 | K32: 44389 | L32: 24956 | M32: 36489 | N32: 18470 | O32: 25353 | P32: 34272 | Q32: 23430 | R32: 30586 | S32: 56923 | T32: 56923 | U32: 57292 | V32: 57292 | W32: 101144 | X32: 101144 | Y32: 84075 | Z32: 84075 | AA32: 66346 | AB32: 51243
B33: Total current assets | C33: 134037 | D33: 131930 | E33: 131897 | F33: 141053 | G33: 154458 | H33: 159024 | I33: 167208 | J33: 159017 | K33: 149134 | L33: 122268 | M33: 110875 | N33: 90994 | O33: 128722 | P33: 163986 | Q33: 148743 | R33: 146032 | S33: 152577 | T33: 152608 | U33: 188112 | V33: 187848 | W33: 285867 | X33: 284498 | Y33: 270738 | Z33: 268934 | AA33: 220565 | AB33: 202847
B35: Total assets | C35: 493870 | D35: 510086 | E35: 518802 | F35: 599304 | G35: 640796 | H35: 635283 | I35: 649120 | J35: 653378 | K35: 625016 | L35: 595353 | M35: 563405 | N35: 544470 | O35: 537444 | P35: 575005 | Q35: 556690 | R35: 551070 | S35: 559276 | T35: 702071 | U35: 605200 | V35: 752192 | W35: 763776 | X35: 907496 | Y35: 774467 | Z35: 915993 | AA35: 870371 | AB35: 863617
B37: EQUITY:
B38: Equity attributable to owners of the Company* | C38: 161708 | D38: 143863 | E38: 155856 | F38: 168829 | G38: 170563 | H38: 148509 | I38: 155404 | J38: 160115 | K38: 165415 | L38: 145216 | M38: 130572 | N38: 139235 | O38: 139528 | P38: 126866 | Q38: 121283 | R38: 120126 | S38: 128871 | T38: 131608 | U38: 105350 | V38: 109268 | W38: 56517 | X38: 59742 | Y38: 65356 | Z38: 65274 | AA38: 65958 | AB38: 36722
B39: Non-controlling interests | C39: 4256 | D39: 4201 | E39: 7953 | F39: 9793 | G39: 9221 | H39: 8348 | I39: 8511 | J39: 8256 | K39: 7568 | L39: 6218 | M39: 4569 | N39: 4713 | O39: 4921 | P39: 3786 | Q39: 3927 | R39: 4079 | S39: 4187 | T39: 4206 | U39: 3233 | V39: 3242 | W39: 12285 | X39: 12300 | Y39: 12282 | Z39: 12291 | AA39: 4766 | AB39: 3816
B40: Total equity | C40: 165964 | D40: 148064 | E40: 163809 | F40: 178622 | G40: 179784 | H40: 156857 | I40: 163915 | J40: 168371 | K40: 172983 | L40: 151434 | M40: 135141 | N40: 143948 | O40: 144449 | P40: 130652 | Q40: 125210 | R40: 124205 | S40: 133058 | T40: 135814 | U40: 108583 | V40: 112510 | W40: 68802 | X40: 72042 | Y40: 77638 | Z40: 77565 | AA40: 70724 | AB40: 40538
B42: NON-CURRENT LIABILITIES:
B43: Borrowings | C43: 195318 | D43: 207306 | E43: 215264 | F43: 239692 | G43: 275054 | H43: 261589 | I43: 275576 | J43: 280937 | K43: 258606 | L43: 224337 | M43: 207585 | N43: 226697 | O43: 221033 | P43: 244803 | Q43: 225797 | R43: 228041 | S43: 221303 | T43: 218400 | U43: 252138 | V43: 249836 | W43: 368135 | X43: 362082 | Y43: 370557 | Z43: 365072 | AA43: 343966 | AB43: 308245
B44: Lease obligation | C44: 6 | D44: 5287 | E44: 6100 | F44: 8857 | G44: 9856 | H44: 8466 | I44: 10417 | J44: 11231 | K44: 10650 | L44: 10297 | M44: 10115 | N44: 10416 | O44: 9496 | P44: 10953 | Q44: 11062 | R44: 11055 | S44: 11053 | T44: 135327 | U44: 13186 | V44: 141472 | W44: 13585 | X44: 142223 | Y44: 15598 | Z44: 144740 | AA44: 147741 | AB44: 147722
B45: Deferred tax liabilities | C45: 16252 | D45: 16783 | E45: 18714 | F45: 24809 | G45: 23929 | H45: 23912 | I45: 26016 | J45: 27346 | K45: 28036 | L45: 29094 | M45: 28418 | N45: 26611 | O45: 25776 | P45: 25967 | Q45: 25459 | R45: 23773 | S45: 23551 | T45: 24405 | U45: 22763 | V45: 23856 | W45: 24386 | X45: 25754 | Y45: 23916 | Z45: 24439 | AA45: 21528 | AB45: 21085
B46: Provisions | C46: 3689 | D46: 3695 | E46: 3793 | F46: 2838 | G46: 2916 | H46: 2957 | I46: 3037 | J46: 2565 | K46: 2713 | L46: 2221 | M46: 2397 | N46: 2350 | O46: 2292 | P46: 2427 | Q46: 2325 | R46: 2309 | S46: 2326 | T46: 2326 | U46: 3529 | V46: 3529 | W46: 3343 | X46: 3343 | Y46: 3391 | Z46: 3391 | AA46: 4730 | AB46: 5187
B47: Bank deposits and liabilities | W47: 9607 | X47: 9607 | Y47: 2633 | Z47: 2633 | AA47: 2879 | AB47: 2930
B48: Other financial liabilities | C48: 3563 | D48: 2623 | E48: 3193 | F48: 522 | G48: 550 | H48: 520 | I48: 605 | J48: 676 | K48: 654 | L48: 554 | M48: 544 | N48: 2774 | O48: 3231 | P48: 2886 | Q48: 2676 | R48: 1048 | S48: 1530 | T48: 1530 | U48: 770 | V48: 770 | W48: 1399 | X48: 1399 | Y48: 481 | Z48: 481 | AA48: 620 | AB48: 706
B49: Other non-financial liabilities | C49: 4687 | D49: 4581 | E49: 4466 | F49: 4584 | G49: 4570 | H49: 4618 | I49: 4732 | J49: 4342 | K49: 4234 | L49: 4182 | M49: 4114 | N49: 4129 | O49: 3799 | P49: 4022 | Q49: 4005 | R49: 3968 | S49: 3874 | T49: 2823 | U49: 3624 | V49: 2573 | W49: 3511 | X49: 2460 | Y49: 3252 | Z49: 2201 | AA49: 2103 | AB49: 2029
B50: Total non-current liabilities | C50: 223515 | D50: 240275 | E50: 251530 | F50: 281302 | G50: 316875 | H50: 302062 | I50: 320383 | J50: 327097 | K50: 304893 | L50: 270685 | M50: 253173 | N50: 272977 | O50: 265627 | P50: 291058 | Q50: 271324 | R50: 270194 | S50: 263637 | T50: 384811 | U50: 296010 | V50: 422036 | W50: 423966 | X50: 546868 | Y50: 419828 | Z50: 542957 | AA50: 523567 | AB50: 487904
B52: CURRENT LIABILITIES:
B53: Borrowings | C53: 24446 | D53: 9567 | E53: 10566 | F53: 40878 | G53: 44119 | H53: 48555 | I53: 58996 | J53: 53137 | K53: 45046 | L53: 48323 | M53: 58668 | N53: 46577 | O53: 48823 | P53: 40275 | Q53: 50131 | R53: 63673 | S53: 72292 | T53: 72292 | U53: 60826 | V53: 59973 | W53: 13738 | X53: 13738 | Y53: 3063 | Z53: 3063 | AA53: 42835 | AB53: 68739
B54: Lease obligation | C54: 24 | D54: 313 | E54: 364 | F54: 538 | G54: 633 | H54: 366 | I54: 431 | J54: 564 | K54: 617 | L54: 686 | M54: 532 | N54: 630 | O54: 667 | P54: 698 | Q54: 849 | R54: 801 | S54: 796 | T54: 15876 | U54: 912 | V54: 15910 | W54: 1062 | X54: 16046 | Y54: 810 | Z54: 15812 | AA54: 16345 | AB54: 17591
B55: Provisions | C55: 8927 | D55: 6576 | E55: 7408 | F55: 8684 | G55: 6596 | H55: 8005 | I55: 7312 | J55: 7863 | K55: 10373 | L55: 5691 | M55: 6189 | N55: 8075 | O55: 10355 | P55: 6722 | Q55: 7575 | R55: 9852 | S55: 12586 | T55: 12586 | U55: 7890 | V55: 7890 | W55: 66039 | X55: 65969 | Y55: 70981 | Z55: 70911 | AA55: 14185 | AB55: 8815
B56: Trade and other payables | C56: 40535 | D56: 75584 | E56: 54364 | F56: 52811 | G56: 61957 | H56: 87725 | I56: 65083 | J56: 57756 | K56: 56301 | L56: 82981 | M56: 73154 | N56: 41473 | O56: 37781 | P56: 76786 | Q56: 73269 | R56: 47314 | S56: 42037 | T56: 42205 | U56: 93883 | V56: 93160 | W56: 56360 | X56: 55408 | Y56: 53702 | Z56: 53623 | AA56: 48386 | AB56: 84300
B57: Accounts payable, related parties | C57: 3112 | D57: 2627 | E57: 2881 | F57: 4674 | G57: 3431 | H57: 2816 | I57: 2891 | J57: 1809 | K57: 1558 | L57: 1702 | M57: 1454 | N57: 1014 | O57: 863 | P57: 1251 | Q57: 2192 | R57: 1102 | S57: 1194 | T57: 1194 | U57: 1940 | V57: 1940 | W57: 1750 | X57: 1750 | Y57: 1301 | Z57: 1301 | AA57: 601 | AB57: 909
B58: Bank deposits and liabilities | W58: 98896 | X58: 98896 | Y58: 108821 | Z58: 108821 | AA58: 105013 | AB58: 110569
B59: Income tax liabilities | C59: 650 | D59: 1560 | E59: 1247 | F59: 1368 | G59: 561 | H59: 468 | I59: 548 | J59: 831 | K59: 1379 | L59: 1045 | M59: 2251 | N59: 962 | O59: 605 | P59: 688 | Q59: 1390 | R59: 1150 | S59: 2656 | T59: 2656 | U59: 1853 | V59: 1853 | W59: 1441 | X59: 1441 | Y59: 1792 | Z59: 1792 | AA59: 2380 | AB59: 1564
B60: Other financial liabilities | C60: 20 | D60: 7 | F60: 5220 | G60: 3192 | H60: 3069 | I60: 3653 | J60: 9778 | K60: 8054 | L60: 7991 | M60: 6475 | N60: 3049 | O60: 1859 | P60: 1933 | Q60: 1021 | R60: 3036 | S60: 2017 | T60: 2017 | U60: 2667 | V60: 2667 | W60: 2812 | X60: 2812 | Y60: 4648 | Z60: 4648 | AA60: 6023 | AB60: 1804
B61: Other non-financial and contract liabilities | C61: 26677 | D61: 25513 | E61: 26633 | F61: 25207 | G61: 23648 | H61: 25360 | I61: 25908 | J61: 26172 | K61: 23812 | L61: 24815 | M61: 26368 | N61: 25765 | O61: 26415 | P61: 24942 | Q61: 23729 | R61: 29743 | S61: 29003 | T61: 32620 | U61: 30636 | V61: 34253 | W61: 28910 | X61: 32526 | Y61: 31883 | Z61: 35500 | AA61: 40312 | AB61: 40884
B62: Total current liabilities | C62: 104391 | D62: 121747 | E62: 103463 | F62: 139380 | G62: 144137 | H62: 176364 | I62: 164822 | J62: 157910 | K62: 147140 | L62: 173234 | M62: 175091 | N62: 127545 | O62: 127368 | P62: 153295 | Q62: 160156 | R62: 156671 | S62: 162581 | T62: 181446 | U62: 200607 | V62: 217646 | W62: 271008 | X62: 288586 | Y62: 277001 | Z62: 295471 | AA62: 276080 | AB62: 335175
B64: Total equity and liabilities | C64: 493870 | D64: 510086 | E64: 518802 | F64: 599304 | G64: 640796 | H64: 635283 | I64: 649120 | J64: 653378 | K64: 625016 | L64: 595353 | M64: 563405 | N64: 544470 | O64: 537444 | P64: 575005 | Q64: 556690 | R64: 551070 | S64: 559276 | T64: 702071 | U64: 605200 | V64: 752192 | W64: 763776 | X64: 907496 | Y64: 774467 | Z64: 915993 | AA64: 870371 | AB64: 863617
B66: Net debt | C66: ='Group reconciliations'!C15 -> 140575 | D66: ='Group reconciliations'!D15 -> 126765 | E66: ='Group reconciliations'!E15 -> 150214 | F66: ='Group reconciliations'!F15 -> 175318 | G66: ='Group reconciliations'!G15 -> 176660 | H66: ='Group reconciliations'!H15 -> 168059 | I66: ='Group reconciliations'!I15 -> 205303 | J66: ='Group reconciliations'!J15 -> 204062 | K66: ='Group reconciliations'!K15 -> 186752 | L66: ='Group reconciliations'!L15 -> 178757 | M66: ='Group reconciliations'!M15 -> 177952 | N66: ='Group reconciliations'!N15 -> 209854 | O66: ='Group reconciliations'!O15 -> 193089 | P66: ='Group reconciliations'!P15 -> 175365 | Q66: ='Group reconciliations'!Q15 -> 185171 | R66: ='Group reconciliations'!R15 -> 204304 | S66: ='Group reconciliations'!S15 -> 207040 | T66: ='Group reconciliations'!T15 -> 204137 | U66: ='Group reconciliations'!U15 -> 197646 | V66: ='Group reconciliations'!V15 -> 194491 | W66: ='Group reconciliations'!W15 -> 232919 | X66: ='Group reconciliations'!X15 -> 226878 | Y66: ='Group reconciliations'!Y15 -> 237765.8626 | Z66: ='Group reconciliations'!Z15 -> 232771.8626 | AA66: ='Group reconciliations'!AA15 -> 292409 | AB66: ='Group reconciliations'!AB15 -> 310104
B67: Net debt/LTM adjusted OIBDA | C67: ='Group reconciliations'!C24 -> x | D67: ='Group reconciliations'!D24 -> x | E67: ='Group reconciliations'!E24 -> x | F67: ='Group reconciliations'!F24 -> 1 | G67: ='Group reconciliations'!G24 -> 1 | H67: ='Group reconciliations'!H24 -> 0.9 | I67: ='Group reconciliations'!I24 -> 1.2 | J67: ='Group reconciliations'!J24 -> 1.2 | K67: ='Group reconciliations'!K24 -> 1.1 | L67: ='Group reconciliations'!L24 -> 1 | M67: ='Group reconciliations'!M24 -> 1 | N67: ='Group reconciliations'!N24 -> 1.2 | O67: ='Group reconciliations'!O24 -> 1.1 | P67: ='Group reconciliations'!P24 -> 1 | Q67: ='Group reconciliations'!Q24 -> 1 | R67: ='Group reconciliations'!R24 -> 1.1 | S67: ='Group reconciliations'!S24 -> 1.1 | T67: ='Group reconciliations'!T24 -> x | U67: ='Group reconciliations'!U24 -> 1.1 | V67: ='Group reconciliations'!V24 -> x | W67: ='Group reconciliations'!W24 -> 1.2 | X67: ='Group reconciliations'!X24 -> x | Y67: ='Group reconciliations'!Y24 -> 1.2 | Z67: ='Group reconciliations'!Z24 -> x | AA67: ='Group reconciliations'!AA24 -> 1.5 | AB67: ='Group reconciliations'!AB24 -> 1.6
B70: *Common stock: 1,998,381,575 shares issued with a par value of 0.1 rubles as of June 30, 2019 and 1,998,381,575 shares issued with a par value of 0.1 rubles as of March 31, 2019. Treasury stock: 225 547 421 common shares at cost as of June 30, 2019 and 207 708 583 common shares at cost as of March 31, 2019

Sheet Statement of cash flows
B2: MOBILE TELESYSTEMS (NYSE: MBT)
B3: CONDENSED UNAUDITED CONSOLIDATED STATEMENTS OF CASH FLOWS
C4: 2014 | G4: 2015 | K4: 2016 | S4: 2017 | W4: 2018 | AE4: 2019
B5: (Amounts in millions of RUB) | C5: Mar 31 | D5: Jun 30 | E5: Sep 30 | F5: Dec 31 | G5: Mar 31 | H5: Jun 30 | I5: Sep30 | J5: Dec 31 | K5: Mar 31 | L5: Jun 30 | M5: Sep 30 | N5: Sep 30 | O5: Sep 30 | P5: Dec 31 | Q5: Dec 31 | R5: Dec 31 | S5: Mar 31 | T5: Jun 30 | U5: Sep 30 | V5: Dec 31 | W5: Mar 31" | X5: Mar 31 | Y5: Jun 30" | Z5: Jun 30 | AA5: Sep 30" | AB5: Sep 30 | AC5: Dec 31" | AD5: Dec 31 | AE5: Mar 31 | AF5: Jun 30
M6: Cash flows from discontinued operation | N6: Cash flows from continuing operations | O6: Total | P6: Cash flows from discontinued operations | Q6: Cash flows from continuing operations | R6: Total
B7: CASH FLOWS FROM OPERATING ACTIVITIES:
B9: Profit for the period | C9: 12859 | D9: 34827 | E9: 50390 | F9: 51496 | G9: 9989 | H9: 26677 | I9: 40631 | J9: 47404 | K9: 14317 | L9: 23288 | M9: -4021 | N9: 39953 | O9: 35932 | P9: -4021 | Q9: 52471 | R9: 48450 | S9: 12596 | T9: 27465 | U9: 45559 | V9: 56590 | W9: 16619 | X9: 15529 | Y9: 31815 | Z9: 29953 | AA9: -5632 | AB9: -6397 | AC9: 10178 | AD9: 7832 | AE9: 17821 | AF9: 30693
B11: Adjustments for:
B12: Depreciation and amortization | C12: 18103 | D12: 36429 | E12: 55535 | F12: 75021 | G12: 20448 | H12: 40669 | I12: 61369 | J12: 82473 | K12: 20248 | L12: 41080 | M12: 1677 | N12: 61192 | O12: 62869 | P12: 1677 | Q12: 81582 | R12: 83259 | S12: 20130 | T12: 40245 | U12: 60294 | V12: 79912 | W12: 19537 | X12: 25322 | Y12: 39873 | Z12: 51608 | AA12: 60716 | AB12: 78063 | AC12: 81978 | AD12: 104588 | AE12: 26418 | AF12: 53393
B13: Finance income | C13: -958 | D13: -2316 | E13: -3413 | F13: -4519 | G13: -2326 | H13: -4763 | I13: -6698 | J13: -8368 | K13: -1696 | L13: -3005 | N13: -4186 | O13: -4186 | Q13: -5273 | R13: -5273 | S13: -973 | T13: -2349 | U13: -4046 | V13: -5548 | W13: -1171 | X13: -1171 | Y13: -2422 | Z13: -2422 | AA13: -3801 | AB13: -3837 | AC13: -5981 | AD13: -5981 | AE13: -1757 | AF13: -2923
B14: Finance costs | C14: 4437 | D14: 8480 | E14: 12839 | F14: 17260 | G14: 6048 | H14: 12609 | I14: 19380 | J14: 26630 | K14: 6734 | L14: 16057 | M14: 291 | N14: 21674 | O14: 21965 | P14: 291 | Q14: 27136 | R14: 27427 | S14: 6445 | T14: 13569 | U14: 19663 | V14: 26064 | W14: 6405 | X14: 9570 | Y14: 12833 | Z14: 18680 | AA14: 19950 | AB14: 26074 | AC14: 28085 | AD14: 38165 | AE14: 11281 | AF14: 23736
B15: Income tax expense | C15: 3748 | D15: 9364 | E15: 13155 | F15: 15985 | G15: 1938 | H15: 6649 | I15: 10789 | J15: 13269 | K15: 3263 | L15: 6720 | M15: -184 | N15: 11110 | O15: 10926 | P15: -184 | Q15: 15138 | R15: 14954 | S15: 3678 | T15: 7456 | U15: 12990 | V15: 18977 | W15: 5052 | X15: 4750 | Y15: 9063 | Z15: 8597 | AA15: 15008 | AB15: 14817 | AC15: 17556 | AD15: 16969 | AE15: 4136 | AF15: 7615
B16: Currency exchange (gain) / loss | C16: 3766 | D16: -435 | E16: 9088 | F16: 17911 | G16: 3509 | H16: -107 | I16: 3238 | J16: 6213 | K16: -2273 | L16: -3270 | M16: 9 | N16: -3067 | O16: -3058 | P16: 9 | Q16: -3241 | R16: -3232 | S16: -911 | T16: -1181 | U16: -1264 | V16: -1301 | W16: -406 | X16: -404 | Y16: 1101 | Z16: 1097 | AA16: 3183 | AB16: 2946 | AC16: 6610 | AD16: 6892 | AE16: -4548 | AF16: -5346
B17: Change in fair value of financial instruments | D17: -943 | E17: -515 | F17: 95 | H17: -91 | I17: -91 | J17: -1014 | K17: -118 | L17: 179 | N17: -243 | O17: -243 | Q17: -167 | R17: -167 | S17: 574 | T17: 104 | U17: -296 | V17: -110 | W17: -1519 | X17: -1519 | Y17: -2046 | Z17: -2046 | AA17: -3554 | AB17: -3554 | AC17: -5385 | AD17: -5385 | AE17: 5205 | AF17: 5579
B18: Non-cash provision for investments | F18: 5061 | R18: 0
B19: Share of the (profit) / loss of associates | C19: -501 | D19: -794 | E19: -926 | F19: 3080 | G19: -793 | H19: -839 | I19: -912 | J19: 324 | K19: -63 | L19: -442 | N19: -1412 | O19: -1412 | Q19: -1827 | R19: -1827 | S19: -617 | T19: -1167 | U19: -2096 | V19: -2774 | W19: -852 | X19: -835 | Y19: -1768 | Z19: -1756 | AA19: -2325 | AB19: -2252 | AC19: -3051 | AD19: -2889 | AE19: -4379 | AF19: -5557
B20: Inventory obsolescence expense | C20: 97 | D20: 162 | E20: 289 | F20: 357 | G20: 30 | H20: 86 | I20: 131 | J20: 384 | K20: 231 | L20: 621 | N20: 877 | O20: 877 | Q20: 1549 | R20: 1549 | S20: -47 | T20: 47 | U20: 1537 | V20: 2179 | W20: 369 | X20: 369 | Y20: 1568 | Z20: 1568 | AA20: 2288 | AB20: 2288 | AC20: 3326 | AD20: 3326 | AE20: 545 | AF20: 944
B21: Allowance for doubtful accounts | C21: 1059 | D21: 1733 | E21: 2497 | F21: 3270 | G21: 711 | H21: 1483 | I21: 2080 | J21: 3221 | K21: 398 | L21: 1131 | M21: 158 | N21: 1642 | O21: 1800 | P21: 158 | Q21: 2699 | R21: 2857 | S21: 845 | T21: 1475 | U21: 2193 | V21: 2923 | W21: 871 | X21: 871 | Y21: 1445 | Z21: 1445 | AA21: 1937 | AB21: 1937 | AC21: 3201 | AD21: 3201 | AE21: 598 | AF21: 1313
B22: Bank reserves | AA22: 236 | AB22: 236 | AC22: 493 | AD22: 493 | AE22: 711 | AF22: 1555
B23: Change in provisions | C23: 2265 | D23: 4851 | E23: 6200 | F23: 8965 | G23: 2002 | H23: 4752 | I23: 6357 | J23: 7265 | K23: 3579 | L23: 6317 | M23: 86 | N23: 9197 | O23: 9283 | P23: 86 | Q23: 13075 | R23: 13161 | S23: 3922 | T23: 7148 | U23: 10308 | V23: 14347 | W23: 3964 | X23: 3964 | Y23: 7913 | Z23: 7913 | AA23: 10968 | AB23: 10968 | AC23: 13534 | AD23: 13534 | AE23: 4470 | AF23: 8707
B24: Provision for fines and penalties related to SEC investigation into former operations in Uzbekistan | AA24: 55752 | AB24: 55752 | AC24: 55752 | AD24: 55752 | AE24: 0 | AF24: 0
B25: Non-cash gain from reentrance into Uzbekistan | E25: -3604 | F25: -6724
B26: Other non-cash items | C26: 5 | D26: -60 | E26: -247 | F26: -31 | G26: -180 | H26: -294 | I26: -541 | J26: -562 | K26: -754 | L26: -793 | N26: -2376 | O26: -2376 | Q26: -3657 | R26: -3657 | S26: -17 | T26: -985 | U26: -997 | V26: -657 | W26: 3 | X26: 3 | Y26: -797 | Z26: -797 | AA26: -2036 | AB26: -2036 | AC26: -3479 | AD26: -3479 | AE26: -2747 | AF26: -3426
B27: Impairment of non-current assets | J27: 3516 | U27: 1146 | V27: 3775 | AC27: 149 | AD27: 149 | AE27: 0 | AF27: 0
B28: Non-cash loss on sale of subsidiary in Uzbekistan | M28: 2726 | O28: 2726 | P28: 2726 | R28: 2726
B30: Movements in operating assets and liabilities:
B31: (Increase)/Decrease in trade and other receivables and contract assets | C31: 4743 | D31: 2698 | E31: 996 | F31: 5412 | G31: -2884 | H31: -4824 | I31: -9150 | J31: 2781 | K31: -5431 | L31: -7458 | M31: -111 | N31: -4850 | O31: -4961 | P31: -111 | Q31: -3414 | R31: -3525 | S31: 303 | T31: -2092 | U31: -7183 | V31: -3514 | W31: -352 | X31: -352 | Y31: -2357 | Z31: -2357 | AA31: 1108 | AB31: 1108 | AC31: 438 | AD31: 438 | AE31: -5518 | AF31: -4859
B32: (Increase)/decrease in bank loans to customers and interbank loans to banks | AA32: -6686 | AB32: -6686 | AC32: -15367 | AD32: -15367 | AE32: -3599 | AF32: -14444
B33: (Increase)/Decrease in inventory | C33: 916 | D33: 1030 | E33: 436 | F33: 731 | G33: -123 | H33: -2516 | I33: -8076 | J33: -5998 | K33: 1624 | L33: 950 | M33: -153 | N33: 383 | O33: 230 | P33: -153 | Q33: -1663 | R33: -1816 | S33: 2110 | T33: 3037 | U33: 1034 | V33: 2200 | W33: -3667 | X33: -3667 | Y33: -8812 | Z33: -8812 | AA33: -11498 | AB33: -11498 | AC33: -11292 | AD33: -11292 | AE33: 1340 | AF33: 3017
B34: (Increase)/Decrease in VAT receivable | C34: 434 | D34: 280 | E34: -846 | F34: -1058 | G34: -247 | H34: -1599 | I34: -3326 | J34: -642 | K34: -200 | L34: 461 | M34: 3 | N34: 384 | O34: 387 | P34: 2.529084871 | Q34: 224 | R34: 227 | S34: -339 | T34: -1097 | U34: -1231 | V34: -1145 | W34: 331 | X34: 331 | Y34: -1804 | Z34: -1804 | AA34: -1786 | AB34: -1786 | AC34: 72 | AD34: 72 | AE34: -1138 | AF34: -1942
B35: (Increase)/Decrease in advances paid and prepaid expenses | C35: 1082 | D35: 716 | E35: 910 | F35: 1217 | G35: 986 | H35: 3113 | I35: 373 | J35: 574 | K35: 535 | L35: 843 | M35: -427 | N35: 1070 | O35: 643 | P35: -427 | Q35: -385 | R35: -812 | S35: 1548 | T35: 1211 | U35: 1175 | V35: 1197 | W35: 569 | X35: 569 | Y35: 482 | Z35: 482 | AA35: 1397 | AB35: 1397 | AC35: 1429 | AD35: 1429 | AE35: 5601 | AF35: 1975
B36: Increase/(Decrease) in trade and other payables, contract liabilities and other liabilities | C36: -3474 | D36: -7190 | E36: -9086 | F36: -14702 | G36: 2253 | H36: 1534 | I36: 3316 | J36: -6811 | K36: 3031 | L36: -3828 | M36: -310 | N36: -5428 | O36: -5738 | P36: -310 | Q36: -11063 | R36: -11373 | S36: -6374 | T36: -8550 | U36: -10010 | V36: -9591 | W36: -8750 | X36: -9283 | Y36: -9876 | Z36: -10811 | AA36: -15106 | AB36: -16620 | AC36: -14354 | AD36: -15066 | AE36: 26 | AF36: -9532
B37: Increase/(Decrease) in bank deposits and other bank liabilities | AA37: 1806 | AB37: 1806 | AC37: 4100 | AD37: 4100 | AE37: -2257 | AF37: 3160
B38: Payment of fines and penalties related to SEC investigation into former operations in Uzbekistan | AE38: -55607 | AF38: -55607
B39: Dividends received | C39: 495 | D39: 1303 | E39: 1869 | F39: 2650 | G39: 576 | H39: 1471 | I39: 2205 | J39: 3269 | K39: 661 | L39: 1181 | N39: 1688 | O39: 1688 | Q39: 2801 | R39: 2801 | S39: 646 | T39: 1486 | U39: 2436 | V39: 3590 | W39: 874 | X39: 874 | Y39: 1674 | Z39: 1674 | AA39: 2525 | AB39: 2525 | AC39: 3726 | AD39: 3726 | AE39: 749 | AF39: 2250
B40: Income taxes paid | C40: -3941 | D40: -5898 | E40: -8256 | F40: -9906 | G40: -1679 | H40: -4207 | I40: -8034 | J40: -9643 | K40: -1338 | L40: -2960 | N40: -4565 | O40: -4565 | Q40: -11687 | R40: -11687 | S40: -5529 | T40: -10484 | U40: -14213 | V40: -22427 | W40: -5201 | X40: -5201 | Y40: -9772 | Z40: -9772 | AA40: -14979 | AB40: -14979 | AC40: -19777 | AD40: -19777 | AE40: -5220 | AF40: -14727
B41: Interest received | C41: 418 | D41: 1292 | E41: 2678 | F41: 3752 | G41: 1194 | H41: 2062 | I41: 3667 | J41: 4760 | K41: 1324 | L41: 2081 | N41: 2420 | O41: 2420 | Q41: 3344 | R41: 3344 | S41: 228 | T41: 875 | U41: 2157 | V41: 3319 | W41: 4774 | X41: 4774 | Y41: 5919 | Z41: 5919 | AA41: 7052 | AB41: 7052 | AC41: 10016 | AD41: 10016 | AE41: 1900 | AF41: 3351
B42: Interest paid, net of interest capitalised | C42: -1669 | D42: -7691 | E42: -9950 | F42: -16344 | G42: -2337 | H42: -9849 | I42: -16697 | J42: -24957 | K42: -4996 | L42: -15479 | M42: -287 | N42: -20020 | O42: -20307 | P42: -287 | Q42: -26534 | R42: -26821 | S42: -4915 | T42: -11337 | U42: -17175 | V42: -23366 | W42: -5803 | X42: -8799 | Y42: -12443 | Z42: -18297 | AA42: -18233 | AB42: -27103 | AC42: -24656 | AD42: -37056 | AE42: -10124 | AF42: -24066
B43: NET CASH PROVIDED BY OPERATING ACTIVITIES | C43: 43884 | D43: 77838 | E43: 120039 | F43: 158979 | G43: 39115 | H43: 72016 | I43: 100011 | J43: 144088 | K43: 39076 | L43: 63674 | M43: -543 | N43: 105443 | O43: 104900 | P43: -543 | Q43: 131108 | R43: 130565 | S43: 33303 | T43: 64876 | U43: 101981 | V43: 144640 | W43: 31647 | X43: 35695 | Y43: 61589 | Z43: 70062 | AA43: 98290 | AB43: 110221 | AC43: 137301 | AD43: 154390 | AE43: -16093 | AF43: 4859
B46: CASH FLOWS FROM INVESTING ACTIVITIES:
B48: Aquisition of subsidiary, net of cash acquired | F48: -2755 | N48: -5 | O48: -5 | Q48: -5 | R48: -5 | U48: -214 | V48: -367 | W48: -3286 | X48: -3286 | Y48: -3093 | Z48: -3093 | AA48: -3458 | AB48: -3458 | AC48: -3444 | AD48: -3444 | AE48: -1639 | AF48: -2030
B49: Purchases of property, plant and equipment | C49: -8470 | D49: -23062 | E49: -40262 | F49: -73573 | G49: -21886 | H49: -40921 | I49: -56528 | J49: -76671 | K49: -13656 | L49: -25545 | M49: -838 | N49: -36087 | O49: -36925 | P49: -838 | Q49: -54700 | R49: -55538 | S49: -7646 | T49: -19566 | U49: -36229 | V49: -53366 | W49: -13096 | X49: -13096 | Y49: -27753 | Z49: -27753 | AA49: -44660 | AB49: -44660 | AC49: -64731 | AD49: -64731 | AE49: -12457 | AF49: -27513
B50: Purchases of other intangible assets (excl. cost to obtain contracts) | C50: -1437 | D50: -5447 | E50: -13056 | F50: -18356 | G50: -3539 | H50: -12720 | I50: -16529 | J50: -19440 | K50: -4715 | L50: -14126 | M50: -37 | N50: -20848 | O50: -20885 | P50: -37 | Q50: -27976 | R50: -28013 | S50: -3460 | T50: -6862 | U50: -12487 | V50: -23065 | W50: -3574 | X50: -3574 | Y50: -6484 | Z50: -6484 | AA50: -10758 | AB50: -10758 | AC50: -21751 | AD50: -21751 | AE50: -4157 | AF50: -11781
B51: Cost to obtain and fulfill contracts, paid | W51: 0 | X51: -1099 | Y51: 0 | Z51: -2085 | AA51: 0 | AB51: -3524 | AC51: 0 | AD51: -4764 | AE51: -1093 | AF51: -2307
B52: Purchase of 3G and 4G licenses in Ukraine, Armenia and Russia | G52: -7044 | H52: -7044 | I52: -7044 | J52: -10426 | K52: -2570 | L52: -2598 | N52: -2598 | O52: -2598 | Q52: -2598 | R52: -2598 | W52: -1366 | X52: -1366 | Y52: -5527 | Z52: -5527 | AA52: -5527 | AB52: -5527 | AC52: -5527 | AD52: -5527 | AE52: 0 | AF52: -23
B53: Purchase of Avantage | AA53: -7559 | AB53: -7559 | AC53: -7559 | AD53: -7559 | AE53: 0 | AF53: 0
B54: Proceeds from sale of property, plant and equipment and assets held for sale | C54: 123 | D54: 231 | E54: 506 | F54: 619 | G54: 1291 | H54: 1326 | I54: 2279 | J54: 2988 | K54: 1153 | L54: 1300 | N54: 3130 | O54: 3130 | Q54: 4042 | R54: 4042 | S54: 672 | T54: 2463 | U54: 3387 | V54: 4343 | W54: 442 | X54: 442 | Y54: 2289 | Z54: 2289 | AA54: 3924 | AB54: 3924 | AC54: 5905 | AD54: 5905 | AE54: 1040 | AF54: 2903
B55: Purchases of short-term and other investments | C55: -24976 | D55: -44470 | E55: -48807 | F55: -70627 | G55: -61221 | H55: -68657 | I55: -69310 | J55: -73485 | K55: -832 | L55: -7482 | N55: -9316 | O55: -9316 | Q55: -9739 | R55: -9739 | S55: -10504 | T55: -32794 | U55: -42419 | V55: -33717 | W55: -3280 | X55: -3280 | Y55: -29404 | Z55: -29404 | AA55: -16389 | AB55: -16389 | AC55: -18754 | AD55: -18754 | AE55: -5177 | AF55: -11812
B56: Proceeds from sale of short-term and other investments | C56: 1984 | D56: 24113 | E56: 40749 | F56: 67450 | G56: 1450 | H56: 4519 | I56: 18059 | J56: 31678 | K56: 16152 | L56: 22042 | N56: 40044 | O56: 40044 | Q56: 39021 | R56: 39021 | S56: 2412 | T56: 4017 | U56: 19899 | V56: 25385 | W56: 23243 | X56: 23243 | Y56: 24112 | Z56: 24112 | AA56: 34503 | AB56: 34503 | AC56: 38596 | AD56: 38596 | AE56: 24410 | AF56: 37959
B57: Investments in associates | D57: -2702 | E57: -2862 | F57: -7767 | K57: -1326 | L57: -1326 | N57: -1326 | O57: -1326 | Q57: -4094 | R57: -4094 | T57: -320 | U57: -695 | V57: -723 | W57: -1158 | X57: -1158 | Y57: -2101 | Z57: -2101 | AA57: -3871 | AB57: -3871 | AC57: -3871 | AD57: -3871 | AE57: 0 | AF57: 0
B58: Cash payments and proceeds related to swap contracts | W58: -424 | X58: -424 | Y58: 49 | Z58: 49 | AA58: 6001 | AB58: 6001 | AC58: 6892 | AD58: 6892 | AE58: -1039 | AF58: -740
B59: Proceeds from sale of subsidiaries | AC59: 619 | AD59: 619 | AE59: 0 | AF59: 0
B60: Proceeds from sale of associates | AE60: 3000 | AF60: 3000
B61: Other investing activities | W61: -439 | X61: -272 | Y61: -281 | Z61: 0 | AA61: -743 | AB61: 0 | AC61: -909 | AD61: 0 | AE61: 0 | AF61: 5
B62: Disposal of discontinued operation, net of cash disposed of | M62: -378 | O62: -378 | P62: -378 | R62: -378
B63: NET CASH USED IN INVESTING ACTIVITIES: | C63: -32776 | D63: -51337 | E63: -63732 | F63: -105009 | G63: -90949 | H63: -123497 | I63: -129073 | J63: -145356 | K63: -5794 | L63: -27735 | M63: -1253 | N63: -27006 | O63: -28259 | P63: -1253 | Q63: -56049 | R63: -57302 | S63: -18526 | T63: -53062 | U63: -68758 | V63: -81510 | W63: -2938 | X63: -3870 | Y63: -48193 | Z63: -49997 | AA63: -48537 | AB63: -51318 | AC63: -74534 | AD63: -78389 | AE63: 2888 | AF63: -12339
B66: CASH FLOWS FROM FINANCING ACTIVITIES:
B67: Repayment of notes | C67: -1819 | D67: -16619 | E67: -17441 | F67: -23152 | H67: -479 | I67: -2460 | J67: -24018 | K67: -505 | L67: -17904 | N67: -19702 | O67: -19702 | Q67: -20364 | R67: -20364 | U67: -642 | V67: -12042 | W67: 0 | X67: 0 | Y67: -8305 | Z67: -8305 | AA67: -17225 | AB67: -17225 | AC67: -27983 | AD67: -27983 | AE67: 0 | AF67: 0
B68: Proceeds from issuance of notes | N68: 10000 | O68: 10000 | Q68: 10000 | R68: 10000 | S68: 20000 | T68: 20000 | U68: 20000 | V68: 45000 | W68: 20000 | X68: 20000 | Y68: 27550 | Z68: 27550 | AA68: 27550 | AB68: 27550 | AC68: 27550 | AD68: 27550 | AE68: 10000 | AF68: 22500
B69: Repurchase of common stock | Q69: -748 | R69: -748 | S69: -9322 | T69: -9414 | U69: -11156 | V69: -21896 | W69: -7660 | X69: -7660 | Y69: -7660 | Z69: -7660 | AA69: -14583 | AB69: -14583 | AC69: -22655 | AD69: -22655 | AE69: -10365 | AF69: -15899
B70: Notes and debt issuance cost paid | C70: -22 | D70: -25 | E70: -25 | F70: -360 | G70: -1112 | H70: -1213 | I70: -1226 | J70: -1244 | N70: -1 | O70: -1 | Q70: -16 | R70: -16 | S70: -11 | T70: -29 | U70: -29 | V70: -98 | W70: -33 | X70: -33 | Y70: -39 | Z70: -39 | AA70: -39 | AB70: -39 | AC70: -39 | AD70: -39 | AE70: -22 | AF70: -51
B71: Lease obligation principal paid | C71: -10 | D71: -20 | E71: -103 | F71: -227 | G71: -143 | H71: -224 | I71: -313 | J71: -409 | K71: -104 | L71: -168 | N71: -251 | O71: -251 | Q71: -334 | R71: -334 | S71: -71 | T71: -574 | U71: -685 | V71: -774 | W71: -110 | X71: -3226 | Y71: -175 | Z71: -6844 | AA71: -333 | AB71: -9483 | AC71: -343 | AD71: -13577 | AE71: -3552 | AF71: -7348
B72: Dividends paid | C72: -56 | D72: -56 | E72: -37547 | F72: -49921 | H72: -82 | I72: -39455 | J72: -50786 | N72: -28945 | O72: -28945 | Q72: -52805 | R72: -52805 | U72: -22914 | V72: -51759 | W72: -2 | X72: -2 | Y72: -2 | Z72: -2 | AA72: -45244 | AB72: -45244 | AC72: -50054 | AD72: -50054 | AE72: -1 | AF72: -2
B73: Cash flows from transactions under common control | E73: -26 | F73: -26 | G73: 363 | H73: 4252 | I73: -3408 | J73: -4821 | L73: 3063 | N73: 3063 | O73: 3063 | Q73: 3063 | R73: 3063 | U73: 0 | V73: 0 | W73: 0 | X73: 0 | Y73: 0 | Z73: 0 | AA73: -6872 | AB73: -6872 | AC73: -13242 | AD73: -13242 | AE73: -11484 | AF73: -13520
B74: Proceeds from loans | D74: 20000 | E74: 20000 | F74: 69179 | G74: 43498 | H74: 43818 | I74: 49671 | J74: 63162 | K74: 213 | L74: 1036 | M74: 1234 | N74: 223 | O74: 1457 | P74: 1234 | Q74: 49462 | R74: 50696 | T74: 20000 | U74: 20136 | V74: 25136 | W74: 0 | X74: 0 | Y74: 20000 | Z74: 20000 | AA74: 95000 | AB74: 95000 | AC74: 95000 | AD74: 95000 | AE74: 12413 | AF74: 1013
B75: Repayment of loans | C75: -2865 | D75: -5944 | E75: -8095 | F75: -29235 | G75: -6429 | H75: -9009 | I75: -10080 | J75: -16132 | K75: -18549 | L75: -26035 | N75: -33288 | O75: -33288 | Q75: -69532 | R75: -69532 | S75: -16117 | T75: -24682 | U75: -30506 | V75: -32239 | W75: -13748 | X75: -13748 | Y75: -19170 | Z75: -19170 | AA75: -19106 | AB75: -19106 | AC75: -20076 | AD75: -20076 | AE75: -25 | AF75: -10525
B76: Cash inflow under credit guarantee agreement related to foreign-currency hedge | J76: 6706 | K76: -1034 | L76: -1034 | N76: -2032 | O76: -2032 | Q76: -2984 | R76: -2984 | S76: -901 | T76: -901 | U76: -1766 | V76: -1766 | W76: -981 | X76: -981 | Y76: -981 | Z76: -981 | AA76: -981 | AB76: -981 | AC76: -981 | AD76: -981 | AE76: 0 | AF76: 0
B77: Other financing activities | C77: 23 | D77: -2 | E77: 24 | F77: 531 | H77: 5 | I77: -48 | J77: -53 | K77: 2 | N77: 1 | O77: 1 | Q77: -14 | R77: -14 | S77: -9 | T77: -8 | U77: -8 | V77: -7 | W77: -33 | X77: -33 | Y77: 123 | Z77: 123 | AA77: 121 | AB77: 121 | AC77: 133 | AD77: 133 | AE77: 0 | AF77: 0
B78: NET CASH USED IN FINANCING ACTIVITIES | C78: -4749 | D78: -2666 | E78: -43213 | F78: -33211 | G78: 36177 | H78: 37068 | I78: -7319 | J78: -27595 | K78: -19977 | L78: -41042 | M78: 1234 | N78: -70932 | O78: -69698 | P78: 1234 | Q78: -84272 | R78: -83038 | S78: -6431 | T78: 4392 | U78: -27570 | V78: -50445 | W78: -2567 | X78: -5683 | Y78: 11341 | Z78: 4672 | AA78: 18288 | AB78: 9138 | AC78: -12690 | AD78: -25924 | AE78: -3036 | AF78: -23832
B81: Effect of exchange rate changes on cash and cash equivalents | C81: 236 | D81: -998 | E81: 2231 | F81: 10195 | G81: -2133 | H81: -2924 | I81: -36 | J81: 761 | K81: -2380 | L81: -3405 | M81: -61 | N81: -3857 | O81: -3917 | P81: -61 | Q81: -5158 | R81: -5219 | S81: -1463 | T81: -404 | U81: -693 | V81: -569 | W81: 195 | X81: 195 | Y81: 1969 | Z81: 1969 | AA81: 2517 | AB81: 2517 | AC81: 3412 | AD81: 3412 | AE81: -1488 | AF81: -1520
B83: NET INCREASE / (DECREASE) IN CASH AND CASH EQUIVALENTS: | C83: 6595 | D83: 22837 | E83: 15325 | F83: 30954 | G83: -17790 | H83: -17337 | I83: -36417 | J83: -28102 | K83: 10925 | L83: -8508 | M83: -623 | N83: 3648 | O83: 3025 | P83: -623 | Q83: -14371 | R83: -14994 | S83: 6883 | T83: 15802 | U83: 4960 | V83: 12116 | W83: 26337 | X83: 26337 | Y83: 26706 | Z83: 26706 | AA83: 70558 | AB83: 70558 | AC83: 53489 | AD83: 53489 | AE83: -17729 | AF83: -32832
B85: CASH AND CASH EQUIVALENTS, beginning of the period | C85: 30612 | D85: 30612 | E85: 30612 | F85: 30612 | G85: 61566 | H85: 61566 | I85: 61566 | J85: 61566 | K85: 33464 | L85: 33464 | M85: 623 | N85: 32841 | O85: 33464 | P85: 623 | Q85: 32841 | R85: 33464 | S85: 18470 | T85: 18470 | U85: 18470 | V85: 18470 | W85: 30586 | X85: 30586 | Y85: 30586 | Z85: 30586 | AA85: 30586 | AB85: 30586 | AC85: 30586 | AD85: 30586 | AE85: 84075 | AF85: 84075
B87: CASH AND CASH EQUIVALENTS, end of the period | C87: 37207 | D87: 53449 | E87: 45937 | F87: 61566 | G87: 43776 | H87: 44229 | I87: 25149 | J87: 33464 | K87: 44389 | L87: 24956 | M87: 0 | N87: 36489 | O87: 36489 | P87: 0 | Q87: 18470 | R87: 18470 | S87: 25353 | T87: 34272 | U87: 23430 | V87: 30586 | W87: 56923 | X87: 56923 | Y87: 57292 | Z87: 57292 | AA87: 101144 | AB87: 101144 | AC87: 84075 | AD87: 84075 | AE87: 66346 | AF87: 51243
B88: Less cash and cash equivalents within assets held for sale | F88: -156 | H88: -109
B89: CASH AND CASH EQUIVALENTS, end of the period | C89: 37207 | D89: 53449 | E89: 45937 | F89: 61410 | G89: 43776 | H89: 44120 | I89: 25149 | J89: 33464 | K89: 44389 | L89: 24956 | M89: 0 | N89: 36489 | O89: 36489 | P89: 0 | Q89: 18470 | R89: 18470 | S89: 25353 | T89: 34272 | U89: 23430 | V89: 30586 | W89: 56923 | X89: 56923 | Y89: 57292 | Z89: 57292 | AA89: 101144 | AB89: 101144 | AC89: 84075 | AD89: 84075 | AE89: 66346 | AF89: 51243
B91: CAPEX (for the quarter) | C91: =-SUM(C49:C52) -> 9907 | D91: =-SUM(D49:D52)+SUM(C49:C52) -> 18602 | E91: =-SUM(E49:E52)+SUM(D49:D52) -> 24809 | F91: =-SUM(F49:F52)+SUM(E49:E52) -> 38611 | G91: =-SUM(G49:G52) -> 32469 | H91: =-SUM(H49:H52)+SUM(G49:G52) -> 28216 | I91: =-SUM(I49:I52)+SUM(H49:H52) -> 19416 | J91: =-SUM(J49:J52)+SUM(I49:I52) -> 26436 | K91: =-SUM(K49:K52) -> 20941 | L91: =-SUM(L49:L52)+SUM(K49:K52) -> 21328 | O91: =-SUM(O49:O52)+SUM(L49:L52) -> 18139 | R91: =-SUM(R49:R52)+SUM(O49:O52) -> 25741 | S91: =-SUM(S49:S52) -> 11106 | T91: =-SUM(T49:T52)+SUM(S49:S52) -> 15322 | U91: =-SUM(U49:U52)+SUM(T49:T52) -> 22288 | V91: =-SUM(V49:V52)+SUM(U49:U52) -> 27715 | W91: =-SUM(W49:W52) -> 18036 | X91: =-SUM(X49:X50, X52) -> 18036 | Y91: =-SUM(Y49:Y50, Y52)+SUM(W49:W50, W52) -> 21728 | Z91: 21728 | AA91: 21181 | AB91: 21181 | AC91: 31064 | AD91: =-SUM(AD49:AD50, AD52)+SUM(AB49:AB50, AB52) -> 31064 | AE91: =-SUM(AE49:AE50, AE52) -> 16614 | AF91: =-SUM(AF49:AF50, AF52)+SUM(AE49:AE50, AE52) -> 22703
B92: CAPEX excluding purchases of 3G, 4G license in Ukraine and Russia and net of cash proceeds under sharing agreement (for the quarter) | C92: =-SUM(C49:C50) -> 9907 | D92: =-SUM(D49:D50)+SUM(C49:C50) -> 18602 | E92: =-SUM(E49:E50)+SUM(D49:D50) -> 24809 | F92: 38611 | G92: =-SUM(G49:G50) -> 25425 | H92: =-SUM(H49:H50)+SUM(G49:G50) -> 28216 | I92: =-SUM(I49:I50)+SUM(H49:H50) -> 19416 | J92: 23054 | K92: =-SUM(K49:K50) -> 18371 | L92: =-SUM(L49:L50)+SUM(K49:K50) -> 21300 | O92: =-SUM(O49:O50)+SUM(L49:L50) -> 18139 | R92: =-SUM(R49:R50)+SUM(O49:O50) -> 25741 | S92: =-SUM(S49:S50) -> 11106 | T92: =-SUM(T49:T50)+SUM(S49:S50) -> 15322 | U92: =-SUM(U49:U50)+SUM(T49:T50) -> 22288 | V92: =-SUM(V49:V50)+SUM(U49:U50) -> 27715 | W92: =-SUM(W49:W50) -> 16670 | X92: =-SUM(X49:X50) -> 16670 | Y92: =-SUM(Y49:Y50)+SUM(W49:W50) -> 17567 | Z92: 17567 | AA92: 21181 | AB92: 21181 | AC92: 31064 | AD92: 31064 | AE92: =-SUM(AE49:AE50) -> 16614 | AF92: =-SUM(AF49:AF50)+SUM(AE49:AE50) -> 22680
B93: CAPEX as % of Revenue* | C93: 0.102 | D93: 0.188 | E93: 0.232 | F93: 0.361 | G93: 0.255 | H93: 0.277 | I93: 0.171 | J93: 0.207 | K93: 0.174 | L93: 0.201 | O93: 0.162 | R93: 0.231 | S93: 0.106 | T93: 0.143 | U93: 0.195 | V93: 0.237 | W93: 0.154 | X93: 0.154 | Y93: 0.153 | Z93: 0.154 | AA93: 0.165 | AB93: 0.166 | AC93: 0.238 | AD93: 0.239 | AE93: 0.141 | AF93: 0.181
B94: Cost to obtain and fulfill contracts | W94: - | X94: =-X51 -> 1099 | Y94: - | Z94: =-Z51+X51 -> 986 | AA94: - | AB94: =-AB51+Z51 -> 1439 | AC94: - | AD94: =-AD51+AB51 -> 1240 | AE94: =-AE51 -> 1093 | AF94: =-AF51+AE51 -> 1214
B96: FCF | C96: 34101 | D96: 46858 | E96: 64365 | F96: 57147 | G96: 14981 | H96: 19701 | I96: 29233 | J96: 50965 | K96: 20532 | L96: 23977 | O96: 48889 | R96: 46957 | S96: 22869 | T96: 40591 | U96: 55743 | V96: 71462 | W96: 10975 | X96: 13924 | Y96: 24447 | Z96: 30835 | AA96: ='Group reconciliations'!W50 -> 31908 | AB96: ='Group reconciliations'!X50 -> 40315 | AC96: ='Group reconciliations'!Y50 -> 42469 | AD96: ='Group reconciliations'!Z50 -> 54794 | AE96: ='Group reconciliations'!AA50 -> -31399 | AF96: ='Group reconciliations'!AB50 -> -32869
B97: " - Financial data for the period, excluding effects of new standards
B98: * For the period Q4 2014-Q3 2016 Group CAPEX includes cash spent on CAPEX in UMS LLC, while Group revenue for the period Q4 2014-Q3 2016 doesn't include revenue from UMS LLC

Sheet Russia
B2: Country highlights: | C2: 2014 | H2: 2015 | M2: 2016 | R2: 2017 | W2: 2018 | AG2: 2019
B3: Russia | C3: Q1 | D3: Q2 | E3: Q3 | F3: Q4 | G3: Full year | H3: Q1 | I3: Q2 | J3: Q3 | K3: Q4 | L3: Full year | M3: Q1 | N3: Q2 | O3: Q3 | P3: Q4 | Q3: Full year | R3: Q1 | S3: Q2 | T3: Q3 | U3: Q4 | V3: Full year | W3: Q1" | X3: Q1 | Y3: Q2" | Z3: Q2 | AA3: Q3" | AB3: Q3 | AC3: Q4" | AD3: Q4 | AE3: Full year" | AF3: Full year | AG3: Q1 | AH3: Q2
B5: RUB/USD | C5: 35 | D5: 35 | E5: 36.2 | F5: 47.4 | G5: 38.4 | H5: 62.2 | I5: 53 | J5: 63 | K5: 65.9 | L5: 61 | M5: 74.6 | N5: 65.9 | O5: 64.62 | P5: 63.07 | Q5: 67.03 | R5: 58.84 | S5: 57.15 | T5: 59.02 | U5: 58.41 | V5: 58.35 | W5: 58.41 | X5: 58.41 | Y5: 61.8 | Z5: 61.8 | AA5: ='Ave Forex Rates'!Z5 -> 65.5 | AB5: ='Ave Forex Rates'!Z5 -> 65.5 | AC5: ='Ave Forex Rates'!AA5 -> 66.5 | AD5: ='Ave Forex Rates'!AA5 -> 66.5 | AE5: ='Ave Forex Rates'!AB5 -> 62.71 | AF5: ='Ave Forex Rates'!AB5 -> 62.71 | AG5: ='Ave Forex Rates'!AC5 -> 66.13 | AH5: ='Ave Forex Rates'!AD5 -> 64.56
B7: Amounts in millions of RUB, unless stated
B8: Total revenue | C8: 87252 | D8: 90390 | E8: 99209 | F8: 98043 | G8: 374893 | H8: 90423 | I8: 94336 | J8: 103917 | K8: 102538 | L8: 391214 | M8: 96302 | N8: 97435 | O8: 103060 | P8: 103758 | Q8: 400554 | R8: 97142 | S8: 99028 | T8: 106334 | U8: 109807 | V8: 412311 | W8: 101562 | X8: 101050 | Y8: 106876 | Z8: 106391 | AA8: 119548 | AB8: 119130 | AC8: 121923 | AD8: 121512 | AE8: 449909 | AF8: 448083 | AG8: 109073 | AH8: 115322
B9: Service revenue | C9: 81069 | D9: 84387 | E9: 91264 | F9: 88823 | G9: 345542 | H9: 84165 | I9: 86729 | J9: 91302 | K9: 88698 | L9: 350894 | M9: 85602 | N9: 86883 | O9: 89435 | P9: 88986 | Q9: 350906 | R9: 85812 | S9: 88973 | T9: 92916 | U9: 92074 | V9: 359775 | W9: 88468 | X9: 87956 | Y9: 92780 | Z9: 92295 | AA9: 99265 | AB9: 98847 | AC9: 100222 | AD9: 99811 | AE9: 380735 | AF9: 378909 | AG9: 95133 | AH9: 99728
B10: - mobile | C10: 67847 | D10: 70739 | E10: 77164 | F10: 74621 | G10: 290371 | H10: 70521 | I10: 72749 | J10: 77967 | K10: 74928 | L10: 296165 | M10: 71132 | N10: 72786 | O10: 75885 | P10: 75185 | Q10: 294988 | R10: 71681 | S10: 75068 | T10: 79208 | U10: 78034 | V10: 303991 | W10: 74825 | X10: 74313 | Y10: 78843 | Z10: 78358 | AA10: 81137 | AB10: 80719 | AC10: 79670 | AD10: 79259 | AE10: 314475 | AF10: 312649 | AG10: 75397 | AH10: 79685
B11: - fixed line | C11: 15184 | D11: 15584 | E11: 15799 | F11: 15966 | G11: 62533 | H11: 15319 | I11: 15706 | J11: 15076 | K11: 15513 | L11: 61614 | M11: 15369 | N11: 15263 | O11: 15096 | P11: 15438 | Q11: 61166 | R11: 15180 | S11: 15152 | T11: 15110 | U11: 15340 | V11: 60782 | W11: 15061 | X11: 15061 | Y11: 15177 | Z11: 15177 | AA11: 14882 | AB11: 14882 | AC11: 15281 | AD11: 15281 | AE11: 60401 | AF11: 60401 | AG11: 15076 | AH11: 14997
B12: - Bank revenue | AA12: 5551 | AB12: 5551 | AC12: 6300 | AD12: 6300 | AE12: 11851 | AF12: 11851 | AG12: 6299 | AH12: 6850
B13: - integration | J13: 240 | K13: 876 | L13: 1116 | M13: 2492 | N13: 1258 | O13: 1067 | P13: 786 | Q13: 5603 | R13: 1403 | S13: 1263 | T13: 922 | U13: 1983 | V13: 5571 | W13: 1377 | X13: 1377 | Y13: 1519 | Z13: 1519 | AA13: 1832 | AB13: 1832 | AC13: 2664 | AD13: 2664 | AE13: 7392 | AF13: 7392 | AG13: 2278 | AH13: 2725
B14: - event ticketing and eSport | W14: 237 | X14: 237 | Y14: 201 | Z14: 201 | AA14: 229 | AB14: 229 | AC14: 602 | AD14: 602 | AE14: 1269 | AF14: 1269 | AG14: 313 | AH14: 180
B15: - eliminations | C15: -1962 | D15: -1936 | E15: -1699 | F15: -1764 | G15: -7361 | H15: -1675 | I15: -1726 | J15: -1981 | K15: -2619 | L15: -8001 | M15: -3391 | N15: -2424 | O15: -2613 | P15: -2423 | Q15: -10851 | R15: -2452 | S15: -2510 | T15: -2324 | U15: -3283 | V15: -10569 | W15: -3032 | X15: -3032 | Y15: -2960 | Z15: -2960 | AA15: -4366 | AB15: -4366 | AC15: -4295 | AD15: -4295 | AE15: -14653 | AF15: -14653 | AG15: -4230 | AH15: -4709
B16: Sales of goods | C16: 6183 | D16: 6003 | E16: 7945 | F16: 9220 | G16: 29351 | H16: 6258 | I16: 7607 | J16: 12615 | K16: 13840 | L16: 40320 | M16: 10700 | N16: 10552 | O16: 13625 | P16: 14772 | Q16: 49648 | R16: 11330 | S16: 10055 | T16: 13418 | U16: 17733 | V16: 52536 | W16: 13094 | X16: 13094 | Y16: 14096 | Z16: 14096 | AA16: 20283 | AB16: 20283 | AC16: 21701 | AD16: 21701 | AE16: 69174 | AF16: 69174 | AG16: 13940 | AH16: 15594
B17: - sales of handsets and accessories | C17: 6183 | D17: 6003 | E17: 7945 | F17: 9220 | G17: 29351 | H17: 6258 | I17: 7607 | J17: 12615 | K17: 13652 | L17: 40132 | M17: 10063 | N17: 9538 | O17: 12374 | P17: 13171 | Q17: 45145 | R17: 10273 | S17: 9249 | T17: 12396 | U17: 14612 | V17: 46530 | W17: 11088 | X17: 11088 | Y17: 12275 | Z17: 12275 | AA17: 17049 | AB17: 17049 | AC17: 19433 | AD17: 19433 | AE17: 59845 | AF17: 59845 | AG17: 12514 | AH17: 12354
B18: - sales of software products | K18: 188 | L18: 188 | M18: 637 | N18: 1014 | O18: 1251 | P18: 1601 | Q18: 4503 | R18: 1057 | S18: 806 | T18: 1022 | U18: 3121 | V18: 6006 | W18: 2006 | X18: 2006 | Y18: 1821 | Z18: 1821 | AA18: 3234 | AB18: 3234 | AC18: 2268 | AD18: 2268 | AE18: 9329 | AF18: 9329 | AG18: 1426 | AH18: 3240
B19: Operating profit | C19: 22565 | D19: 24205 | E19: 28324 | F19: 24299 | G19: 99394 | H19: 21091 | I19: 23728 | J19: 27275 | K19: 23481 | L19: 95575 | M19: 21599 | N19: 21954 | O19: 24107 | P19: 23178 | Q19: 90838 | R19: 21635 | S19: 24138 | T19: 28777 | U19: 25587 | V19: 100137 | W19: 25175 | X19: 26801 | Y19: 26324 | Z19: 27719 | AA19: 30765 | AB19: 32125 | AC19: 27216 | AD19: 29591 | AE19: 109480 | AF19: 116236 | AG19: 28724 | AH19: 28763
B20: - operating margin, % | C20: 0.259 | D20: 0.268 | E20: 0.286 | F20: 0.248 | G20: 0.265 | H20: 0.233 | I20: 0.252 | J20: 0.262 | K20: 0.229 | L20: 0.244 | M20: 0.224 | N20: 0.225 | O20: 0.234 | P20: 0.223 | Q20: 0.227 | R20: 0.223 | S20: 0.244 | T20: 0.271 | U20: 0.233 | V20: 0.243 | W20: 0.248 | X20: 0.2652251361 | Y20: 0.246 | Z20: 0.261 | AA20: 0.257 | AB20: 0.27 | AC20: 0.223 | AD20: 0.244 | AE20: 0.243 | AF20: 0.259 | AG20: 0.263 | AH20: 0.249
B21: Depreciation and amortization | C21: 15283 | D21: 16133 | E21: 17156 | F21: 17065 | G21: 65638 | H21: 17080 | I21: 17517 | J21: 17252 | K21: 17634 | L21: 69483 | M21: 16984 | N21: 17752 | O21: 19086 | P21: 17858 | Q21: 71680 | R21: 17883 | S21: 17935 | T21: 17798 | U21: 17519 | V21: 71135 | W21: 17431 | X21: 22816 | Y21: 17885 | Z21: 23360 | AA21: 18312 | AB21: 23420 | AC21: 18523 | AD21: 23235 | AE21: 72151 | AF21: 92831 | AG21: 22969 | AH21: 23510
B22: - as % of revenue | C22: 0.175 | D22: 0.178 | E22: 0.173 | F22: 0.174 | G22: 0.175 | H22: 0.189 | I22: 0.186 | J22: 0.166 | K22: 0.172 | L22: 0.178 | M22: 0.176 | N22: 0.182 | O22: 0.185 | P22: 0.172 | Q22: 0.179 | R22: 0.184 | S22: 0.181 | T22: 0.167 | U22: 0.16 | V22: 0.173 | W22: 0.172 | X22: 0.2257892133 | Y22: 0.167 | Z22: 0.22 | AA22: 0.153 | AB22: 0.197 | AC22: 0.152 | AD22: 0.191 | AE22: 0.16 | AF22: 0.207 | AG22: 0.211 | AH22: 0.204
B23: Adjusted OIBDA *** | C23: 37849 | D23: 40338 | E23: 45481 | F23: 41365 | G23: 165032 | H23: 38171 | I23: 41245 | J23: 44527 | K23: 41115 | L23: 165058 | M23: 38583 | N23: 39706 | O23: 43193 | P23: 41037 | Q23: 162519 | R23: 39518 | S23: 42074 | T23: 46575 | U23: 43676 | V23: 171843 | W23: 42606 | X23: 49617 | Y23: 44210 | Z23: 51080 | AA23: 49076 | AB23: 55544 | AC23: 45910 | AD23: 52997 | AE23: 181802 | AF23: 209238 | AG23: 51693 | AH23: 52274
B24: Adjusted OIBDA margin, % | C24: 0.434 | D24: 0.446 | E24: 0.458 | F24: 0.422 | G24: 0.44 | H24: 0.422 | I24: 0.437 | J24: 0.428 | K24: 0.401 | L24: 0.422 | M24: 0.401 | N24: 0.408 | O24: 0.419 | P24: 0.396 | Q24: 0.406 | R24: 0.407 | S24: 0.425 | T24: 0.438 | U24: 0.398 | V24: 0.417 | W24: 0.42 | X24: 0.4910143493 | Y24: 0.414 | Z24: 0.48 | AA24: 0.411 | AB24: 0.466 | AC24: 0.377 | AD24: 0.436 | AE24: 0.404 | AF24: 0.467 | AG24: 0.474 | AH24: 0.453
B25: Net profit | C25: 9503 | D25: 19618 | E25: 10725 | F25: 4522 | G25: 44368 | H25: 9109 | I25: 18746 | J25: 13448 | K25: 11817 | L25: 53120 | M25: 15000 | N25: 10788 | O25: 14461 | P25: 13652 | Q25: 53900 | R25: 12350 | S25: 14778 | T25: 18492 | U25: 13365 | V25: 58985 | W25: 16282 | X25: 15285 | Y25: 15524 | Z25: 14694 | AA25: 17493 | AB25: 18820 | AC25: 20806 | AD25: 19296 | AE25: 70105 | AF25: 68095 | AG25: 19122 | AH25: 12450
B26: - margin, % | C26: 0.109 | D26: 0.217 | E26: 0.108 | F26: 0.046 | G26: 0.118 | H26: 0.101 | I26: 0.199 | J26: 0.129 | K26: 0.115 | L26: 0.136 | M26: 0.156 | N26: 0.111 | O26: 0.14 | P26: 0.132 | Q26: 0.135 | R26: 0.127 | S26: 0.149 | T26: 0.174 | U26: 0.122 | V26: 0.143 | W26: 0.16 | X26: 0.1512617516 | Y26: 0.145 | Z26: 0.138 | AA26: 0.146 | AB26: 0.158 | AC26: 0.171 | AD26: 0.159 | AE26: 0.156 | AF26: 0.152 | AG26: 0.175 | AH26: 0.108
B27: CAPEX | C27: 9073 | D27: 17636 | E27: 23558 | F27: 35223 | G27: 85491 | H27: 23064 | I27: 26287 | J27: 16795 | K27: 16854 | L27: 83000 | M27: 19060 | N27: 18844 | O27: 16749 | P27: 21730 | Q27: 76383 | R27: 9738 | S27: 12529 | T27: 19743 | U27: 23151 | V27: 65161 | W27: 15367 | X27: 15367 | Y27: 15492 | Z27: 15492 | AA27: 18437 | AB27: 18437 | AC27: 25845 | AD27: 25845 | AE27: 75141 | AF27: 75141 | AG27: 14499 | AH27: 20557
B28: CAPEX excluding purchases of 4G license | C28: 9073 | D28: 17636 | E28: 23558 | F28: 35223 | G28: 85491 | H28: 23064 | I28: 26287 | J28: 16795 | K28: 13473 | L28: 79619 | M28: 16490 | N28: 18816 | O28: 16749 | P28: 21730 | Q28: 73785 | R28: 9738 | S28: 12529 | T28: 19743 | U28: 23151 | V28: 65161 | W28: 15367 | X28: 15367 | Y28: 15492 | Z28: 15492 | AA28: 18437 | AB28: 18437 | AC28: 25845 | AD28: 25845 | AE28: 75141 | AF28: 75141 | AG28: 14499 | AH28: 20557
B29: - as % of revenue | C29: 0.104 | D29: 0.195 | E29: 0.237 | F29: 0.359 | G29: 0.228 | H29: 0.255 | I29: 0.279 | J29: 0.162 | K29: 0.131 | L29: 0.204 | M29: 0.171 | N29: 0.193 | O29: 0.163 | P29: 0.209 | Q29: 0.184 | R29: 0.1 | S29: 0.127 | T29: 0.186 | U29: 0.211 | V29: 0.158 | W29: 0.151 | X29: 0.152 | Y29: 0.145 | Z29: 0.146 | AA29: 0.154 | AB29: 0.155 | AC29: 0.212 | AD29: 0.213 | AE29: 0.167 | AF29: 0.168 | AG29: 0.133 | AH29: 0.178
B30: Cost to obtain and fulfill contracts | W30: 0 | X30: 1042 | Y30: 0 | Z30: 932 | AA30: 0 | AB30: 1385 | AC30: 0 | AD30: 1240 | AE30: 0 | AF30: 4599 | AG30: 1024 | AH30: 1147
B32: MTS-Bank
B33: Amounts in millions of RUB, unless stated
B34: Revenue | AA34: - | AB34: 5551 | AC34: - | AD34: 6300 | AE34: - | AF34: 11851 | AG34: 6299 | AH34: 6850
B35: OIBDA | AA35: - | AB35: 1428 | AC35: - | AD35: 410 | AE35: - | AF35: 1838 | AG35: 24 | AH35: 1406
B36: OIBDA margin, % | AA36: - | AB36: 0.257 | AC36: - | AD36: 0.065 | AE36: - | AF36: 0.155 | AG36: 0.004 | AH36: 0.205
B37: Net profit | AA37: - | AB37: 613 | AC37: - | AD37: -143 | AE37: - | AF37: 470 | AG37: 288 | AH37: 70
B38: - margin, % | AA38: - | AB38: 0.111 | AC38: - | AD38: -0.023 | AE38: - | AF38: 0.04 | AG38: 0.046 | AH38: 0.01
B40: MTS-bank, retail loan portfolio
B41: Total retail loan portfolio at the of the period, mln RUB | AA41: - | AB41: 43077 | AC41: - | AD41: 52479 | AE41: - | AF41: 52479 | AG41: 58761 | AH41: 67038
B43: Operating highlights
B44: Mobile business
B45: MTS subscribers, mln | C45: 70 | D45: 70.6 | E45: 73.3 | F45: 74.6 | G45: 74.6 | H45: 74.5 | I45: 75.4 | J45: 76.9 | K45: 77.3 | L45: 77.3 | M45: 77.3 | N45: 77.8 | O45: 79 | P45: 80 | Q45: 80 | R45: 79 | S45: 78 | T45: 78.5 | U45: 78.3 | V45: 78.3 | W45: 78.1 | X45: 78.1 | Y45: 78.1 | Z45: 78.1 | AA45: 77.96 | AB45: 77.96 | AC45: 78.01 | AD45: 78.01 | AE45: 78.01 | AF45: 78.01 | AG45: 77.6 | AH45: 78.1
B46: Total traffic, bln minutes | C46: 73.72860003 | D46: 78.59694879 | E46: 81.44249133 | F46: 86.92661599 | G46: 320.6946561 | H46: 82.06761889 | I46: 87.33189356 | J46: 88.07353041 | K46: 89.60772594 | L46: 347.0807688 | M46: 86.35656385 | N46: 90.3 | O46: 89.9 | P46: 91.7 | Q46: 358.26 | R46: 87 | S46: 91.8 | T46: 91.4 | U46: 93.2 | V46: 363.4 | W46: 88.2 | X46: 88.2 | Y46: 93.2 | Z46: 93.2 | AA46: 91.4 | AB46: 91.4 | AC46: 93 | AD46: 93 | AE46: 365.8 | AF46: 365.8 | AG46: 87.9 | AH46: 91.3
B47: Total smartphone data, Tb | C47: 23857 | D47: 30015 | E47: 38443 | F47: 47179 | G47: 139494 | H47: 55764 | I47: 59879 | J47: 75085 | K47: 97057 | L47: 287785 | M47: 112417 | N47: 119338 | O47: 181298 | P47: 254845 | Q47: 667898.1985 | R47: 298222 | S47: 353719 | T47: 473707 | U47: 554170 | V47: 1679818 | W47: 616816 | X47: 616816 | Y47: 665208 | Z47: 665208 | AA47: 751864 | AB47: 751864 | AC47: 866118 | AD47: 866118 | AE47: 2900006 | AF47: 2900006 | AG47: 927772 | AH47: 1009399
B49: Fixed business
B50: Residential
B51: Number of subscribers*, thou
B52: - fixed telephony | C52: 3733 | D52: 3707 | E52: 3677 | F52: 3640 | G52: 3640 | H52: 3601 | I52: 3571 | J52: 3540 | K52: 3503 | L52: 3503 | M52: 3472 | N52: 3439 | O52: 3410 | P52: 3371 | Q52: 3371 | R52: 3333 | S52: 3291 | T52: 3251 | U52: 3206 | V52: 3206 | W52: 3160 | X52: 3160 | Y52: 3124 | Z52: 3124 | AA52: 3081 | AB52: 3081 | AC52: 3028 | AD52: 3028 | AE52: 3028 | AF52: 3028 | AG52: 2971 | AH52: 2920.043
B53: - internet | C53: 2317 | D53: 2314 | E53: 2359 | F53: 2357 | G53: 2357 | H53: 2436 | I53: 2486 | J53: 2537 | K53: 2630 | L53: 2630 | M53: 2680 | N53: 2720 | O53: 2770 | P53: 2835 | Q53: 2835 | R53: 2869 | S53: 2907 | T53: 2970 | U53: 3053 | V53: 3053 | W53: 3100 | X53: 3100 | Y53: 3145 | Z53: 3145 | AA53: 3182 | AB53: 3182 | AC53: 3246 | AD53: 3246 | AE53: 3246 | AF53: 3246 | AG53: 3316 | AH53: 3349.556
B54: - TV | C54: 2926 | D54: 2911 | E54: 2894 | F54: 2696 | G54: 2696 | H54: 2719 | I54: 2730 | J54: 2741 | K54: 2745 | L54: 2745 | M54: 2745 | N54: 2750 | O54: 2750 | P54: 2755 | Q54: 2755 | R54: 2765 | S54: 2775 | T54: 2790 | U54: 2822 | V54: 2822 | W54: 2830 | X54: 2830 | Y54: 2835 | Z54: 2835 | AA54: 2853 | AB54: 2853 | AC54: 2901 | AD54: 2901 | AE54: 2901 | AF54: 2901 | AG54: 2934 | AH54: 2947.928
B55: MGTS (B2C+B2B)
B56: - GPON subs, thou | C56: 722 | D56: 796 | E56: 886 | F56: 1095 | G56: 1095 | H56: 1183 | I56: 1279 | J56: 1365 | K56: 1504 | L56: 1504 | M56: 1598 | N56: 1620 | O56: 1625 | P56: 1722 | Q56: 1722 | R56: 1751 | S56: 1782 | T56: 1817 | U56: 1848 | V56: 1848 | W56: 1875 | X56: 1875 | Y56: 1894 | Z56: 1894 | AA56: 1915 | AB56: 1915 | AC56: 1948 | AD56: 1948 | AE56: 1948 | AF56: 1948 | AG56: 1979 | AH56: 1996
B58: Other operating highlights
B59: Mobile Internet indicators
B60: Mobile Internet users penetration, as % from monthly active users | C60: 0.423 | D60: 0.428 | E60: 0.419 | F60: 0.435 | G60: 0.435 | H60: 0.452 | I60: 0.429 | J60: 0.439 | K60: 0.472 | L60: 0.472 | M60: 0.468 | N60: 0.469 | O60: 0.482 | P60: 0.49 | Q60: 0.49 | R60: 0.498 | S60: 0.509 | T60: 0.521 | U60: 0.532 | V60: 0.532 | W60: 0.541 | X60: 0.541 | Y60: 0.554 | Z60: 0.554 | AA60: 0.57 | AB60: 0.57 | AC60: 0.588 | AD60: 0.588 | AE60: 0.588 | AF60: 0.588 | AG60: 0.598 | AH60: 0.6125
B61: Smartphones penetration, as % of all registered mobile phones on MTS network** | C61: 0.346 | D61: 0.37 | E61: 0.399 | F61: 0.424 | G61: 0.424 | H61: 0.436 | I61: 0.449 | J61: 0.474 | K61: 0.484 | L61: 0.484 | M61: 0.5033 | N61: 0.511 | O61: 0.518 | P61: 0.538 | Q61: 0.538 | R61: 0.564 | S61: 0.612 | T61: 0.631 | U61: 0.646 | V61: 0.646 | W61: 0.659 | X61: 0.659 | Y61: 0.674 | Z61: 0.674 | AA61: 0.689 | AB61: 0.689 | AC61: 0.701 | AD61: 0.701 | AE61: 0.701 | AF61: 0.701 | AG61: 0.713 | AH61: 0.725
B62: My MTS
B63: 1-month active users, thou | R63: 6284.576 | S63: 7232.571 | T63: 8482.574 | U63: 9458.048 | V63: 9458.048 | W63: 10995 | X63: 10995 | Y63: 11967.761 | Z63: 11967.761 | AA63: 13165.31 | AB63: 13165.31 | AC63: 14134.424 | AD63: 14134.424 | AE63: 14134.424 | AF63: 14134.424 | AG63: 15358.609 | AH63: 17706.466
B64: E-commerce
B65: Online sales, mln | M65: 983 | N65: 1013 | O65: 1103 | P65: 1275 | Q65: 4374 | R65: 1070 | S65: 1431 | T65: 1356 | U65: 1366 | V65: 5224 | W65: 1361 | X65: 1361 | Y65: 1537 | Z65: 1537 | AA65: 2085 | AB65: 2085 | AC65: 2008 | AD65: 2008 | AE65: 6991 | AF65: 6991 | AG65: 1548 | AH65: 1707
B66: Total number of MTS Dengi cards issued, mln | C66: 2.253 | D66: 2.445 | E66: 2.558 | F66: 2.653 | G66: 2.653 | H66: 2.674 | I66: 2.711 | J66: 2.765 | K66: 2.851 | L66: 2.851 | M66: 2.962 | N66: 3.044 | O66: 3.205 | P66: 3.439 | Q66: 3.439 | R66: 3.609 | S66: 3.813 | T66: 4.065 | U66: 4.354 | V66: 4.354 | W66: 4.589 | X66: 4.589 | Y66: 4.833 | Z66: 4.833 | AA66: 5.122 | AB66: 5.122 | AC66: 5.419 | AD66: 5.419 | AE66: 5.419 | AF66: 5.419 | AG66: 5.669
B67: " - Financial data for the period, excluding effects of new standards
B68: * From Q3 2015, MTS discloses the number of subscribers by types of services in line with the best practices in the industry. Numbers of subscribers have been retrospectively restated **MTS defines a smartphone as a handset with one of the following operating systems: iOS, Android, Windows, Blackberry OS, Symbian, Linux or Bada. *** Adjusted OIBDA for 4Q 2017 and 2017 doesn't include a loss from impairment of non-current assets of RUB 571 mln. Adjusted OIBDA for 4Q 2018 and 2018 doesn't nclude a loss from impairment of non-current assets of RUB 172 mln.

Sheet Ukraine
B2: Country highlights:* | C2: 2014 | H2: 2015 | M2: 2016 | R2: 2017 | W2: 2018 | AG2: 2019
B3: Ukraine | C3: Q1 | D3: Q2 | E3: Q3 | F3: Q4 | G3: Full year | H3: Q1 | I3: Q2 | J3: Q3 | K3: Q4 | L3: Full year | M3: Q1 | N3: Q2 | O3: Q3 | P3: Q4 | Q3: Full year | R3: Q1 | S3: Q2 | T3: Q3 | U3: Q4 | V3: Full year | W3: Q1" | X3: Q1 | Y3: Q2" | Z3: Q2 | AA3: Q3" | AB3: Q3 | AC3: Q4" | AD3: Q4 | AE3: Full year" | AF3: Full year | AG3: Q1 | AH3: Q2
B5: Amounts in millions of RUB, unless stated
B6: Revenue | C6: 9542 | D6: 7684 | E6: 8113 | F6: 7471 | G6: 32810 | H6: 7904 | I6: 5904 | J6: 7450 | K6: 6937 | L6: 28194 | M6: 7991 | N6: 7159 | O6: 7278 | P6: 6759 | Q6: 29187 | R6: 6168 | S6: 6303 | T6: 6760 | U6: 6872 | V6: 26103 | W6: 6120 | X6: 6046 | Y6: 7489 | Z6: 7403 | AA6: 8100 | AB6: 8001 | AC6: 8359 | AD6: 8267 | AE6: 30068 | AF6: 29717 | AG6: 8360 | AH6: 9202
B7: Operating profit | C7: 2636 | D7: 2167 | E7: 2075 | F7: -3468 | G7: 3409 | H7: 693 | I7: 1190 | J7: 1675 | K7: 1158 | L7: 4716 | M7: 795 | N7: 627 | O7: 1179 | P7: 998 | Q7: 3599 | R7: 1266 | S7: 1224 | T7: 1246 | U7: 1522 | V7: 5258 | W7: 1088 | X7: 1217 | Y7: 1620 | Z7: 1765 | AA7: 1745 | AB7: 1958 | AC7: 1502 | AD7: 1718 | AE7: 5955 | AF7: 6658 | AG7: 1546 | AH7: 1890
B8: - operating margin, % | C8: 0.276 | D8: 0.282 | E8: 0.256 | F8: n/a | G8: 0.104 | H8: 0.088 | I8: 0.202 | J8: 0.225 | K8: 0.167 | L8: 0.167 | M8: 0.099 | N8: 0.088 | O8: 0.162 | P8: 0.148 | Q8: 0.123 | R8: 0.205 | S8: 0.194 | T8: 0.185 | U8: 0.221 | V8: 0.201 | W8: 0.178 | X8: 0.201 | Y8: 0.216 | Z8: 0.238 | AA8: 0.215 | AB8: 0.245 | AC8: 0.18 | AD8: 0.208 | AE8: 0.198 | AF8: 0.224 | AG8: 0.185 | AH8: 0.205
B9: Depreciation and amortization | C9: 2261 | D9: 1660 | E9: 1410 | F9: 1448 | G9: 6779 | H9: 1344 | I9: 1107 | J9: 1358 | K9: 1390 | L9: 5199 | M9: 1557 | N9: 1530 | O9: 1542 | P9: 1676 | Q9: 6304 | R9: 1557 | S9: 1518 | T9: 1550 | U9: 1481 | V9: 6106 | W9: 1614 | X9: 1973 | Y9: 1864 | Z9: 2300 | AA9: 1987 | AB9: 2437 | AC9: 2158 | AD9: 2636 | AE9: 7623 | AF9: 9346 | AG9: 2869 | AH9: 2871
B10: - as % of revenue | C10: 0.237 | D10: 0.216 | E10: 0.174 | F10: 0.194 | G10: 0.207 | H10: 0.17 | I10: 0.188 | J10: 0.182 | K10: 0.2 | L10: 0.184 | M10: 0.195 | N10: 0.214 | O10: 0.212 | P10: 0.248 | Q10: 0.216 | R10: 0.252 | S10: 0.241 | T10: 0.229 | U10: 0.215 | V10: 0.234 | W10: 0.264 | X10: 0.326 | Y10: 0.249 | Z10: 0.311 | AA10: 0.245 | AB10: 0.305 | AC10: 0.258 | AD10: 0.319 | AE10: 0.254 | AF10: 0.315 | AG10: 0.343 | AH10: 0.312
B11: Adjusted OIBDA** | C11: 4897 | D11: 3826 | E11: 3485 | F11: 3118 | G11: 15326 | H11: 3735 | I11: 2297 | J11: 3032 | K11: 2548 | L11: 11612 | M11: 2351 | N11: 2157 | O11: 2722 | P11: 2674 | Q11: 9903 | R11: 2823 | S11: 2742 | T11: 2797 | U11: 3002 | V11: 11364 | W11: 2702 | X11: 3190 | Y11: 3484 | Z11: 4065 | AA11: 3732 | AB11: 4395 | AC11: 3661 | AD11: 4354 | AE11: 13579 | AF11: 16004 | AG11: 4415 | AH11: 4762
B12: Adjusted OIBDA margin, % | C12: 0.513 | D12: 0.498 | E12: 0.43 | F12: 0.417 | G12: 0.467 | H12: 0.473 | I12: 0.389 | J12: 0.407 | K12: 0.367 | L12: 0.412 | M12: 0.294 | N12: 0.301 | O12: 0.374 | P12: 0.396 | Q12: 0.339 | R12: 0.458 | S12: 0.435 | T12: 0.414 | U12: 0.437 | V12: 0.435 | W12: 0.442 | X12: 0.528 | Y12: 0.465 | Z12: 0.549 | AA12: 0.461 | AB12: 0.549 | AC12: 0.438 | AD12: 0.527 | AE12: 0.452 | AF12: 0.539 | AG12: 0.528 | AH12: 0.517
B13: Net profit | C13: 4053 | D13: 2312 | E13: 2173 | F13: -789 | G13: 7748 | H13: 3223 | I13: 548 | J13: 1637 | K13: 1180 | L13: 6589 | M13: 804 | N13: 579 | O13: 1139 | P13: 802 | Q13: 3324 | R13: 1149 | S13: 1140 | T13: 1183 | U13: 1450 | V13: 4922 | W13: 849 | X13: 757 | Y13: 1393 | Z13: 1286 | AA13: 972 | AB13: 942 | AC13: 1264 | AD13: 1274 | AE13: 4478 | AF13: 4259 | AG13: 1033 | AH13: 1242
B14: - margin, % | C14: 0.425 | D14: 0.301 | E14: 0.268 | F14: n/a | G14: 0.236 | H14: 0.408 | I14: 0.093 | J14: 0.22 | K14: 0.17 | L14: 0.234 | M14: 0.101 | N14: 0.081 | O14: 0.157 | P14: 0.119 | Q14: 0.114 | R14: 0.186 | S14: 0.181 | T14: 0.175 | U14: 0.211 | V14: 0.189 | W14: 0.139 | X14: 0.125 | Y14: 0.186 | Z14: 0.174 | AA14: 0.12 | AB14: 0.118 | AC14: 0.151 | AD14: 0.154 | AE14: 0.149 | AF14: 0.143 | AG14: 0.124 | AH14: 0.135
B15: CAPEX | C15: 608 | D15: 813 | E15: 828 | F15: 1962 | G15: 4210 | H15: 9102 | I15: 1506 | J15: 1842 | K15: 7021 | L15: 19471 | M15: 1590 | N15: 1564 | O15: 1189 | P15: 3140 | Q15: 7483 | R15: 1286 | S15: 2547 | T15: 2353 | U15: 4101 | V15: 10287 | W15: 2588 | X15: 2588 | Y15: 6149 | Z15: 6149 | AA15: 2466 | AB15: 2466 | AC15: 3664 | AD15: 3664 | AE15: 14867 | AF15: 14867 | AG15: 2011 | AH15: 1891
B16: CAPEX excluding purchases of 3G and 4G licenses | C16: 608 | D16: 813 | E16: 828 | F16: 1962 | G16: 4210 | H16: 2058 | I16: 1506 | J16: 1842 | K16: 7021 | L16: 12427 | M16: 1590 | N16: 1564 | O16: 1189 | P16: 3140 | Q16: 7483 | R16: 1286 | S16: 2547 | T16: 2353 | U16: 4101 | V16: 10287 | W16: 1222 | X16: 1222 | Y16: 1987 | Z16: 1987 | AA16: 2466 | AB16: 2466 | AC16: 3664 | AD16: 3664 | AE16: 9339 | AF16: 9339 | AG16: 2011 | AH16: 1891
B17: - as % of revenue | C17: 0.064 | D17: 0.106 | E17: 0.102 | F17: 0.263 | G17: 0.128 | H17: 0.26 | I17: 0.255 | J17: 0.247 | K17: 1.012 | L17: 0.441 | M17: 0.199 | N17: 0.219 | O17: 0.163 | P17: 0.465 | Q17: 0.256 | R17: 0.209 | S17: 0.404 | T17: 0.348 | U17: 0.597 | V17: 0.394 | W17: 0.2 | X17: 0.202 | Y17: 0.265 | Z17: 0.268 | AA17: 0.304 | AB17: 0.308 | AC17: 0.438 | AD17: 0.443 | AE17: 0.311 | AF17: 0.314 | AG17: 0.241 | AH17: 0.205
B18: Cost to obtain and fulfill contracts | W18: 0 | X18: 57 | Y18: 0 | Z18: 54 | AA18: 0 | AB18: 54 | AC18: 0 | AD18: 54 | AE18: 0 | AF18: 219 | AG18: 69 | AH18: 67
B20: Operating highlights
B21: Mobile business
B22: MTS subscribers, mln | C22: 21.7 | D22: 22.3 | E22: 22.7 | F22: 20.2 | G22: 20.2 | H22: 20.3 | I22: 20.3 | J22: 20.289667 | K22: 20.4 | L22: 20.4 | M22: 20.7 | N22: 20.8 | O22: 20.8 | P22: 20.9 | Q22: 20.9 | R22: 20.9 | S22: 20.8 | T22: 20.8 | U22: 20.8 | V22: 20.8 | W22: 20.7 | X22: 20.7 | Y22: 20.3 | Z22: 20.3 | AA22: 19.9 | AB22: 19.9 | AC22: 19.7 | AD22: 19.7 | AE22: 19.7 | AF22: 19.7 | AG22: 19.6 | AH22: 19.6
B23: Total traffic, bln minutes | C23: 37 | D23: 37.9 | E23: 32.5 | F23: 30.8 | G23: 138.2 | H23: 30.7 | I23: 30.4 | J23: 30.3 | K23: 31.9 | L23: 123.3 | M23: 32.6 | N23: 31.9 | O23: 31.5 | P23: 32.1 | Q23: 128.1 | R23: 32 | S23: 32 | T23: 31.3 | U23: 32.6 | V23: 127.9 | W23: 29 | X23: 29 | Y23: 29.1 | Z23: 29.1 | AA23: 28.3 | AB23: 28.3 | AC23: 28.7 | AD23: 28.7 | AE23: 115.1 | AF23: 115.1 | AG23: 28.1 | AH23: 28
B25: UAH/RUB | C25: 0.25 | D25: 0.33 | E25: 0.35 | F25: 0.31 | G25: 0.31 | H25: 0.34 | I25: 0.41 | J25: 0.35 | K25: 0.35 | L25: 0.36 | M25: 0.34 | N25: 0.38 | O25: 0.39 | P25: 0.41 | Q25: 0.38 | R25: 0.46 | S25: 0.46 | T25: 0.44 | U25: 0.46 | V25: 0.46 | W25: 0.48 | X25: 0.48 | Y25: 0.42 | Z25: 0.42 | AA25: ='Ave Forex Rates'!Z6 -> 0.42 | AB25: ='Ave Forex Rates'!Z6 -> 0.42 | AC25: ='Ave Forex Rates'!AA6 -> 0.42 | AD25: ='Ave Forex Rates'!AA6 -> 0.42 | AE25: ='Ave Forex Rates'!AB6 -> 0.44 | AF25: ='Ave Forex Rates'!AB6 -> 0.44 | AG25: ='Ave Forex Rates'!AC6 -> 0.41 | AH25: ='Ave Forex Rates'!AD6 -> 0.41
B27: Amounts in millions of UAH, unless stated
B28: Revenue | C28: 2414 | D28: 2570 | E28: 2818 | F28: 2282 | G28: 10084 | H28: 2631 | I28: 2419 | J28: 2572 | K28: 2405 | L28: 10027 | M28: 2761 | N28: 2745 | O28: 2860 | P28: 2772 | Q28: 11138 | R28: 2840 | S28: 2917 | T28: 2967 | U28: 3174 | V28: 11898 | W28: 2937 | X28: 2901 | Y28: 3172 | Z28: 3136 | AA28: 3376 | AB28: 3340 | AC28: 3514 | AD28: 3475 | AE28: 12999 | AF28: 12852 | AG28: 3453 | AH28: 3786
B29: Operating profit | C29: 668 | D29: 724 | E29: 722 | F29: -928 | G29: 1186 | H29: 147 | I29: 489 | J29: 579 | K29: 404 | L29: 1619 | M29: 270 | N29: 240 | O29: 465 | P29: 407 | Q29: 1382 | R29: 585 | S29: 565 | T29: 547 | U29: 704 | V29: 2401 | W29: 521 | X29: 583 | Y29: 687 | Z29: 747 | AA29: 728 | AB29: 818 | AC29: 632 | AD29: 721 | AE29: 2568 | AF29: 2869 | AG29: 639 | AH29: 778
B30: - operating margin, % | C30: 0.277 | D30: 0.282 | E30: 0.256 | F30: n/a | G30: 0.118 | H30: 0.056 | I30: 0.202 | J30: 0.225 | K30: 0.168 | L30: 0.161 | M30: 0.098 | N30: 0.087 | O30: 0.163 | P30: 0.147 | Q30: 0.124 | R30: 0.206 | S30: 0.194 | T30: 0.185 | U30: 0.222 | V30: 0.202 | W30: 0.177 | X30: 0.201 | Y30: 0.217 | Z30: 0.238 | AA30: 0.216 | AB30: 0.245 | AC30: 0.18 | AD30: 0.208 | AE30: 0.198 | AF30: 0.223 | AG30: 0.185 | AH30: 0.205
B31: Depreciation and amortization | C31: 569 | D31: 555 | E31: 489 | F31: 442 | G31: 2056 | H31: 443 | I31: 453 | J31: 469 | K31: 481 | L31: 1846 | M31: 533 | N31: 587 | O31: 605 | P31: 688 | Q31: 2412 | R31: 716 | S31: 704 | T31: 680 | U31: 682 | V31: 2782 | W31: 775 | X31: 947 | Y31: 790 | Z31: 975 | AA31: 830 | AB31: 1017 | AC31: 908 | AD31: 1109 | AE31: 3303 | AF31: 4048 | AG31: 1185 | AH31: 1181
B32: - as % of revenue | C32: 0.236 | D32: 0.216 | E32: 0.174 | F32: 0.194 | G32: 0.204 | H32: 0.168 | I32: 0.187 | J32: 0.182 | K32: 0.2 | L32: 0.184 | M32: 0.193 | N32: 0.214 | O32: 0.212 | P32: 0.248 | Q32: 0.217 | R32: 0.252 | S32: 0.241 | T32: 0.229 | U32: 0.215 | V32: 0.234 | W32: 0.264 | X32: 0.326 | Y32: 0.249 | Z32: 0.311 | AA32: 0.246 | AB32: 0.305 | AC32: 0.258 | AD32: 0.319 | AE32: 0.254 | AF32: 0.315 | AG32: 0.343 | AH32: 0.312
B33: Adjusted OIBDA** | C33: 1238 | D33: 1279 | E33: 1211 | F33: 963 | G33: 4691 | H33: 1238 | I33: 942 | J33: 1048 | K33: 885 | L33: 4113 | M33: 803 | N33: 827 | O33: 1070 | P33: 1096 | Q33: 3795 | R33: 1301 | S33: 1268 | T33: 1228 | U33: 1386 | V33: 5183 | W33: 1296 | X33: 1530 | Y33: 1477 | Z33: 1722 | AA33: 1558 | AB33: 1835 | AC33: 1539 | AD33: 1830 | AE33: 5870 | AF33: 6917 | AG33: 1823 | AH33: 1959
B34: Adjusted OIBDA margin, % | C34: 0.513 | D34: 0.498 | E34: 0.43 | F34: 0.422 | G34: 0.465 | H34: 0.47 | I34: 0.389 | J34: 0.408 | K34: 0.368 | L34: 0.41 | M34: 0.291 | N34: 0.301 | O34: 0.374 | P34: 0.395 | Q34: 0.341 | R34: 0.458 | S34: 0.435 | T34: 0.414 | U34: 0.437 | V34: 0.436 | W34: 0.441 | X34: 0.528 | Y34: 0.466 | Z34: 0.549 | AA34: 0.461 | AB34: 0.549 | AC34: 0.438 | AD34: 0.527 | AE34: 0.452 | AF34: 0.538 | AG34: 0.528 | AH34: 0.517
B35: Net profit | C35: 1032 | D35: 771 | E35: 763 | F35: -141 | G35: 2425 | H35: 1096 | I35: 214 | J35: 569 | K35: 412 | L35: 2290 | M35: 275 | N35: 222 | O35: 448 | P35: 329 | Q35: 1275 | R35: 530 | S35: 526 | T35: 521 | U35: 671 | V35: 2248 | W35: 411 | X35: 367 | Y35: 589 | Z35: 543 | AA35: 406 | AB35: 394 | AC35: 531 | AD35: 536 | AE35: 1937 | AF35: 1840 | AG35: 426 | AH35: 511
B36: - margin, % | C36: 0.427 | D36: 0.3 | E36: 0.271 | F36: n/a | G36: 0.24 | H36: 0.416 | I36: 0.088 | J36: 0.221 | K36: 0.171 | L36: 0.228 | M36: 0.1 | N36: 0.081 | O36: 0.157 | P36: 0.119 | Q36: 0.114 | R36: 0.187 | S36: 0.18 | T36: 0.175 | U36: 0.211 | V36: 0.189 | W36: 0.14 | X36: 0.126 | Y36: 0.186 | Z36: 0.173 | AA36: 0.12 | AB36: 0.118 | AC36: 0.151 | AD36: 0.154 | AE36: 0.149 | AF36: 0.143 | AG36: 0.124 | AH36: 0.135
B37: CAPEX | C37: 155 | D37: 271 | E37: 286 | F37: 586 | G37: 1298 | H37: 3369 | I37: 619 | J37: 636 | K37: 2426 | L37: 7051 | M37: 543 | N37: 600 | O37: 466 | P37: 1295 | Q37: 2903 | R37: 590 | S37: 1182 | T37: 1035 | U37: 1899 | V37: 4706 | W37: 1213 | X37: 1213 | Y37: 2650 | Z37: 2650 | AA37: 1030 | AB37: 1030 | AC37: 1544 | AD37: 1544 | AE37: 6437 | AF37: 6437 | AG37: 831 | AH37: 778
B38: CAPEX excluding purchases of 3G license | C38: 155 | D38: 271 | E38: 286 | F38: 586 | G38: 1298 | H38: 645 | I38: 619 | J38: 636 | K38: 2426 | L38: 4327 | M38: 543 | N38: 600 | O38: 466 | P38: 1295 | Q38: 2903 | R38: 590 | S38: 1182 | T38: 1035 | U38: 1899 | V38: 4706 | W38: 582 | X38: 582 | Y38: 848 | Z38: 848 | AA38: 1030 | AB38: 1030 | AC38: 1544 | AD38: 1544 | AE38: 4004 | AF38: 4004 | AG38: 831 | AH38: 778
B39: - as % of revenue | C39: 0.064 | D39: 0.106 | E39: 0.102 | F39: 0.257 | G39: 0.129 | H39: 0.245 | I39: 0.256 | J39: 0.247 | K39: 1.009 | L39: 0.431 | M39: 0.197 | N39: 0.219 | O39: 0.163 | P39: 0.467 | Q39: 0.261 | R39: 0.208 | S39: 0.405 | T39: 0.349 | U39: 0.598 | V39: 0.396 | W39: 0.198 | X39: 0.201 | Y39: 0.267 | Z39: 0.27 | AA39: 0.305 | AB39: 0.308 | AC39: 0.439 | AD39: 0.444 | AE39: 0.308 | AF39: 0.312 | AG39: 0.241 | AH39: 0.206
B40: Cost to obtain and fulfill contracts | W40: 0 | X40: 26 | Y40: 0 | Z40: 23 | AA40: 0 | AB40: 23 | AC40: 0 | AD40: 23 | AE40: 0 | AF40: 95 | AG40: 29 | AH40: 27
B43: " - Financial data for the period, excluding effects of new standards
B44: *Due to the rounding and translation practices, Russian rubles and functional currency margins, as well as other non-IFRS financial measures, may differ.
B46: **OIBDA for 4Q 2014 and 2014 doesn't include provision for cash balances deposited in distressed Ukrainian banks of RUB 5,138 mln (UAH 1,449 mln). OIBDA for 1Q 2015 and 2015 doesn't include provision for cash balances deposited in distressed Ukrainian banks of RUB 1,698 mln (UAH 648 mln).

Sheet Armenia
B2: Country highlights:* | C2: 2014 | H2: 2015 | M2: 2016 | R2: 2017 | W2: 2018 | AG2: 2019
B3: Armenia | C3: Q1 | D3: Q2 | E3: Q3 | F3: Q4 | G3: Full year | H3: Q1 | I3: Q2 | J3: Q3 | K3: Q4 | L3: Full year | M3: Q1 | N3: Q2 | O3: Q3 | P3: Q4 | Q3: Full year | R3: Q1 | S3: Q2 | T3: Q3 | U3: Q4 | V3: Full year | W3: Q1" | X3: Q1 | Y3: Q2" | Z3: Q2 | AA3: Q3" | AB3: Q3 | AC3: Q4" | AD3: Q4 | AE3: Full year" | AF3: Full year | AG3: Q1 | AH3: Q2
B5: Amounts in millions of RUB, unless stated
B6: Revenue | C6: 1458 | D6: 1599 | E6: 1953 | F6: 2141 | G6: 7151 | H6: 2200 | I6: 2043 | J6: 2525 | K6: 2269 | L6: 9038 | M6: 2157 | N6: 2068 | O6: 2055 | P6: 1839 | Q6: 8120 | R6: 1558 | S6: 1657 | T6: 1894 | U6: 1754 | V6: 6863 | W6: 1612 | X6: 1612 | Y6: 1827 | Z6: 1827 | AA6: 2037 | AB6: 2037 | AC6: 2053 | AD6: 2053 | AE6: 7529 | AF6: 7529 | AG6: 1811 | AH6: 1850
B7: Operating profit | C7: 221 | D7: 347 | E7: 642 | F7: 464 | G7: 1674 | H7: 436 | I7: 412 | J7: 680 | K7: -3122 | L7: -1595 | M7: 120 | N7: 136 | O7: 196 | P7: 8 | Q7: 460 | R7: 111 | S7: 222 | T7: 337 | U7: 271 | V7: 941 | W7: 169 | X7: 183 | Y7: 135 | Z7: 150 | AA7: 354 | AB7: 370 | AC7: 77 | AD7: 92 | AE7: 735 | AF7: 795 | AG7: 157 | AH7: 255
B8: - operating margin, % | C8: 0.152 | D8: 0.217 | E8: 0.329 | F8: 0.217 | G8: 0.234 | H8: 0.198 | I8: 0.201 | J8: 0.269 | K8: n/a | L8: n/a | M8: 0.056 | N8: 0.066 | O8: 0.095 | P8: 0.004 | Q8: 0.057 | R8: 0.071 | S8: 0.134 | T8: 0.178 | U8: 0.155 | V8: 0.137 | W8: 0.105 | X8: 0.114 | Y8: 0.074 | Z8: 0.082 | AA8: 0.174 | AB8: 0.182 | AC8: 0.038 | AD8: 0.044 | AE8: 0.098 | AF8: 0.106 | AG8: 0.087 | AH8: 0.138
B9: Depreciation and amortization | C9: 440 | D9: 419 | E9: 425 | F9: 523 | G9: 1807 | H9: 623 | I9: 525 | J9: 626 | K9: 656 | L9: 2431 | M9: 737 | N9: 681 | O9: 690 | P9: 701 | Q9: 2809 | R9: 535 | S9: 528 | T9: 558 | U9: 584 | V9: 2205 | W9: 530 | X9: 589 | Y9: 611 | Z9: 670 | AA9: 575 | AB9: 637 | AC9: 613 | AD9: 677 | AE9: 2329 | AF9: 2573 | AG9: 630 | AH9: 657
B10: - as % of revenue | C10: 0.302 | D10: 0.262 | E10: 0.218 | F10: 0.244 | G10: 0.253 | H10: 0.283 | I10: 0.257 | J10: 0.248 | K10: 0.289 | L10: 0.269 | M10: 0.342 | N10: 0.329 | O10: 0.336 | P10: 0.381 | Q10: 0.346 | R10: 0.343 | S10: 0.319 | T10: 0.295 | U10: 0.333 | V10: 0.321 | W10: 0.329 | X10: 0.365 | Y10: 0.334 | Z10: 0.367 | AA10: 0.282 | AB10: 0.312 | AC10: 0.299 | AD10: 0.33 | AE10: 0.309 | AF10: 0.342 | AG10: 0.348 | AH10: 0.355
B11: Adjusted OIBDA** | C11: 662 | D11: 766 | E11: 1067 | F11: 986 | G11: 3481 | H11: 1059 | I11: 937 | J11: 1306 | K11: 1050 | L11: 4352 | M11: 857 | N11: 817 | O11: 886 | P11: 709 | Q11: 3269 | R11: 646 | S11: 750 | T11: 894 | U11: 856 | V11: 3146 | W11: 699 | X11: 772 | Y11: 746 | Z11: 821 | AA11: 930 | AB11: 1006 | AC11: 689 | AD11: 769 | AE11: 3064 | AF11: 3368 | AG11: 788 | AH11: 911
B12: Adjusted OIBDA margin, % | C12: 0.454 | D12: 0.479 | E12: 0.546 | F12: 0.461 | G12: 0.487 | H12: 0.481 | I12: 0.458 | J12: 0.5171823545 | K12: 0.463 | L12: 0.482 | M12: 0.397 | N12: 0.395 | O12: 0.431 | P12: 0.385 | Q12: 0.403 | R12: 0.414 | S12: 0.453 | T12: 0.472 | U12: 0.488 | V12: 0.458 | W12: 0.434 | X12: 0.479 | Y12: 0.408 | Z12: 0.449 | AA12: 0.457 | AB12: 0.494 | AC12: 0.336 | AD12: 0.374 | AE12: 0.407 | AF12: 0.447 | AG12: 0.435 | AH12: 0.492
B13: Net profit | C13: 222 | D13: 1009 | E13: 67 | F13: -102 | G13: 1196 | H13: 316 | I13: 456 | J13: 537 | K13: -2480 | L13: -1175 | M13: 42 | N13: -271 | O13: 501 | P13: 219 | Q13: 490 | R13: -148 | S13: -14 | T13: 811 | U13: -3 | V13: 646 | W13: 121 | X13: 113 | Y13: -241 | Z13: -250 | AA13: 453 | AB13: 448 | AC13: -939 | AD13: -958 | AE13: -606 | AF13: -647 | AG13: -1673 | AH13: 64
B14: - margin, % | C14: 0.152 | D14: 0.631 | E14: 0.034 | F14: n/a | G14: 0.167 | H14: 0.143 | I14: 0.223 | J14: 0.213 | K14: n/a | L14: n/a | M14: 0.019 | N14: n/a | O14: 0.244 | P14: 0.119 | Q14: 0.06 | R14: n/a | S14: n/a | T14: 0.429 | U14: n/a | V14: 0.094 | W14: 0.075 | X14: 0.07 | Y14: n/a | Z14: n/a | AA14: 0.222 | AB14: 0.22 | AC14: n/a | AD14: n/a | AE14: n/a | AF14: n/a | AG14: n/a | AH14: 0.035
B15: CAPEX | C15: 80 | D15: 92 | E15: 173 | F15: 797 | G15: 1142 | H15: 119 | I15: 53 | J15: 304 | K15: 895 | L15: 1371 | M15: 99 | N15: 182 | O15: 137 | P15: 542 | Q15: 960 | R15: 53 | S15: 194 | T15: 163 | U15: 448 | V15: 858 | W15: 80 | X15: 80 | Y15: 81 | Z15: 81 | AA15: 275 | AB15: 275 | AC15: 1550 | AD15: 1550 | AE15: 1986 | AF15: 1986 | AG15: 103 | AH15: 255
B16: CAPEX excluding purchases of 4G licenses | C16: 80 | D16: 92 | E16: 173 | F16: 797 | G16: 1142 | H16: 119 | I16: 53 | J16: 304 | K16: 895 | L16: 1371 | M16: 99 | N16: 182 | O16: 137 | P16: 542 | Q16: 960 | R16: 53 | S16: 194 | T16: 163 | U16: 448 | V16: 858 | W16: 80 | X16: 80 | Y16: 81 | Z16: 81 | AA16: 275 | AB16: 275 | AC16: 1550 | AD16: 1550 | AE16: 1986 | AF16: 1986 | AG16: 103 | AH16: 232
B17: - as % of revenue | C17: 0.055 | D17: 0.058 | E17: 0.088 | F17: 0.372 | G17: 0.16 | H17: 0.054 | I17: 0.026 | J17: 0.121 | K17: 0.395 | L17: 0.152 | M17: 0.046 | N17: 0.088 | O17: 0.067 | P17: 0.295 | Q17: 0.118 | R17: 0.034 | S17: 0.117 | T17: 0.086 | U17: 0.255 | V17: 0.125 | W17: 0.05 | X17: 0.05 | Y17: 0.044 | Z17: 0.044 | AA17: 0.135 | AB17: 0.135 | AC17: 0.755 | AD17: 0.755 | AE17: 0.264 | AF17: 0.264 | AG17: 0.057 | AH17: 0.126
B19: Operating highlights
B20: Mobile business
B21: MTS subscribers, thous | C21: 2102.5 | D21: 2121.8 | E21: 2149.4 | F21: 2145.5 | G21: 2145.5 | H21: 2116.6 | I21: 2109.7 | J21: 2126.6 | K21: 2115.1 | L21: 2115.1 | M21: 2099.1 | N21: 2106 | O21: 2112.6 | P21: 2092.4 | Q21: 2092.4 | R21: 2074.4 | S21: 2107.6 | T21: 2139.4 | U21: 2119.7 | V21: 2119.7 | W21: 2100 | X21: 2100 | Y21: 2107.6 | Z21: 2107.6 | AA21: 2152.4 | AB21: 2152.4 | AC21: 2128.1 | AD21: 2128.1 | AE21: 2128.1 | AF21: 2128.1 | AG21: 2119 | AH21: 2149
B22: Total traffic, mln minutes | C22: 2925 | D22: 3271 | E22: 3374 | F22: 3366 | G22: 12936 | H22: 3154 | I22: 3398 | J22: 3461 | K22: 3393 | L22: 13406 | M22: 3206 | N22: 3463 | O22: 3552 | P22: 3483 | Q22: 13704 | R22: 3232 | S22: 3585 | T22: 3673 | U22: 3692 | V22: 14182 | W22: 3534 | X22: 3534 | Y22: 3781 | Z22: 3781 | AA22: 3851 | AB22: 3851 | AC22: 3827 | AD22: 3827 | AE22: 14993 | AF22: 14993 | AG22: 3631 | AH22: 3947
B24: AMD/RUB | C24: 11.8 | D24: 11.8 | E24: 11.3 | F24: 9.2 | G24: 11 | H24: 7.7 | I24: 9.1 | J24: 7.7 | K24: 7.3 | L24: 7.9 | M24: 6.6 | N24: 7.3 | O24: 7.36 | P24: 7.6 | Q24: 7.2 | R24: 8.26 | S24: 8.46 | T24: 8.11 | U24: 8.27 | V24: 8.28 | W24: 8.47 | X24: 8.47 | Y24: 7.82 | Z24: 7.82 | AA24: ='Ave Forex Rates'!Z8 -> 7.37 | AB24: ='Ave Forex Rates'!Z8 -> 7.37 | AC24: ='Ave Forex Rates'!AA8 -> 7.3 | AD24: ='Ave Forex Rates'!AA8 -> 7.3 | AE24: ='Ave Forex Rates'!AB8 -> 7.74 | AF24: ='Ave Forex Rates'!AB8 -> 7.74 | AG24: ='Ave Forex Rates'!AC8 -> 7.37 | AH24: ='Ave Forex Rates'!AD8 -> 7.45
B26: Amounts in millions of AMD, unless stated
B27: Revenue | C27: 17138 | D27: 18876 | E27: 22066 | F27: 19572 | G27: 77651 | H27: 16921 | I27: 18479 | J27: 19296 | K27: 16481 | L27: 71177 | M27: 14151 | N27: 15040 | O27: 15122 | P27: 13967 | Q27: 58280 | R27: 12867 | S27: 14017 | T27: 15355 | U27: 14514 | V27: 56753 | W27: 13647 | X27: 13647 | Y27: 14275 | Z27: 14275 | AA27: 15008 | AB27: 15008 | AC27: 14985 | AD27: 14985 | AE27: 57915 | AF27: 57915 | AG27: 13348 | AH27: 13782
B28: Operating profit | C28: 2624 | D28: 4101 | E28: 7259 | F28: 4341 | G28: 18324 | H28: 3359 | I28: 3737 | J28: 5214 | K28: -21528 | L28: -9218 | M28: 788 | N28: 992 | O28: 1441 | P28: 54 | Q28: 3275 | R28: 914 | S28: 1879 | T28: 2724 | U28: 2244 | V28: 7761 | W28: 1427 | X28: 1547 | Y28: 1039 | Z28: 1159 | AA28: 2626 | AB28: 2738 | AC28: 581 | AD28: 689 | AE28: 5673 | AF28: 6133 | AG28: 1147 | AH28: 1895
B29: - operating margin, % | C29: 0.153 | D29: 0.217 | E29: 0.329 | F29: 0.222 | G29: 0.236 | H29: 0.199 | I29: 0.202 | J29: 0.27 | K29: n/a | L29: n/a | M29: 0.056 | N29: 0.066 | O29: 0.095 | P29: 0.004 | Q29: 0.056 | R29: 0.071 | S29: 0.134 | T29: 0.177 | U29: 0.155 | V29: 0.137 | W29: 0.105 | X29: 0.113 | Y29: 0.073 | Z29: 0.081 | AA29: 0.175 | AB29: 0.182 | AC29: 0.039 | AD29: 0.046 | AE29: 0.098 | AF29: 0.106 | AG29: 0.086 | AH29: 0.137
B30: Depreciation and amortization | C30: 5179 | D30: 4943 | E30: 4799 | F30: 4770 | G30: 19690 | H30: 4788 | I30: 4753 | J30: 4770 | K30: 4768 | L30: 19079 | M30: 4830 | N30: 4952 | O30: 5078 | P30: 5322 | Q30: 20181 | R30: 4418 | S30: 4466 | T30: 4525 | U30: 4837 | V30: 18246 | W30: 4483 | X30: 4985 | Y30: 4781 | Z30: 5241 | AA30: 4235 | AB30: 4689 | AC30: 4478 | AD30: 4946 | AE30: 17977 | AF30: 19861 | AG30: 4645 | AH30: 4892
B31: - as % of revenue | C31: 0.302 | D31: 0.262 | E31: 0.217 | F31: 0.244 | G31: 0.254 | H31: 0.283 | I31: 0.257 | J31: 0.247 | K31: 0.289 | L31: 0.268 | M31: 0.341 | N31: 0.329 | O31: 0.336 | P31: 0.381 | Q31: 0.346 | R31: 0.343 | S31: 0.319 | T31: 0.295 | U31: 0.333 | V31: 0.321 | W31: 0.328 | X31: 0.365 | Y31: 0.335 | Z31: 0.367 | AA31: 0.282 | AB31: 0.312 | AC31: 0.299 | AD31: 0.33 | AE31: 0.31 | AF31: 0.343 | AG31: 0.348 | AH31: 0.355
B32: Adjusted OIBDA** | C32: 7802 | D32: 9043 | E32: 12057 | F32: 9112 | G32: 38014 | H32: 8147 | I32: 8491 | J32: 9984 | K32: 7629 | L32: 34251 | M32: 5618 | N32: 5944 | O32: 6519 | P32: 5375 | Q32: 23456 | R32: 5332 | S32: 6345 | T32: 7249 | U32: 7081 | V32: 26007 | W32: 5910 | X32: 6532 | Y32: 5820 | Z32: 6400 | AA32: 6861 | AB32: 7427 | AC32: 5059 | AD32: 5636 | AE32: 23650 | AF32: 25995 | AG32: 5792 | AH32: 6787
B33: Adjusted OIBDA margin, % | C33: 0.455 | D33: 0.479 | E33: 0.546 | F33: 0.466 | G33: 0.49 | H33: 0.481 | I33: 0.459 | J33: 0.517 | K33: 0.463 | L33: 0.481 | M33: 0.397 | N33: 0.395 | O33: 0.431 | P33: 0.385 | Q33: 0.402 | R33: 0.414 | S33: 0.453 | T33: 0.472 | U33: 0.488 | V33: 0.458 | W33: 0.433 | X33: 0.479 | Y33: 0.408 | Z33: 0.448 | AA33: 0.457 | AB33: 0.495 | AC33: 0.338 | AD33: 0.376 | AE33: 0.408 | AF33: 0.449 | AG33: 0.434 | AH33: 0.492
B34: Net profit | C34: 2620 | D34: 11911 | E34: 776 | F34: -897 | G34: 14410 | H34: 2420 | I34: 4078 | J34: 4107 | K34: -17119 | L34: -6514 | M34: 239 | N34: -1991 | O34: 3678 | P34: 1720 | Q34: 3646 | R34: -1248 | S34: -115 | T34: 6673 | U34: -16 | V34: 5294 | W34: 1025 | X34: 956 | Y34: -1855 | Z34: -1928 | AA34: 3314 | AB34: 3279 | AC34: -6731 | AD34: -6868 | AE34: -4247 | AF34: -4561 | AG34: -12554 | AH34: 477
B35: - margin, % | C35: 0.153 | D35: 0.631 | E35: 0.035 | F35: n/a | G35: 0.186 | H35: 0.143 | I35: 0.221 | J35: 0.213 | K35: n/a | L35: n/a | M35: 0.017 | N35: n/a | O35: 0.243 | P35: 0.123 | Q35: 0.063 | R35: n/a | S35: n/a | T35: 0.435 | U35: n/a | V35: 0.093 | W35: 0.075 | X35: 0.07 | Y35: n/a | Z35: n/a | AA35: 0.221 | AB35: 0.218 | AC35: n/a | AD35: n/a | AE35: n/a | AF35: n/a | AG35: n/a | AH35: 0.035
B36: CAPEX | C36: 937 | D36: 1097 | E36: 1916 | F36: 6932 | G36: 10882 | H36: 887 | I36: 473 | J36: 2299 | K36: 6320 | L36: 9978 | M36: 672 | N36: 1319 | O36: 1012 | P36: 4147 | Q36: 7151 | R36: 439 | S36: 1649 | T36: 1316 | U36: 3702 | V36: 7106 | W36: 675 | X36: 675 | Y36: 634 | Z36: 634 | AA36: 2047 | AB36: 2047 | AC36: 11275 | AD36: 11275 | AE36: 14631 | AF36: 14631 | AG36: 765 | AH36: 1902
B37: CAPEX excluding purchases of 4G licenses | AH37: 1732
B38: - as % of revenue | C38: 0.055 | D38: 0.058 | E38: 0.087 | F38: 0.354 | G38: 0.14 | H38: 0.052 | I38: 0.026 | J38: 0.119 | K38: 0.383 | L38: 0.14 | M38: 0.047 | N38: 0.088 | O38: 0.067 | P38: 0.297 | Q38: 0.123 | R38: 0.034 | S38: 0.118 | T38: 0.086 | U38: 0.255 | V38: 0.125 | W38: 0.049 | X38: 0.049 | Y38: 0.044 | Z38: 0.044 | AA38: 0.136 | AB38: 0.136 | AC38: 0.752 | AD38: 0.752 | AE38: 0.253 | AF38: 0.253 | AG38: 0.057 | AH38: 0.126
B41: " - Financial data for the period, excluding effects of new standards
B42: *Due to the rounding and translation practices, Russian rubles and functional currency margins, as well as other non-IFRS financial measures, may differ.
B43: ** Adjusted OIBDA for 4Q 2015 and 2015 doesn't include a loss from impairment of goodwill of RUB 3,516 mln (24,389 mln of AMD).

Sheet Turkmenistan
B2: Country highlights:* | C2: 2014 | H2: 2015 | M2: 2016 | R2: 2017 | W2: 2018 | AB2: 2019
B3: Turkmenistan | C3: Q1 | D3: Q2 | E3: Q3 | F3: Q4 | G3: Full year | H3: Q1 | I3: Q2 | J3: Q3 | K3: Q4 | L3: Full year | M3: Q1 | N3: Q2 | O3: Q3 | P3: Q4 | Q3: Full year | R3: Q1 | S3: Q2 | T3: Q3 | U3: Q4 | V3: Full year | W3: Q1 | X3: Q2 | Y3: Q3 | Z3: Q4 | AA3: Full year | AB3: Q1 | AC3: Q2
B5: Amounts in millions of RUB, unless stated
B6: Revenue | C6: 806 | D6: 851 | E6: 908 | F6: 1257 | G6: 3822 | H6: 1273 | I6: 1074 | J6: 1342 | K6: 1412 | L6: 5101 | M6: 1434 | N6: 1245 | O6: 1179 | P6: 1134 | Q6: 4991 | R6: 1096 | S6: 1130 | T6: 1040 | U6: 0 | V6: 3266 | W6: 0 | X6: 0 | Y6: 0 | Z6: 0 | AA6: 0 | AB6: 0 | AC6: 0
B7: Operating profit | C7: 180 | D7: 255 | E7: 246 | F7: 329 | G7: 1010 | H7: 252 | I7: 237 | J7: 326 | K7: 330 | L7: 1145 | M7: 278 | N7: 209 | O7: 197 | P7: 243 | Q7: 927 | R7: 199 | S7: 221 | T7: -1172 | U7: -2412 | V7: -3164 | W7: -136 | X7: -142 | Y7: -72 | Z7: -464 | AA7: -814 | AB7: -86 | AC7: 14
B8: - operating margin, % | C8: 0.223 | D8: 0.299 | E8: 0.271 | F8: 0.262 | G8: 0.264 | H8: 0.198 | I8: 0.22 | J8: 0.243 | K8: 0.234 | L8: 0.224 | M8: 0.194 | N8: 0.168 | O8: 0.167 | P8: 0.214 | Q8: 0.186 | R8: 0.182 | S8: 0.195 | T8: n/a | U8: n/a | V8: n/a | W8: n/a | X8: n/a | Y8: n/a | Z8: n/a | AA8: n/a | AB8: n/a | AC8: n/a
B9: Depreciation and amortization | C9: 134 | D9: 122 | E9: 133 | F9: 177 | G9: 566 | H9: 205 | I9: 165 | J9: 203 | K9: 209 | L9: 782 | M9: 232 | N9: 207 | O9: 215 | P9: 216 | Q9: 870 | R9: 188 | S9: 181 | T9: 188 | U9: 37 | V9: 594 | W9: 0 | X9: 0 | Y9: 0 | Z9: 0 | AA9: 0 | AB9: 0 | AC9: 0
B10: - as % of revenue | C10: 0.167 | D10: 0.143 | E10: 0.146 | F10: 0.141 | G10: 0.148 | H10: 0.161 | I10: 0.154 | J10: 0.151 | K10: 0.148 | L10: 0.153 | M10: 0.162 | N10: 0.166 | O10: 0.182 | P10: 0.19 | Q10: 0.174 | R10: 0.171 | S10: 0.16 | T10: 0.181 | U10: n/a | V10: 0.182 | W10: n/a | X10: n/a | Y10: n/a | Z10: n/a | AA10: n/a | AB10: n/a | AC10: n/a
B11: Adjusted OIBDA** | C11: 315 | D11: 377 | E11: 379 | F11: 506 | G11: 1576 | H11: 458 | I11: 402 | J11: 529 | K11: 538 | L11: 1927 | M11: 510 | N11: 416 | O11: 412 | P11: 459 | Q11: 1797 | R11: 387 | S11: 401 | T11: 163 | U11: -317 | V11: 634 | W11: -136 | X11: -142 | Y11: -72 | Z11: -464 | AA11: -814 | AB11: -86 | AC11: 14
B12: Adjusted OIBDA margin, % | C12: 0.39 | D12: 0.443 | E12: 0.417 | F12: 0.402 | G12: 0.412 | H12: 0.36 | I12: 0.374 | J12: 0.394 | K12: 0.381 | L12: 0.378 | M12: 0.356 | N12: 0.334 | O12: 0.35 | P12: 0.405 | Q12: 0.36 | R12: 0.353 | S12: 0.355 | T12: 0.157 | U12: n/a | V12: 0.194 | W12: n/a | X12: n/a | Y12: n/a | Z12: n/a | AA12: n/a | AB12: n/a | AC12: n/a
B13: Net profit | C13: 148 | D13: 228 | E13: 221 | F13: 284 | G13: 882 | H13: 213 | I13: 202 | J13: 282 | K13: 290 | L13: 986 | M13: 242 | N13: 179 | O13: 177 | P13: 218 | Q13: 816 | R13: 178 | S13: 193 | T13: -1170 | U13: -2423 | V13: -3222 | W13: -32 | X13: -134 | Y13: -67 | Z13: -461 | AA13: -694 | AB13: -82 | AC13: 10
B14: - margin, % | C14: 0.184 | D14: 0.268 | E14: 0.243 | F14: 0.226 | G14: 0.231 | H14: 0.167 | I14: 0.188 | J14: 0.21 | K14: 0.205 | L14: 0.193 | M14: 0.169 | N14: 0.144 | O14: 0.15 | P14: 0.193 | Q14: 0.164 | R14: 0.163 | S14: 0.171 | T14: n/a | U14: n/a | V14: n/a | W14: n/a | X14: n/a | Y14: n/a | Z14: n/a | AA14: n/a | AB14: n/a | AC14: n/a
B15: CAPEX | C15: 145 | D15: 61 | E15: 249 | F15: 628 | G15: 1084 | H15: 70 | I15: 244 | J15: 94 | K15: 92 | L15: 500 | M15: 34 | N15: 28 | O15: 55 | P15: 331 | Q15: 448 | R15: 29 | S15: 51 | T15: 29 | U15: 17 | V15: 126 | W15: 1 | X15: 6 | Y15: 2 | Z15: 5 | AA15: 14 | AB15: 1 | AC15: 1
B16: - as % of revenue | C16: 0.18 | D16: 0.072 | E16: 0.275 | F16: 0.5 | G16: 0.284 | H16: 0.055 | I16: 0.227 | J16: 0.07 | K16: 0.065 | L16: 0.098 | M16: 0.024 | N16: 0.023 | O16: 0.047 | P16: 0.292 | Q16: 0.09 | R16: 0.026 | S16: 0.045 | T16: 0.028 | U16: n/a | V16: 0.039 | W16: n/a | X16: n/a | Y16: n/a | Z16: n/a | AA16: n/a | AB16: n/a | AC16: n/a
B18: Operating highlights
B19: Mobile business
B20: MTS subscribers, thous | C20: 1691.9 | D20: 1699.4 | E20: 1691.3 | F20: 1718.8 | G20: 1718.8 | H20: 1675.4 | I20: 1622.9 | J20: 1612 | K20: 1609.8 | L20: 1609.8 | M20: 1620.6 | N20: 1610 | O20: 1630.3 | P20: 1652.2 | Q20: 1652.2 | R20: 1696.6 | S20: 1704.9 | T20: 1655.1 | U20: n/a | V20: n/a | W20: n/a | X20: n/a | Y20: n/a | Z20: n/a | AA20: n/a | AB20: n/a | AC20: n/a
B21: Total traffic, mln minutes | C21: 3012 | D21: 2925 | E21: 2869 | F21: 2830 | G21: 11636 | H21: 2567 | I21: 2549 | J21: 2481 | K21: 2414 | L21: 10011 | M21: 2278 | N21: 2339 | O21: 2717 | P21: 2825 | Q21: 10159 | R21: 2807 | S21: 2982 | T21: 2654 | U21: n/a | V21: 8443 | W21: n/a | X21: n/a | Y21: n/a | Z21: n/a | AA21: n/a | AB21: n/a | AC21: n/a
B23: TMT/RUB | C23: ='Ave Forex Rates'!D7 -> 0.08 | D23: ='Ave Forex Rates'!E7 -> 0.08 | E23: ='Ave Forex Rates'!F7 -> 0.08 | F23: ='Ave Forex Rates'!G7 -> 0.06 | G23: ='Ave Forex Rates'!H7 -> 0.08 | H23: ='Ave Forex Rates'!I7 -> 0.06 | I23: ='Ave Forex Rates'!J7 -> 0.07 | J23: ='Ave Forex Rates'!K7 -> 0.06 | K23: ='Ave Forex Rates'!L7 -> 0.05 | L23: ='Ave Forex Rates'!M7 -> 0.06 | M23: ='Ave Forex Rates'!N7 -> 0.05 | N23: ='Ave Forex Rates'!O7 -> 0.05 | O23: ='Ave Forex Rates'!P7 -> 0.05 | P23: ='Ave Forex Rates'!Q7 -> 0.06 | Q23: ='Ave Forex Rates'!R7 -> 0.05 | R23: ='Ave Forex Rates'!S7 -> 0.06 | S23: ='Ave Forex Rates'!T7 -> 0.06 | T23: ='Ave Forex Rates'!U7 -> 0.06 | U23: ='Ave Forex Rates'!V7 -> 0.06 | V23: ='Ave Forex Rates'!W7 -> 0.06 | W23: ='Ave Forex Rates'!X7 -> 0.06 | X23: ='Ave Forex Rates'!Y7 -> 0.057 | Y23: ='Ave Forex Rates'!Z7 -> 0.05 | Z23: ='Ave Forex Rates'!AA7 -> 0.05 | AA23: ='Ave Forex Rates'!AB7 -> 0.06 | AB23: ='Ave Forex Rates'!AC7 -> 0.05 | AC23: ='Ave Forex Rates'!AD7 -> 0.05
B25: Amounts in millions of TMT, unless stated
B26: Revenue | C26: 65.7 | D26: 69.3 | E26: 71.5 | F26: 75.6 | G26: 282.1 | H26: 71.9 | I26: 71.47 | J26: 74.6 | K26: 75 | L26: 293 | M26: 67.3 | N26: 66.1 | O26: 63.8 | P26: 63 | Q26: 260.2 | R26: 65.2 | S26: 69.2 | T26: 61.7 | U26: 0 | V26: 196.1 | W26: 0 | X26: 0 | Y26: 0 | Z26: 0 | AA26: 0 | AB26: 0 | AC26: 0
B27: Operating profit | C27: 14.6 | D27: 20.7 | E27: 19.4 | F27: 19.7 | G27: 74.4 | H27: 14.3 | I27: 15.7 | J27: 18 | K27: 17.4 | L27: 65.4 | M27: 13 | N27: 11.1 | O27: 10.7 | P27: 13.4 | Q27: 48.2 | R27: 11.8 | S27: 13.5 | T27: -71 | U27: -144.1 | V27: -189.8 | W27: -8.4 | X27: -8 | Y27: -3.8 | Z27: -24.3 | AA27: -44.5 | AB27: -4.5 | AC27: 0.7
B28: - operating margin, % | C28: 0.222 | D28: 0.299 | E28: 0.272 | F28: 0.26 | G28: 0.264 | H28: 0.198 | I28: 0.22 | J28: 0.242 | K28: 0.232 | L28: 0.892 | M28: 0.193 | N28: 0.168 | O28: 0.167 | P28: 0.213 | Q28: 0.185 | R28: 0.182 | S28: 0.195 | T28: n/a | U28: n/a | V28: n/a | W28: n/a | X28: n/a | Y28: n/a | Z28: n/a | AA28: n/a | AB28: n/a | AC28: n/a
B29: Depreciation and amortization | C29: 11 | D29: 9.9 | E29: 10.5 | F29: 10.7 | G29: 42.1 | H29: 11.6 | I29: 11 | J29: 11.3 | K29: 11.1 | L29: 45 | M29: 10.9 | N29: 10.9 | O29: 11.6 | P29: 12 | Q29: 45.5 | R29: 11.2 | S29: 11.1 | T29: 11.1 | U29: 2.3 | V29: 35.7 | W29: 0 | X29: 0 | Y29: 0 | Z29: 0 | AA29: 0 | AB29: 0 | AC29: 0
B30: - as % of revenue | C30: 0.167 | D30: 0.143 | E30: 0.146 | F30: 0.142 | G30: 0.149 | H30: 0.162 | I30: 0.154 | J30: 0.151 | K30: 0.148 | L30: 0.615 | M30: 0.162 | N30: 0.166 | O30: 0.182 | P30: 0.19 | Q30: 0.175 | R30: 0.171 | S30: 0.16 | T30: 0.181 | U30: n/a | V30: 0.182 | W30: n/a | X30: n/a | Y30: n/a | Z30: n/a | AA30: n/a | AB30: n/a | AC30: n/a
B31: Adjusted OIBDA** | C31: 25.6 | D31: 30.7 | E31: 29.9 | F31: 30.4 | G31: 116.6 | H31: 25.9 | I31: 26.7 | J31: 29.3 | K31: 28.45 | L31: 110.4 | M31: 23.9 | N31: 22.1 | O31: 22.3 | P31: 25.4 | Q31: 93.7 | R31: 23 | S31: 24.6 | T31: 9.7 | U31: -19.1 | V31: 38.2 | W31: -8.4 | X31: -8 | Y31: -3.8 | Z31: -24.3 | AA31: -44.5 | AB31: -4.5 | AC31: 0.7
B32: Adjusted OIBDA margin, % | C32: 0.39 | D32: 0.443 | E32: 0.418 | F32: 0.402 | G32: 0.413 | H32: 0.36 | I32: 0.374 | J32: 0.393 | K32: 0.379 | L32: 0.377 | M32: 0.355 | N32: 0.334 | O32: 0.35 | P32: 0.404 | Q32: 0.36 | R32: 0.353 | S32: 0.355 | T32: 0.157 | U32: n/a | V32: 0.195 | W32: n/a | X32: n/a | Y32: n/a | Z32: n/a | AA32: n/a | AB32: n/a | AC32: n/a
B33: Net profit | C33: 12 | D33: 18.6 | E33: 17.4 | F33: 17 | G33: 65 | H33: 12 | I33: 13.4 | J33: 15.6 | K33: 15.2 | L33: 56.2 | M33: 11.3 | N33: 9.5 | O33: 9.6 | P33: 12.1 | Q33: 42.47 | R33: 10.6 | S33: 11.8 | T33: -71 | U33: -144.8 | V33: -193.4 | W33: -2 | X33: -7.6 | Y33: -3.5 | Z33: -24.2 | AA33: -37.3 | AB33: -4.4 | AC33: 0.6
B34: - margin % | C34: 0.182 | D34: 0.269 | E34: 0.244 | F34: 0.224 | G34: 0.23 | H34: 0.167 | I34: 0.188 | J34: 0.209 | K34: 0.203 | L34: 0.192 | M34: 0.168 | N34: 0.144 | O34: 0.15 | P34: 0.192 | Q34: 0.163 | R34: 0.163 | S34: 0.171 | T34: n/a | U34: n/a | V34: n/a | W34: n/a | X34: n/a | Y34: n/a | Z34: n/a | AA34: n/a | AB34: n/a | AC34: n/a
B35: CAPEX | C35: 11.9 | D35: 5 | E35: 18.9 | F35: 33.3 | G35: 69.1 | H35: 3.9 | I35: 16.1 | J35: 5.2 | K35: 4.8 | L35: 30 | M35: 1.6 | N35: 1.5 | O35: 3 | P35: 18.4 | Q35: 24.5 | R35: 1.7 | S35: 3.1 | T35: 1.8 | U35: 1 | V35: 7.6 | W35: 0.1 | X35: 0.4 | Y35: 0.1 | Z35: 0.2 | AA35: 0.8 | AB35: 0 | AC35: 0
B36: - as % of revenue | C36: 0.18 | D36: 0.072 | E36: 0.264 | F36: 0.44 | G36: 0.245 | H36: 0.055 | I36: 0.225 | J36: 0.07 | K36: 0.064 | L36: 0.1023890785 | M36: 0.024 | N36: 0.023 | O36: 0.046 | P36: 0.293 | Q36: 0.094 | R36: 0.026 | S36: 0.045 | T36: 0.028 | U36: n/a | V36: 0.038 | W36: n/a | X36: n/a | Y36: n/a | Z36: n/a | AA36: n/a | AB36: n/a | AC36: n/a
B39: " - Financial data for the period, excluding effects of new standards
B40: *Due to the rounding and translation practices, Russian rubles and functional currency margins, as well as other non-IFRS financial measures, may differ.
B42: ** Adjusted OIBDA for 3Q 2017, 4Q 2017 and 2017 doesn't include a loss from impairment of non-current assets of RUB 1,146 mln (69.6 mln of TMT) , RUB 2,057 mln (122.9 mln of TMT) and RUB 3,204 mln (192.4 mln of TMT), accordingly.

Sheet Belarus
B2: Country highlights:* | C2: 2014 | H2: 2015 | M2: 2016 | R2: 2017 | W2: 2018 | AG2: 2019
B3: Belarus** | C3: Q1 | D3: Q2 | E3: Q3 | F3: Q4 | G3: Full year | H3: Q1 | I3: Q2 | J3: Q3 | K3: Q4 | L3: Full year | M3: Q1 | N3: Q2 | O3: Q3 | P3: Q4 | Q3: Full year | R3: Q1 | S3: Q2 | T3: Q3 | U3: Q4 | V3: Full year | W3: Q1" | X3: Q1 | Y3: Q2" | Z3: Q2 | AA3: Q3" | AB3: Q3 | AC3: Q4" | AD3: Q4 | AE3: Full year" | AF3: Full year | AG3: Q1 | AH3: Q2
B5: Amounts in millions of RUB, unless stated
B6: Revenue | C6: 4014 | D6: 3727 | E6: 5836 | F6: 10038 | G6: 23616 | H6: 4973 | I6: 4666 | J6: 5528 | K6: 5718.910253 | L6: 20885.7564 | M6: 5377 | N6: 5397 | O6: 5750 | P6: 5732 | Q6: 22256 | R6: 5210 | S6: 5585 | T6: 6022 | U6: 6220 | V6: 23037 | W6: 5758 | X6: 5662 | Y6: 6682 | Z6: 6569 | AA6: 7724 | AB6: 7553 | AC6: 8046 | AD6: 7911 | AE6: 28210 | AF6: 27695 | AG6: 7259 | AH6: 7756
B7: Operating profit | C7: 1619 | D7: 1103 | E7: 1863 | F7: 3445 | G7: 8030 | H7: 1552 | I7: 1655 | J7: 1822 | K7: 1871.391868 | L7: 6900.316038 | M7: 1789 | N7: 1893 | O7: 1981 | P7: 2035 | Q7: 7698 | R7: 1771 | S7: 1963 | T7: 2225 | U7: 2019 | V7: 7978 | W7: 1936 | X7: 2060 | Y7: 2408 | Z7: 2566 | AA7: 2983 | AB7: 3126 | AC7: 2638 | AD7: 2659 | AE7: 9965 | AF7: 10411 | AG7: 2773 | AH7: 2973
B8: - operating margin, % | C8: 0.403 | D8: 0.296 | E8: 0.319 | F8: 0.343 | G8: 0.34 | H8: 0.312 | I8: 0.355 | J8: 0.33 | K8: 0.3272287525 | L8: 0.3303838226 | M8: 0.333 | N8: 0.351 | O8: 0.344 | P8: 0.355 | Q8: 0.346 | R8: 0.34 | S8: 0.351 | T8: 0.369 | U8: 0.325 | V8: 0.346 | W8: 0.336 | X8: 0.364 | Y8: 0.36 | Z8: 0.391 | AA8: 0.386 | AB8: 0.414 | AC8: 0.328 | AD8: 0.336 | AE8: 0.353 | AF8: 0.376 | AG8: 0.382 | AH8: 0.383
B9: Depreciation and amortization | C9: 501 | D9: 794 | E9: 1174 | F9: 1664 | G9: 4134 | H9: 860 | I9: 759 | J9: 761 | K9: 726.2712643 | L9: 3105.4946 | M9: 669 | N9: 631 | O9: 648 | P9: 818 | Q9: 2766 | R9: 673 | S9: 682 | T9: 748 | U9: 679 | V9: 2782 | W9: 696 | X9: 1051 | Y9: 718 | Z9: 1130 | AA9: 759 | AB9: 1266 | AC9: 724 | AD9: 1235 | AE9: 2897 | AF9: 4682 | AG9: 1169 | AH9: 1214
B10: - as % of revenue | C10: 0.125 | D10: 0.213 | E10: 0.201 | F10: 0.166 | G10: 0.175 | H10: 0.173 | I10: 0.163 | J10: 0.138 | K10: 0.1269946952 | L10: 0.1486895921 | M10: 0.124 | N10: 0.117 | O10: 0.113 | P10: 0.143 | Q10: 0.124 | R10: 0.129 | S10: 0.122 | T10: 0.124 | U10: 0.109 | V10: 0.121 | W10: 0.121 | X10: 0.186 | Y10: 0.107 | Z10: 0.172 | AA10: 0.098 | AB10: 0.168 | AC10: 0.09 | AD10: 0.156 | AE10: 0.103 | AF10: 0.169 | AG10: 0.161 | AH10: 0.157
B11: Adjusted OIBDA*** | C11: 2121 | D11: 1897 | E11: 3037 | F11: 5109 | G11: 12164 | H11: 2694.121593 | I11: 2414 | J11: 2582 | K11: 2597.663132 | L11: 10287.87807 | M11: 2458 | N11: 2524 | O11: 2629 | P11: 2853 | Q11: 10464 | R11: 2444 | S11: 2645 | T11: 2973 | U11: 2699 | V11: 10761 | W11: 2632 | X11: 3111 | Y11: 3126 | Z11: 3696 | AA11: 3742 | AB11: 4392 | AC11: 3362 | AD11: 3893 | AE11: 12862 | AF11: 15092 | AG11: 3942 | AH11: 4187
B12: Adjusted OIBDA margin, % | C12: 0.528 | D12: 0.509 | E12: 0.52 | F12: 0.509 | G12: 0.515 | H12: 0.5417954547 | I12: 0.517 | J12: 0.467 | K12: 0.4542234477 | L12: 0.4925786679 | M12: 0.457 | N12: 0.468 | O12: 0.457 | P12: 0.498 | Q12: 0.47 | R12: 0.469 | S12: 0.474 | T12: 0.494 | U12: 0.434 | V12: 0.467 | W12: 0.457 | X12: 0.549 | Y12: 0.468 | Z12: 0.563 | AA12: 0.484 | AB12: 0.581 | AC12: 0.418 | AD12: 0.492 | AE12: 0.456 | AF12: 0.545 | AG12: 0.543 | AH12: 0.54
B13: Net profit | C13: 1267 | D13: 802 | E13: 1495 | F13: 3494 | G13: 7057 | H13: 2034 | I13: 1319 | J13: 1802 | K13: 1899.870955 | L13: 7054.148591 | M13: 1430 | N13: 1554 | O13: 1623 | P13: 1750 | Q13: 6356 | R13: 1595 | S13: 1456 | T13: 1818 | U13: 1683 | V13: 6552 | W13: 1567 | X13: 1531 | Y13: 2203 | Z13: 2214 | AA13: 2112 | AB13: 1988 | AC13: 2199 | AD13: 2019 | AE13: 8081 | AF13: 7752 | AG13: 2108 | AH13: 2386
B14: - margin, % | C14: 0.316 | D14: 0.215 | E14: 0.256 | F14: 0.348 | G14: 0.299 | H14: 0.409 | I14: 0.283 | J14: 0.326 | K14: 0.3322085626 | L14: 0.3377492515 | M14: 0.266 | N14: 0.288 | O14: 0.282 | P14: 0.305 | Q14: 0.286 | R14: 0.306 | S14: 0.261 | T14: 0.302 | U14: 0.271 | V14: 0.284 | W14: 0.272 | X14: 0.27 | Y14: 0.33 | Z14: 0.337 | AA14: 0.273 | AB14: 0.263 | AC14: 0.273 | AD14: 0.255 | AE14: 0.286 | AF14: 0.28 | AG14: 0.29 | AH14: 0.308
B15: CAPEX | C15: 569 | D15: 323 | E15: 570 | F15: 2653 | G15: 4115 | H15: 1323 | I15: 1474 | J15: 759 | K15: 1282.271616 | L15: 4838.194626 | M15: 512 | N15: 701 | O15: 856 | P15: 1113 | Q15: 3182 | R15: 729 | S15: 469 | T15: 489 | U15: 1303 | V15: 2990 | W15: 477 | X15: 477 | Y15: 402 | Z15: 402 | AA15: 582 | AB15: 582 | AC15: 1351 | AD15: 1351 | AE15: 2812 | AF15: 2812 | AG15: 814 | AH15: 1497
B16: CAPEX excluding purchases of 3G license | C16: 569 | D16: 323 | E16: 570 | F16: 2653 | G16: 4115 | H16: 1323 | I16: 1474 | J16: 759 | K16: 613.8226725 | L16: 4169.745682 | M16: 512 | N16: 701 | O16: 856 | P16: 1113 | Q16: 3182 | R16: 729 | S16: 469 | T16: 489 | U16: 1303 | V16: 2990 | W16: 477 | X16: 477 | Y16: 402 | Z16: 402 | AA16: 582 | AB16: 582 | AC16: 1351 | AD16: 1351 | AE16: 2812 | AF16: 2812 | AG16: 814 | AH16: 814
B17: - as % of revenue | C17: 0.142 | D17: 0.087 | E17: 0.098 | F17: 0.264 | G17: 0.174 | H17: 0.266 | I17: 0.316 | J17: 0.137 | K17: 0.1073321044 | L17: 0.1996454235 | M17: 0.095 | N17: 0.13 | O17: 0.149 | P17: 0.194 | Q17: 0.143 | R17: 0.14 | S17: 0.084 | T17: 0.081 | U17: 0.21 | V17: 0.13 | W17: 0.084 | X17: 0.084 | Y17: 0.06 | Z17: 0.061 | AA17: 0.075 | AB17: 0.077 | AC17: 0.168 | AD17: 0.171 | AE17: 0.1 | AF17: 0.102 | AG17: 0.112 | AH17: 0.105
B19: Operating highlights
B20: Mobile business
B21: MTS subscribers, mln | C21: 5.2 | D21: 5.3 | E21: 5.3 | F21: 5.3 | G21: 5.3 | H21: 5.3 | I21: 5.3 | J21: 5.3 | K21: 5.3 | L21: 5.3 | M21: 5.3 | N21: 5.3 | O21: 5.3 | P21: 5.2 | Q21: 5.2 | R21: 5.2 | S21: 5.1 | T21: 5.2 | U21: 5.2 | V21: 5.2 | W21: 5.3 | X21: 5.3 | Y21: 5.3 | Z21: 5.3 | AA21: 5.4 | AB21: 5.4 | AC21: 5.5 | AD21: 5.5 | AE21: 5.5 | AF21: 5.5 | AG21: 5.5 | AH21: 5.6
B22: Total traffic, bln minutes | C22: 7.294 | D22: 7.714 | E22: 7.886 | F22: 7.65 | G22: 30.544 | H22: 7.121 | I22: 7.446 | J22: 7.49 | K22: 7.443 | L22: 29.5 | M22: 7.137 | N22: 8 | O22: 8 | P22: 7.8 | Q22: 30.914 | R22: 7.6 | S22: 8 | T22: 8.3 | U22: 8.3 | V22: 32.1 | W22: 8 | X22: 8 | Y22: 8.7 | Z22: 8.7 | AA22: 8.6 | AB22: 8.6 | AC22: 8.66 | AD22: 8.66 | AE22: 33.96 | AF22: 33.96 | AG22: 8.5 | AH22: 9.2
B24: BYN/RUB (BYR/RUB) | C24: 277.5 | D24: 286.9 | E24: 287 | F24: 231.4 | G24: 270.6 | H24: 236.3 | I24: 279.1 | J24: 260.8 | K24: 258.8 | L24: 261.8 | M24: 277.7 | N24: 299.8 | O24: 0.03 | P24: 0.03 | Q24: n/a | R24: 0.03 | S24: 0.03 | T24: 0.03 | U24: 0.03 | V24: 0.03 | W24: 0.03 | X24: 0.03 | Y24: 0.03 | Z24: 0.03 | AA24: ='Ave Forex Rates'!Z9 -> 0.03 | AB24: ='Ave Forex Rates'!Z9 -> 0.03 | AC24: ='Ave Forex Rates'!AA9 -> 0.03 | AD24: ='Ave Forex Rates'!AA9 -> 0.03 | AE24: ='Ave Forex Rates'!AB9 -> 0.03 | AF24: ='Ave Forex Rates'!AB9 -> 0.03 | AG24: ='Ave Forex Rates'!AC9 -> 0.03 | AH24: ='Ave Forex Rates'!AD9 -> 0.03
B26: Amounts in millions of BYN, unless stated****
B27: Revenue | C27: 111.02 | D27: 123.78 | E27: 129.93 | F27: 132.71 | G27: 497.43 | H27: 117.42 | I27: 130.25 | J27: 143.99 | K27: 154.24 | L27: 545.9 | M27: 148.92 | N27: 161.86 | O27: 175.1 | P27: 176.34 | Q27: 662.23 | R27: 169.54 | S27: 183.75 | T27: 198.42 | U27: 211.98 | V27: 763.69 | W27: 199.747 | X27: 196.42 | Y27: 216.54 | Z27: 212.89 | AA27: 240.84 | AB27: 235.9 | AC27: 257.28 | AD27: 252.92 | AE27: 914.407 | AF27: 898.13 | AG27: 235.68 | AH27: 251.37
B28: Operating profit | C28: 44.78 | D28: 37.78 | E28: 40.59 | F28: 45.99 | G28: 169.14 | H28: 36.71 | I28: 46.17 | J28: 47.48 | K28: 50.41 | L28: 180.76 | M28: 49.54 | N28: 56.77 | O28: 60.3 | P28: 62.57 | Q28: 229.18 | R28: 57.64 | S28: 64.62 | T28: 73.28 | U28: 68.79 | V28: 264.33 | W28: 67.15 | X28: 71.46 | Y28: 78.04 | Z28: 83.18 | AA28: 93.39 | AB28: 97.82 | AC28: 83.77 | AD28: 84.73 | AE28: 322.35 | AF28: 337.19 | AG28: 90.04 | AH28: 96.38
B29: - operating margin, % | C29: 0.403 | D29: 0.305 | E29: 0.312 | F29: 0.347 | G29: 0.34 | H29: 0.313 | I29: 0.355 | J29: 0.33 | K29: 0.327 | L29: 0.331 | M29: 0.333 | N29: 0.351 | O29: 0.344 | P29: 0.355 | Q29: 0.346 | R29: 0.34 | S29: 0.352 | T29: 0.369 | U29: 0.324 | V29: 0.346 | W29: 0.336 | X29: 0.364 | Y29: 0.36 | Z29: 0.391 | AA29: 0.388 | AB29: 0.415 | AC29: 0.326 | AD29: 0.335 | AE29: 0.353 | AF29: 0.375 | AG29: 0.382 | AH29: 0.383
B30: Depreciation and amortization | C30: 13.87 | D30: 25.43 | E30: 27.06 | F30: 20.72 | G30: 87.08 | H30: 20.33 | I30: 21.17 | J30: 19.81 | K30: 19.63 | L30: 80.95 | M30: 18.56 | N30: 18.91 | O30: 19.74 | P30: 25.15 | Q30: 82.36 | R30: 21.89 | S30: 22.44 | T30: 24.66 | U30: 23.13 | V30: 92.12 | W30: 24.149 | X30: 36.47 | Y30: 23.29 | Z30: 36.62 | AA30: 23.71 | AB30: 39.52 | AC30: 23.14 | AD30: 39.49 | AE30: 94.289 | AF30: 152.1 | AG30: 37.95 | AH30: 39.37
B31: - as % of revenue | C31: 0.125 | D31: 0.205 | E31: 0.208 | F31: 0.156 | G31: 0.175 | H31: 0.173 | I31: 0.163 | J31: 0.138 | K31: 0.127 | L31: 0.148 | M31: 0.125 | N31: 0.117 | O31: 0.113 | P31: 0.143 | Q31: 0.124 | R31: 0.129 | S31: 0.122 | T31: 0.124 | U31: 0.109 | V31: 0.121 | W31: 0.121 | X31: 0.186 | Y31: 0.108 | Z31: 0.172 | AA31: 0.098 | AB31: 0.167 | AC31: 0.09 | AD31: 0.156 | AE31: 0.103 | AF31: 0.169 | AG31: 0.161 | AH31: 0.157
B32: Adjusted OIBDA*** | C32: 58.65 | D32: 63.21 | E32: 67.65 | F32: 66.71 | G32: 256.22 | H32: 64.01 | I32: 67.35 | J32: 67.28 | K32: 70.04 | L32: 268.68 | M32: 68.09 | N32: 75.68 | O32: 80.04 | P32: 87.72 | Q32: 311.54 | R32: 79.53 | S32: 87.06 | T32: 97.95 | U32: 91.91 | V32: 356.45 | W32: 91.3 | X32: 107.93 | Y32: 101.33 | Z32: 119.81 | AA32: 117.03 | AB32: 137.26 | AC32: 107.25 | AD32: 124.56 | AE32: 416.91 | AF32: 489.56 | AG32: 127.99 | AH32: 135.75
B33: Adjusted OIBDA margin, % | C33: 0.528 | D33: 0.511 | E33: 0.521 | F33: 0.503 | G33: 0.515 | H33: 0.5451185617 | I33: 0.517 | J33: 0.467 | K33: 0.454 | L33: 0.492 | M33: 0.457 | N33: 0.468 | O33: 0.457 | P33: 0.497 | Q33: 0.47 | R33: 0.469 | S33: 0.474 | T33: 0.494 | U33: 0.434 | V33: 0.467 | W33: 0.457 | X33: 0.549 | Y33: 0.468 | Z33: 0.563 | AA33: 0.486 | AB33: 0.582 | AC33: 0.417 | AD33: 0.492 | AE33: 0.456 | AF33: 0.545 | AG33: 0.543 | AH33: 0.54
B34: Net profit | C34: 35.03 | D34: 27.7 | E34: 33 | F34: 52.92 | G34: 148.66 | H34: 47.81 | I34: 36.76 | J34: 46.94 | K34: 51.31 | L34: 182.82 | M34: 39.7 | N34: 46.55 | O34: 49.39 | P34: 53.83 | Q34: 189.48 | R34: 51.89 | S34: 47.95 | T34: 59.87 | U34: 57.36 | V34: 217.07 | W34: 54.31 | X34: 53.08 | Y34: 71.3 | Z34: 71.66 | AA34: 65.84 | AB34: 61.86 | AC34: 69.68 | AD34: 64.28 | AE34: 261.13 | AF34: 250.88 | AG34: 68.41 | AH34: 77.34
B35: - margin % | C35: 0.316 | D35: 0.224 | E35: 0.254 | F35: 0.399 | G35: 0.299 | H35: 0.407 | I35: 0.282 | J35: 0.326 | K35: 0.333 | L35: 0.335 | M35: 0.267 | N35: 0.288 | O35: 0.282 | P35: 0.305 | Q35: 0.286 | R35: 0.306 | S35: 0.261 | T35: 0.302 | U35: 0.271 | V35: 0.284 | W35: 0.272 | X35: 0.27 | Y35: 0.329 | Z35: 0.337 | AA35: 0.273 | AB35: 0.262 | AC35: 0.271 | AD35: 0.254 | AE35: 0.286 | AF35: 0.275 | AG35: 0.29 | AH35: 0.308
B36: CAPEX | C36: 15.75 | D36: 11.31 | E36: 12.21 | F36: 47.41 | G36: 86.68 | H36: 31.56 | I36: 41.25 | J36: 19.91 | K36: 34.09 | L36: 126.8 | M36: 13.84 | N36: 21.13 | O36: 26.17 | P36: 34.62 | Q36: 95.76 | R36: 23.74 | S36: 15.46 | T36: 16.1 | U36: 44.6 | V36: 99.9 | W36: 17 | X36: 17 | Y36: 13.199 | Z36: 13.199 | AA36: 18 | AB36: 18 | AC36: 42.591 | AD36: 42.591 | AE36: 90.79 | AF36: 90.79 | AG36: 27 | AH36: 49
B37: CAPEX excluding purchases of 3G license | C37: 15.75 | D37: 11.31 | E37: 12.21 | F37: 47.41 | G37: 86.68 | H37: 31.56 | I37: 41.25 | J37: 19.91 | K37: 16.55 | L37: 109.27 | M37: 13.84 | N37: 21.13 | O37: 26.17 | P37: 34.62 | Q37: 95.76 | R37: 23.74 | S37: 15.46 | T37: 16.1 | U37: 44.6 | V37: 99.9 | W37: 17 | X37: 17 | Y37: 13.199 | Z37: 13.199 | AA37: 18 | AB37: 18 | AC37: 42.591 | AD37: 42.591 | AE37: 90.79 | AF37: 90.79 | AG37: 27 | AH37: 26
B38: - as % of revenue | C38: 0.142 | D38: 0.091 | E38: 0.094 | F38: 0.357 | G38: 0.174 | H38: 0.269 | I38: 0.317 | J38: 0.138 | K38: 0.107 | L38: 0.2 | M38: 0.093 | N38: 0.131 | O38: 0.149 | P38: 0.196 | Q38: 0.145 | R38: 0.14 | S38: 0.084 | T38: 0.081 | U38: 0.21 | V38: 0.131 | W38: 0.085 | X38: 0.085 | Y38: 0.061 | Z38: 0.062 | AA38: 0.075 | AB38: 0.077 | AC38: 0.166 | AD38: 0.17 | AE38: 0.099 | AF38: 0.101 | AG38: 0.113 | AH38: 0.105
B41: " - Financial data for the period, excluding effects of new standards
B42: *Due to the rounding and translation practices, Russian rubles and functional currency margins, as well as other non-IFRS financial measures, may differ.
B44: **MTS owns a 49% stake in Mobile TeleSystems LLC, a mobile operator in Belarus, which is not consolidated
B46: ***OIBDA for 1Q 2015 and 2015 doesn't include provision for investment in DeltaBank of 282 mln RUB (6,97 mln BYN)
B48: **** Data were retrospectively adjusted due to denomination of Belarusian Ruble

Sheet Group reconciliations
C2: 2014 | G2: 2015 | K2: 2016 | O2: 2017 | S2: 2018 | AA2: 2019
B3: MTS Group | C3: Q1 | D3: Q2 | E3: Q3 | F3: Q4 | G3: Q1 | H3: Q2 | I3: Q3 | J3: Q4 | K3: Q1 | L3: Q2 | M3: Q3 | N3: Q4 | O3: Q1 | P3: Q2 | Q3: Q3 | R3: Q4 | S3: Q1" | T3: Q1 | U3: Q2" | V3: Q2 | W3: Q3" | X3: Q3 | Y3: Q4" | Z3: Q4 | AA3: Q1 | AB3: Q2
B5: Net debt, amounts in millions of RUB, unless stated
B6: Current portion of LT debt | C6: 25022 | D6: 10068 | E6: 11067 | F6: 41417 | G6: 44855 | H6: 49258 | I6: 59671 | J6: 53782 | K6: 45656 | L6: 48900 | M6: 59221 | N6: 47081 | O6: 49301 | P6: 40705 | Q6: 50527 | R6: 64061 | S6: 72544 | T6: 72544 | U6: 61040 | V6: 60187 | W6: 13940 | X6: 13940 | Y6: 3256 | Z6: 3256 | AA6: 43027 | AB6: 68812
B7: LT debt | C7: 196599 | D7: 208484 | E7: 216269 | F7: 240860 | G7: 277008 | H7: 263382 | I7: 277218 | J7: 282435 | K7: 259968 | L7: 225569 | M7: 208682 | N7: 227682 | O7: 221938 | P7: 245615 | Q7: 226522 | R7: 228727 | S7: 221837 | T7: 218934 | U7: 252629 | V7: 250327 | W7: 368576 | X7: 362523 | Y7: 370952 | Z7: 365467 | AA7: 344334 | AB7: 308368
B8: Total debt | C8: 221621 | D8: 218552 | E8: 227336 | F8: 282277 | G8: 321863 | H8: 312640 | I8: 336889 | J8: 336217 | K8: 305624 | L8: 274469 | M8: 267903 | N8: 274763 | O8: 271239 | P8: 286320 | Q8: 277049 | R8: 292788 | S8: 294381 | T8: 291478 | U8: 313669 | V8: 310514 | W8: 382516 | X8: 376463 | Y8: 374208 | Z8: 368723 | AA8: 387361 | AB8: 377180
B9: Less:
B10: Cash and cash equivalents | C10: 37207 | D10: 53449 | E10: 45937 | F10: 61410 | G10: 43776 | H10: 44120 | I10: 25149 | J10: 33464 | K10: 44389 | L10: 24956 | M10: 36489 | N10: 18470 | O10: 25353 | P10: 34272 | Q10: 23430 | R10: 30586 | S10: 56923 | T10: 56923 | U10: 57292 | V10: 57292 | W10: 101144 | X10: 101144 | Y10: 84075 | Z10: 84075 | AA10: 66346 | AB10: 51243
B11: ST investments | C11: 39073 | D11: 20778 | E11: 23999 | F11: 9942 | G11: 42993 | H11: 46319 | I11: 56627 | J11: 49840 | K11: 30961 | L11: 27978 | M11: 11689 | N11: 8657 | O11: 44524 | P11: 67459 | Q11: 60596 | R11: 50757 | S11: 26354 | T11: 26354 | U11: 52970 | V11: 52970 | W11: 46366 | X11: 46354 | Y11: 48354 | Z11: 47863 | AA11: 26588 | AB11: 15165
B12: LT deposits | D12: 14272 | F12: 13671 | G12: 38148 | H12: 36802 | I12: 27461 | J12: 30677 | K12: 28886 | L12: 30409 | M12: 30275 | N12: 27056 | O12: 3 | P12: 3 | Q12: 22 | R12: 9.7 | S12: 4 | T12: 4 | U12: 130 | V12: 130 | W12: 135 | X12: 135 | Y12: 139 | Z12: 139 | AA12: 256 | AB12: 126
B13: SWAPs | S13: 2910 | T13: 2910 | U13: 4953 | V13: 4953 | W13: 1227 | X13: 1227 | Y13: 1077.496353 | Z13: 1077.496353 | AA13: 788 | AB13: 1021
B14: Hedge | C14: 4766 | D14: 3288 | E14: 7186 | F14: 21936 | G14: 20286 | H14: 17340 | I14: 22349 | J14: 18174 | K14: 14636 | L14: 12369 | M14: 11498 | N14: 10726 | O14: 8270 | P14: 9221 | Q14: 7830 | R14: 7131 | S14: 1150 | T14: 1150 | U14: 678 | V14: 678 | W14: 725 | X14: 725 | Y14: 2796.641011 | Z14: 2796.641011 | AA14: 974 | AB14: -479
B15: Net debt | C15: 140575 | D15: 126765 | E15: 150214 | F15: 175318 | G15: 176660 | H15: 168059 | I15: 205303 | J15: 204062 | K15: 186752 | L15: 178757 | M15: 177952 | N15: 209854 | O15: 193089 | P15: 175365 | Q15: 185171 | R15: 204304 | S15: 207040 | T15: 204137 | U15: 197646 | V15: 194491 | W15: 232919 | X15: 226878 | Y15: 237765.8626 | Z15: 232771.8626 | AA15: 292409 | AB15: 310104
B18: Financial leverage ratios
B19: Shareholders' equity, RUB mln | C19: ='Statement of financial position'!C40 -> 165964 | D19: ='Statement of financial position'!D40 -> 148064 | E19: ='Statement of financial position'!E40 -> 163809 | F19: ='Statement of financial position'!F40 -> 178622 | G19: ='Statement of financial position'!G40 -> 179784 | H19: ='Statement of financial position'!H40 -> 156857 | I19: ='Statement of financial position'!I40 -> 163915 | J19: ='Statement of financial position'!J40 -> 168371 | K19: ='Statement of financial position'!K40 -> 172983 | L19: ='Statement of financial position'!L40 -> 151434 | M19: ='Statement of financial position'!M40 -> 135141 | N19: ='Statement of financial position'!N40 -> 143948 | O19: ='Statement of financial position'!O40 -> 144449 | P19: ='Statement of financial position'!P40 -> 130652 | Q19: ='Statement of financial position'!Q40 -> 125210 | R19: ='Statement of financial position'!R40 -> 124205 | S19: ='Statement of financial position'!S40 -> 133058 | T19: ='Statement of financial position'!T40 -> 135814 | U19: ='Statement of financial position'!U40 -> 108583 | V19: ='Statement of financial position'!V40 -> 112510 | W19: ='Statement of financial position'!W40 -> 68802 | X19: ='Statement of financial position'!X40 -> 72042 | Y19: ='Statement of financial position'!Y40 -> 77638 | Z19: ='Statement of financial position'!Z40 -> 77565 | AA19: ='Statement of financial position'!AA40 -> 70724 | AB19: ='Statement of financial position'!AB40 -> 40538
B20: Total assets, RUB mln | C20: ='Statement of financial position'!C35 -> 493870 | D20: ='Statement of financial position'!D35 -> 510086 | E20: ='Statement of financial position'!E35 -> 518802 | F20: ='Statement of financial position'!F35 -> 599304 | G20: ='Statement of financial position'!G35 -> 640796 | H20: ='Statement of financial position'!H35 -> 635283 | I20: ='Statement of financial position'!I35 -> 649120 | J20: ='Statement of financial position'!J35 -> 653378 | K20: ='Statement of financial position'!K35 -> 625016 | L20: ='Statement of financial position'!L35 -> 595353 | M20: ='Statement of financial position'!M35 -> 563405 | N20: ='Statement of financial position'!N35 -> 544470 | O20: ='Statement of financial position'!O35 -> 537444 | P20: ='Statement of financial position'!P35 -> 575005 | Q20: ='Statement of financial position'!Q35 -> 556690 | R20: ='Statement of financial position'!R35 -> 551070 | S20: ='Statement of financial position'!S35 -> 559276 | T20: ='Statement of financial position'!T35 -> 702071 | U20: ='Statement of financial position'!U35 -> 605200 | V20: ='Statement of financial position'!V35 -> 752192 | W20: ='Statement of financial position'!W35 -> 763776 | X20: ='Statement of financial position'!X35 -> 907496 | Y20: ='Statement of financial position'!Y35 -> 774467 | Z20: ='Statement of financial position'!Z35 -> 915993 | AA20: ='Statement of financial position'!AA35 -> 870371 | AB20: ='Statement of financial position'!AB35 -> 863617
B21: LTM adjusted OIBDA, RUB mln * | C21: x | D21: x | E21: x | F21: ='Statement of profit or loss'!F60+'Statement of profit or loss'!E60+'Statement of profit or loss'!D60+'Statement of profit or loss'!C60 -> 179731 | G21: ='Statement of profit or loss'!H60+'Statement of profit or loss'!F60+'Statement of profit or loss'!E60+'Statement of profit or loss'!D60 -> 179820 | H21: ='Statement of profit or loss'!I60+'Statement of profit or loss'!H60+'Statement of profit or loss'!F60+'Statement of profit or loss'!E60 -> 179339 | I21: ='Statement of profit or loss'!J60+'Statement of profit or loss'!I60+'Statement of profit or loss'!H60+'Statement of profit or loss'!F60 -> 178511 | J21: ='Statement of profit or loss'!K60+'Statement of profit or loss'!J60+'Statement of profit or loss'!I60+'Statement of profit or loss'!H60 -> 176980 | K21: ='Statement of profit or loss'!M60+'Statement of profit or loss'!K60+'Statement of profit or loss'!J60+'Statement of profit or loss'!I60 -> 175854 | L21: ='Statement of profit or loss'!N60+'Statement of profit or loss'!M60+'Statement of profit or loss'!K60+'Statement of profit or loss'!J60 -> 173330 | M21: ='Statement of profit or loss'!O60+'Statement of profit or loss'!N60+'Statement of profit or loss'!M60+'Statement of profit or loss'!K60 -> 170882 | N21: ='Statement of profit or loss'!P60+'Statement of profit or loss'!O60+'Statement of profit or loss'!M60+'Statement of profit or loss'!N60 -> 169252 | O21: ='Statement of profit or loss'!N60+'Statement of profit or loss'!O60+'Statement of profit or loss'!P60+'Statement of profit or loss'!R60 -> 169980 | P21: ='Statement of profit or loss'!S60+'Statement of profit or loss'!R60+'Statement of profit or loss'!P60+'Statement of profit or loss'!O60 -> 173300 | Q21: ='Statement of profit or loss'!P60+'Statement of profit or loss'!R60+'Statement of profit or loss'!S60+'Statement of profit or loss'!T60 -> 176378 | R21: ='Statement of profit or loss'!V60 -> 179787 | S21: ='Statement of profit or loss'!W60+'Statement of profit or loss'!U60+'Statement of profit or loss'!T60+'Statement of profit or loss'!S60 -> 182508 | T21: x | U21: ='Statement of profit or loss'!Y60+'Statement of profit or loss'!W60+'Statement of profit or loss'!U60+'Statement of profit or loss'!T60 -> 184729 | V21: x | W21: ='Statement of profit or loss'!AA60+'Statement of profit or loss'!W60+'Statement of profit or loss'!U60+'Statement of profit or loss'!Y60 -> 188266 | X21: x | Y21: ='Statement of profit or loss'!AC60+'Statement of profit or loss'!AA60+'Statement of profit or loss'!Y60+'Statement of profit or loss'!W60 -> 190883 | Z21: x | AA21: 196498 | AB21: 195916
B22: Net debt/assets | C22: =ROUND(C15/C20, 1) -> 0.3 | D22: 0.2 | E22: 0.3 | F22: 0.3 | G22: 0.3 | H22: 0.3 | I22: 0.3 | J22: 0.3 | K22: 0.3 | L22: 0.3 | M22: 0.3 | N22: 0.4 | O22: 0.4 | P22: 0.3 | Q22: 0.3 | R22: 0.4 | S22: =ROUND(S15/S20, 1) -> 0.4 | T22: 0.3 | U22: 0.3 | V22: 0.3 | W22: 0.3 | X22: 0.3 | Y22: =ROUND(Y15/Y20, 1) -> 0.3 | Z22: 0.3 | AA22: =ROUND(AA15/AA20, 1) -> 0.3 | AB22: 0.4
B23: Net debt/equity | C23: =ROUND(C15/C19, 1) -> 0.8 | D23: 0.9 | E23: 0.9 | F23: 1 | G23: 1 | H23: 1.1 | I23: 1.3 | J23: 1.2 | K23: 1.1 | L23: 1.2 | M23: 1.3 | N23: 1.5 | O23: 1.3 | P23: 1.3 | Q23: 1.5 | R23: 1.6 | S23: =ROUND(S15/S19, 1) -> 1.6 | T23: 1.5 | U23: 1.8 | V23: 1.7 | W23: 3.4 | X23: 3.1 | Y23: =ROUND(Y15/Y19, 1) -> 3.1 | Z23: 3 | AA23: =ROUND(AA15/AA19, 1) -> 4.1 | AB23: 7.6
B24: Net debt/LTM adjusted OIBDA | C24: x | D24: x | E24: x | F24: =ROUND(F15/F21, 1) -> 1 | G24: 1 | H24: 0.9 | I24: 1.2 | J24: 1.2 | K24: 1.1 | L24: 1 | M24: 1 | N24: 1.2 | O24: 1.1 | P24: 1 | Q24: 1 | R24: 1.1 | S24: =ROUND(S15/S21, 1) -> 1.1 | T24: x | U24: =ROUND(U15/U21, 1) -> 1.1 | V24: x | W24: =ROUND(W15/W21, 1) -> 1.2 | X24: x | Y24: =ROUND(Y15/Y21, 1) -> 1.2 | Z24: x | AA24: =ROUND(AA15/AA21, 1) -> 1.5 | AB24: =ROUND(AB15/AB21, 1) -> 1.6
B27: Debt composition
B28: By type, %
B29: Credit facilities | C29: 0.528 | D29: 0.6 | E29: 0.59 | F29: 0.623 | G29: 0.66 | H29: 0.662 | I29: 0.657 | J29: 0.701 | K29: 0.69 | L29: 0.731 | M29: 0.697 | N29: 0.714 | O29: 0.653 | P29: 0.661 | Q29: 0.655 | R29: 0.628 | S29: x | T29: 0.558 | U29: x | V29: 0.5743114746 | W29: x | X29: 0.666937925 | Y29: x | Z29: 0.6812399531 | AA29: 0.6799220868 | AB29: 0.6414373193
B30: Bonds | C30: 0.472 | D30: 0.4 | E30: 0.41 | F30: 0.377 | G30: 0.34 | H30: 0.338 | I30: 0.343 | J30: 0.299 | K30: 0.31 | L30: 0.269 | M30: 0.303 | N30: 0.286 | O30: 0.352 | P30: 0.339 | Q30: 0.345 | R30: 0.372 | S30: x | T30: 0.442 | U30: x | V30: 0.4256885254 | W30: x | X30: 0.333062075 | Y30: x | Z30: 0.3187600469 | AA30: 0.3200779132 | AB30: 0.3585626807
B31: Syndicated loan
B32: By currency, %
B33: RUB | C33: 0.766 | D33: 0.793 | E33: 0.774 | F33: 0.748 | G33: 0.726 | H33: 0.737 | I33: 0.714 | J33: 0.688 | K33: 0.687 | L33: 0.735 | M33: 0.753 | N33: 0.849 | O33: 0.837 | P33: 0.8218071666 | Q33: 0.8219527196 | R33: 0.8371203495 | S33: x | T33: 0.847683133 | U33: x | V33: 0.8481901757 | W33: x | X33: 0.9099878852 | Y33: x | Z33: 0.9151567824 | AA33: 0.9247839634 | AB33: 0.9247768573
B34: USD | C34: 0.211 | D34: 0.197 | E34: 0.216 | F34: 0.238 | G34: 0.262 | H34: 0.25 | I34: 0.27 | J34: 0.29 | K34: 0.292 | L34: 0.241 | M34: 0.24 | N34: 0.146 | O34: 0.159 | P34: 0.1778731854 | Q34: 0.1777607416 | R34: 0.1626365997 | S34: x | T34: 0.1522119894 | U34: x | V34: 0.1517078335 | W34: x | X34: 0.08994529544 | Y34: x | Z34: 0.08478323994 | AA34: 0.07517314239 | AB34: 0.07518978709
B35: EUR | C35: 0.023 | D35: 0.01 | E35: 0.01 | F35: 0.01 | G35: 0.008 | H35: 0.007 | I35: 0.007 | J35: 0.007 | K35: 0.007 | L35: 0.006 | M35: 0.006 | N35: 0.004 | O35: 0.003 | P35: 0 | Q35: 0 | R35: 0 | S35: x | T35: 0 | U35: x | V35: 0 | W35: x | X35: 0 | Y35: x | Z35: 0 | AA35: 0 | AB35: 0
B38: Free cash flow, amounts in millions of RUB
B39: Net cash provided by operating activities | C39: ='Statement of cash flows'!C43 -> 43884 | D39: ='Statement of cash flows'!D43 -> 77838 | E39: ='Statement of cash flows'!E43 -> 120039 | F39: ='Statement of cash flows'!F43 -> 158979 | G39: ='Statement of cash flows'!G43 -> 39115 | H39: ='Statement of cash flows'!H43 -> 72016 | I39: ='Statement of cash flows'!I43 -> 100011 | J39: ='Statement of cash flows'!J43 -> 144088 | K39: ='Statement of cash flows'!K43 -> 39076 | L39: ='Statement of cash flows'!L43 -> 63674 | M39: ='Statement of cash flows'!O43 -> 104900 | N39: ='Statement of cash flows'!R43 -> 130565 | O39: ='Statement of cash flows'!S43 -> 33303 | P39: ='Statement of cash flows'!T43 -> 64876 | Q39: ='Statement of cash flows'!U43 -> 101981 | R39: ='Statement of cash flows'!V43 -> 144640 | S39: ='Statement of cash flows'!W43 -> 31647 | T39: ='Statement of cash flows'!X43 -> 35695 | U39: ='Statement of cash flows'!Y43 -> 61589 | V39: ='Statement of cash flows'!Z43 -> 70062 | W39: ='Statement of cash flows'!AA43 -> 98290 | X39: ='Statement of cash flows'!AB43 -> 110221 | Y39: ='Statement of cash flows'!AC43 -> 137301 | Z39: ='Statement of cash flows'!AD43 -> 154390 | AA39: ='Statement of cash flows'!AE43 -> -16093 | AB39: ='Statement of cash flows'!AF43 -> 4859
B40: Less:
B41: Purchases of property, plant and equipment | C41: -8470 | D41: -23062 | E41: -40262 | F41: -73573 | G41: -21886 | H41: -40921 | I41: -56528 | J41: -76671 | K41: -13656 | L41: -25545 | M41: -36925 | N41: ='Statement of cash flows'!R49 -> -55538 | O41: ='Statement of cash flows'!S49 -> -7646 | P41: ='Statement of cash flows'!T49 -> -19566 | Q41: ='Statement of cash flows'!U49 -> -36229 | R41: ='Statement of cash flows'!V49 -> -53366 | S41: ='Statement of cash flows'!W49 -> -13096 | T41: ='Statement of cash flows'!X49 -> -13096 | U41: ='Statement of cash flows'!Y49 -> -27753 | V41: ='Statement of cash flows'!Z49 -> -27753 | W41: ='Statement of cash flows'!AA49 -> -44660 | X41: ='Statement of cash flows'!AB49 -> -44660 | Y41: ='Statement of cash flows'!AC49 -> -64731 | Z41: ='Statement of cash flows'!AD49 -> -64731 | AA41: ='Statement of cash flows'!AE49 -> -12457 | AB41: ='Statement of cash flows'!AF49 -> -27513
B42: Purchases of other intangible assets, excluding purchases of 3G, 4G license in Ukraine and Russia and cost to obtain contracts | C42: -1437 | D42: -5447 | E42: -13056 | F42: -18356 | G42: -3539 | H42: -12720 | I42: -16529 | J42: -19440 | K42: -4715 | L42: -14126 | M42: -20885 | N42: ='Statement of cash flows'!R50 -> -28013 | O42: ='Statement of cash flows'!S50 -> -3460 | P42: ='Statement of cash flows'!T50 -> -6862 | Q42: ='Statement of cash flows'!U50 -> -12487 | R42: ='Statement of cash flows'!V50 -> -23065 | S42: ='Statement of cash flows'!W50 -> -3574 | T42: ='Statement of cash flows'!X50 -> -3574 | U42: ='Statement of cash flows'!Y50 -> -6484 | V42: ='Statement of cash flows'!Z50 -> -6484 | W42: ='Statement of cash flows'!AA50 -> -10758 | X42: ='Statement of cash flows'!AB50 -> -10758 | Y42: ='Statement of cash flows'!AC50 -> -21751 | Z42: ='Statement of cash flows'!AD50 -> -21751 | AA42: ='Statement of cash flows'!AE50 -> -4157 | AB42: ='Statement of cash flows'!AF50 -> -11781
B43: Cost to obtain and fulfill contracts | S43: ='Statement of cash flows'!W51 -> 0 | T43: ='Statement of cash flows'!X51 -> -1099 | U43: ='Statement of cash flows'!Y51 -> 0 | V43: ='Statement of cash flows'!Z51 -> -2085 | W43: ='Statement of cash flows'!AA51 -> 0 | X43: ='Statement of cash flows'!AB51 -> -3524 | Y43: ='Statement of cash flows'!AC51 -> 0 | Z43: ='Statement of cash flows'!AD51 -> -4764 | AA43: ='Statement of cash flows'!AE51 -> -1093 | AB43: ='Statement of cash flows'!AF51 -> -2307
B44: Purchase of Avantage | W44: ='Statement of cash flows'!AA53 -> -7559 | X44: ='Statement of cash flows'!AB53 -> -7559 | Y44: ='Statement of cash flows'!AC53 -> -7559 | Z44: ='Statement of cash flows'!AD53 -> -7559 | AA44: ='Statement of cash flows'!AE53 -> 0 | AB44: ='Statement of cash flows'!AF53 -> 0
B45: Proceeds from sale of property, plant and equipment | C45: 123 | D45: 231 | E45: 506 | F45: 619 | G45: 1291 | H45: 1326 | I45: 2279 | J45: 2988 | K45: 1153 | L45: 1300 | M45: 3130 | N45: ='Statement of cash flows'!R54 -> 4042 | O45: ='Statement of cash flows'!S54 -> 672 | P45: ='Statement of cash flows'!T54 -> 2463 | Q45: ='Statement of cash flows'!U54 -> 3387 | R45: ='Statement of cash flows'!V54 -> 4343 | S45: ='Statement of cash flows'!W54 -> 442 | T45: ='Statement of cash flows'!X54 -> 442 | U45: ='Statement of cash flows'!Y54 -> 2289 | V45: ='Statement of cash flows'!Z54 -> 2289 | W45: ='Statement of cash flows'!AA54 -> 3924 | X45: ='Statement of cash flows'!AB54 -> 3924 | Y45: ='Statement of cash flows'!AC54 -> 5905 | Z45: ='Statement of cash flows'!AD54 -> 5905 | AA45: ='Statement of cash flows'!AE54 -> 1040 | AB45: ='Statement of cash flows'!AF54 -> 2903
B46: Proceeds from sale of subsidiaries | Y46: ='Statement of cash flows'!AC59 -> 619 | Z46: ='Statement of cash flows'!AD59 -> 619 | AA46: ='Statement of cash flows'!AE59 -> 0 | AB46: ='Statement of cash flows'!AF59 -> 0
B47: Proceeds from sale of associates | Y47: ='Statement of cash flows'!AC60 -> 0 | Z47: ='Statement of cash flows'!AD60 -> 0 | AA47: ='Statement of cash flows'!AE60 -> 3000 | AB47: ='Statement of cash flows'!AF60 -> 3000
B48: Investments in associates | C48: 0 | D48: -2702 | E48: -2862 | F48: -7767 | G48: 0 | H48: 0 | I48: 0 | J48: 0 | K48: -1326 | L48: -1326 | M48: -1326 | N48: ='Statement of cash flows'!R57 -> -4094 | O48: ='Statement of cash flows'!S57 -> 0 | P48: ='Statement of cash flows'!T57 -> -320 | Q48: ='Statement of cash flows'!U57 -> -695 | R48: ='Statement of cash flows'!V57 -> -723 | S48: ='Statement of cash flows'!W57 -> -1158 | T48: ='Statement of cash flows'!X57 -> -1158 | U48: ='Statement of cash flows'!Y57 -> -2101 | V48: ='Statement of cash flows'!Z57 -> -2101 | W48: ='Statement of cash flows'!AA57 -> -3871 | X48: ='Statement of cash flows'!AB57 -> -3871 | Y48: ='Statement of cash flows'!AC57 -> -3871 | Z48: ='Statement of cash flows'!AD57 -> -3871 | AA48: ='Statement of cash flows'!AE57 -> 0 | AB48: ='Statement of cash flows'!AF57 -> 0
B49: Acquisition of subsidiaries, net of cash acquired | C49: 0 | D49: 0 | E49: 0 | F49: -2755 | G49: 0 | H49: 0 | I49: 0 | J49: 0 | K49: 0 | L49: 0 | M49: -5 | N49: ='Statement of cash flows'!R48 -> -5 | O49: ='Statement of cash flows'!S48 -> 0 | P49: ='Statement of cash flows'!T48 -> 0 | Q49: ='Statement of cash flows'!U48 -> -214 | R49: ='Statement of cash flows'!V48 -> -367 | S49: ='Statement of cash flows'!W48 -> -3286 | T49: ='Statement of cash flows'!X48 -> -3286 | U49: ='Statement of cash flows'!Y48 -> -3093 | V49: ='Statement of cash flows'!Z48 -> -3093 | W49: ='Statement of cash flows'!AA48 -> -3458 | X49: ='Statement of cash flows'!AB48 -> -3458 | Y49: ='Statement of cash flows'!AC48 -> -3444 | Z49: ='Statement of cash flows'!AD48 -> -3444 | AA49: ='Statement of cash flows'!AE48 -> -1639 | AB49: ='Statement of cash flows'!AF48 -> -2030
B50: Free cash flow | C50: 34101 | D50: 46858 | E50: 64365 | F50: 57147 | G50: 14981 | H50: 19701 | I50: 29233 | J50: 50965 | K50: 20532 | L50: 23977 | M50: 48889 | N50: =SUM(N39:N49) -> 46957 | O50: 22869 | P50: 40591 | Q50: 55743 | R50: 71462 | S50: =SUM(S39:S49) -> 10975 | T50: 13924 | U50: 24447 | V50: 30835 | W50: 31908 | X50: 40315 | Y50: =SUM(Y39:Y49) -> 42469 | Z50: 54794 | AA50: =SUM(AA39:AA49) -> -31399 | AB50: -32869
B52: " - Financial data for the period, excluding effects of new standards
B53: * Periods after Q12018 presented without effects of new standards

Sheet Debt repayment schedule
B2: As of June 30, 2019 | C2: Q3 2019 | D2: Q4 2019 | E2: 2020 | F2: 2021 | G2: 2022 | H2: 2023 | I2: Thereafter
B3: MTS Group
B5: Debt repayments, RUB bln | C5: 1.3 | D5: 0 | E5: 114.1 | F5: 155.9 | G5: 50 | H5: 28.3 | I5: 27.6
B7: Maturities of major publicly traded debt instruments*
B8: 2020 Eurobond, USD mln** | E8: 750
B9: 2023 Eurobond, USD mln*** | H9: 500
B11: *Amounts before discounts
B12: ** MTS currently holds USD 449.1 mln worth of 2020 Eurobonds on its balance sheet
B13: *** MTS currently holds USD 51.7 mln worth of 2023 Eurobonds on its balance sheet

Sheet Ave Forex Rates
B2: MTS Group | D2: 2014 | I2: 2015 | N2: 2016 | S2: 2017 | X2: 2018 | AC2: 2019
B3: Average Forex rates per country | D3: Q1 | E3: Q2 | F3: Q3 | G3: Q4 | H3: Full year | I3: Q1 | J3: Q2 | K3: Q3 | L3: Q4 | M3: Full year | N3: Q1 | O3: Q2 | P3: Q3 | Q3: Q4 | R3: Full year | S3: Q1 | T3: Q2 | U3: Q3 | V3: Q4 | W3: Full year | X3: Q1 | Y3: Q2 | Z3: Q3 | AA3: Q4 | AB3: Full year | AC3: Q1 | AD3: Q2
B5: Russia | C5: RUB/USD | D5: 34.96 | E5: 35 | F5: 36.19 | G5: 47.42 | H5: 38.42 | I5: 62.19 | J5: 52.65 | K5: 62.98 | L5: 65.94 | M5: 60.96 | N5: 74.63 | O5: 65.89 | P5: 64.62 | Q5: 63.07 | R5: 67.03 | S5: 58.84 | T5: 57.15 | U5: 59.02 | V5: 58.41 | W5: 58.35 | X5: 56.88 | Y5: 61.8 | Z5: 65.5 | AA5: 66.5 | AB5: 62.71 | AC5: 66.13 | AD5: 64.56
B6: Ukraine | C6: UAH/RUB | D6: 0.25 | E6: 0.33 | F6: 0.35 | G6: 0.31 | H6: 0.31 | I6: 0.34 | J6: 0.41 | K6: 0.35 | L6: 0.35 | M6: 0.36 | N6: 0.34 | O6: 0.38 | P6: 0.39 | Q6: 0.41 | R6: 0.38 | S6: 0.46 | T6: 0.46 | U6: 0.44 | V6: 0.46 | W6: 0.46 | X6: 0.48 | Y6: 0.42 | Z6: 0.42 | AA6: 0.42 | AB6: 0.44 | AC6: 0.41 | AD6: 0.41
B7: Turkmenistan | C7: TMT/RUB | D7: 0.08 | E7: 0.08 | F7: 0.08 | G7: 0.06 | H7: 0.08 | I7: 0.06 | J7: 0.07 | K7: 0.06 | L7: 0.05 | M7: 0.06 | N7: 0.05 | O7: 0.05 | P7: 0.05 | Q7: 0.06 | R7: 0.05 | S7: 0.06 | T7: 0.06 | U7: 0.06 | V7: 0.06 | W7: 0.06 | X7: 0.06 | Y7: 0.057 | Z7: 0.05 | AA7: 0.05 | AB7: 0.06 | AC7: 0.05 | AD7: 0.05
B8: Armenia | C8: AMD/RUB | D8: 11.77 | E8: 11.8 | F8: 11.3 | G8: 9.19 | H8: 11.01 | I8: 7.7 | J8: 9.07 | K8: 7.65 | L8: 7.27 | M8: 7.92 | N8: 6.56 | O8: 7.27 | P8: 7.36 | Q8: 7.6 | R8: 7.2 | S8: 8.26 | T8: 8.46 | U8: 8.11 | V8: 8.27 | W8: 8.28 | X8: 8.47 | Y8: 7.82 | Z8: 7.37 | AA8: 7.3 | AB8: 7.74 | AC8: 7.37 | AD8: 7.45
B9: Belarus | C9: BYN/RUB (BYR/RUB) | D9: 277.48 | E9: 286.92 | F9: 287.04 | G9: 231.42 | H9: 270.63 | I9: 236.34 | J9: 279.1 | K9: 260.77 | L9: 258.82 | M9: 261.75 | N9: 277.71 | O9: 299.77 | P9: 0.03 | Q9: 0.03 | R9: n/a | S9: 0.03 | T9: 0.03 | U9: 0.03 | V9: 0.03 | W9: 0.03 | X9: 0.03 | Y9: 0.03 | Z9: 0.03 | AA9: 0.03 | AB9: 0.03 | AC9: 0.03 | AD9: 0.03

Sheet Glossary
G2: Glossary
